Body,BodyName,InvoiceDate,ClearanceDate,UniqueReference,SupplierName,SupplierRefNo,Amount,DepartmentExpenseArea,ExpenseType,ExpenseCode,ExtendedDescription,AccountHolder,MerchantCategory
http://statistics.data.gov.uk/id/local-authority/43UM,WOKING BOROUGH COUNCIL,31/03/2020,01/04/2020,0000452316/002,STC ENERGY MANAGEMENT LIMITED,40614500,75.01 ,INFORMATION TECHNOLOGY - CORPORATE MANAGEMENT-COMMERCIAL,ENERGY BUREAU SERVICE,H489,ENERGY BUREAU SERVICE,INFORMATION TECHNOLOGY,UTILITIES
http://statistics.data.gov.uk/id/local-authority/43UM,WOKING BOROUGH COUNCIL,20/03/2020,01/04/2020,0000452286/001,JAYNE COOKE,40671500,120.00 ,CORPORATE STRATEGY - WAVS,INTERPRETATION & TRANSLATION,H636,INTERPRETATION & TRANSLATION,CORPORATE STRATEGY,CONSULTANCY
http://statistics.data.gov.uk/id/local-authority/43UM,WOKING BOROUGH COUNCIL,20/03/2020,01/04/2020,0000452291/001,JAYNE COOKE,40671500,120.00 ,CORPORATE STRATEGY - WAVS,INTERPRETATION & TRANSLATION,H636,INTERPRETATION & TRANSLATION,CORPORATE STRATEGY,CONSULTANCY
http://statistics.data.gov.uk/id/local-authority/43UM,WOKING BOROUGH COUNCIL,13/03/2020,01/04/2020,0000452292/001,JAYNE COOKE,40671500,120.00 ,CORPORATE STRATEGY - WAVS,INTERPRETATION & TRANSLATION,H636,INTERPRETATION & TRANSLATION,CORPORATE STRATEGY,CONSULTANCY
http://statistics.data.gov.uk/id/local-authority/43UM,WOKING BOROUGH COUNCIL,26/03/2020,01/04/2020,0000452293/001,LALEH MUSTAFA,40671400,228.00 ,CORPORATE STRATEGY - WAVS,INTERPRETATION & TRANSLATION,H636,INTERPRETATION & TRANSLATION,CORPORATE STRATEGY,CONSULTANCY
http://statistics.data.gov.uk/id/local-authority/43UM,WOKING BOROUGH COUNCIL,26/03/2020,01/04/2020,0000452287/001,MARTA SMITH,40662800,22.32 ,CORPORATE STRATEGY - WAVS,INTERPRETATION & TRANSLATION,H636,INTERPRETATION & TRANSLATION,CORPORATE STRATEGY,CONSULTANCY
http://statistics.data.gov.uk/id/local-authority/43UM,WOKING BOROUGH COUNCIL,26/03/2020,01/04/2020,0000452288/001,NYIT MEE MORBEY,40668000,35.01 ,CORPORATE STRATEGY - WAVS,INTERPRETATION & TRANSLATION,H636,INTERPRETATION & TRANSLATION,CORPORATE STRATEGY,CONSULTANCY
http://statistics.data.gov.uk/id/local-authority/43UM,WOKING BOROUGH COUNCIL,26/03/2020,01/04/2020,0000452289/001,SIU WAN THOMAS,00520200,22.00 ,CORPORATE STRATEGY - WAVS,INTERPRETATION & TRANSLATION,H636,INTERPRETATION & TRANSLATION,CORPORATE STRATEGY,CONSULTANCY
http://statistics.data.gov.uk/id/local-authority/43UM,WOKING BOROUGH COUNCIL,26/03/2020,01/04/2020,0000452290/001,SIU WAN THOMAS,00520200,92.25 ,CORPORATE STRATEGY - WAVS,INTERPRETATION & TRANSLATION,H636,INTERPRETATION & TRANSLATION,CORPORATE STRATEGY,CONSULTANCY
http://statistics.data.gov.uk/id/local-authority/43UM,WOKING BOROUGH COUNCIL,26/03/2020,01/04/2020,0000452294/001,YANGCHHEN YESHI,40674200,449.05 ,CORPORATE STRATEGY - WAVS,INTERPRETATION & TRANSLATION,H636,INTERPRETATION & TRANSLATION,CORPORATE STRATEGY,CONSULTANCY
http://statistics.data.gov.uk/id/local-authority/43UM,WOKING BOROUGH COUNCIL,01/04/2020,01/04/2020,GPC/00011292,WILKO RETAIL LIMITED,PROCUREMENT CARD,3.33 ,CORPORATE STRATEGY - VOLUNTARY DEVELOPMENT,CHARITY DEVELOPMENT,G118,SHOPPING COVID 19,ELSPETH LEIGH ANDREWS,MISC GEN MERCHANDISE - DEF
http://statistics.data.gov.uk/id/local-authority/43UM,WOKING BOROUGH COUNCIL,09/03/2020,01/04/2020,0000452308/001,FIELD COURT CHAMBERS,40818500,685.42 ,CORPORATE STRATEGY - LEGAL,LEGAL FEES,H677,LEGAL FEES,CORPORATE STRATEGY,LEGAL SERVICES
http://statistics.data.gov.uk/id/local-authority/43UM,WOKING BOROUGH COUNCIL,23/03/2020,01/04/2020,0000452231/001,DAVITT JONES BOULD LTD - SOLICITORS,01490800,631.00 ,CORPORATE STRATEGY - LEGAL,AD HOC WORK,H781,AD HOC WORK,CORPORATE STRATEGY,LEGAL SERVICES
http://statistics.data.gov.uk/id/local-authority/43UM,WOKING BOROUGH COUNCIL,23/03/2020,01/04/2020,0000452129/001,ROYAL MAIL GROUP LTD,00040000,0.47 ,CORPORATE STRATEGY - POSTAGE,POSTAGE - REPLY PAID,G710,POSTAGE - REPLY PAID,CORPORATE STRATEGY,MAIL SERVICES
http://statistics.data.gov.uk/id/local-authority/43UM,WOKING BOROUGH COUNCIL,23/03/2020,01/04/2020,0000452189/001,ROYAL MAIL GROUP LTD,00040000,217.50 ,CORPORATE STRATEGY - POSTAGE,POSTAGE - REPLY PAID,G710,POSTAGE - REPLY PAID,CORPORATE STRATEGY,MAIL SERVICES
http://statistics.data.gov.uk/id/local-authority/43UM,WOKING BOROUGH COUNCIL,31/03/2020,01/04/2020,0000452319/001,ARTON MONOSEAL LIMITED,01770200,630.00 ,ASSET MANAGEMENT - FACILITIES MANAGEMENT,FACILITIES MANAGEMENT REPAIRS,D908,FACILITIES MANAGEMENT REPAIRS,ASSET MANAGEMENT,WORKS (CONSTRUCTION REPAIR MAINTENANCE)
http://statistics.data.gov.uk/id/local-authority/43UM,WOKING BOROUGH COUNCIL,31/03/2020,01/04/2020,0000452319/002,ARTON MONOSEAL LIMITED,01770200,595.00 ,ASSET MANAGEMENT - FACILITIES MANAGEMENT,FACILITIES MANAGEMENT REPAIRS,D908,FACILITIES MANAGEMENT REPAIRS,ASSET MANAGEMENT,WORKS (CONSTRUCTION REPAIR MAINTENANCE)
http://statistics.data.gov.uk/id/local-authority/43UM,WOKING BOROUGH COUNCIL,01/04/2020,01/04/2020,GPC/00011293,AO RETAIL LIMITED,PROCUREMENT CARD,568.33 ,ASSET MANAGEMENT - CIVIC OFFICES,VIDEO EQUIPMENT - MAINTENANCE,G163,CIVIC OFFICE AV - CHAMBER,DAVID RASBURN,HOUSEHOLD APPLIANCE STORES
http://statistics.data.gov.uk/id/local-authority/43UM,WOKING BOROUGH COUNCIL,20/03/2020,01/04/2020,0000452188/001,FAITH RECRUITMENT,01709500,703.19 ,H G WELLS - H G WELLS SALES & MARKETING,TEMPORARY STAFF,A110,TEMPORARY STAFF,H G WELLS,HUMAN RESOURCES
http://statistics.data.gov.uk/id/local-authority/43UM,WOKING BOROUGH COUNCIL,13/03/2020,01/04/2020,0000452192/001,FAITH RECRUITMENT,01709500,633.70 ,H G WELLS - H G WELLS SALES & MARKETING,TEMPORARY STAFF,A110,TEMPORARY STAFF,H G WELLS,HUMAN RESOURCES
http://statistics.data.gov.uk/id/local-authority/43UM,WOKING BOROUGH COUNCIL,13/03/2020,01/04/2020,0000452192/002,FAITH RECRUITMENT,01709500,41.82 ,H G WELLS - H G WELLS SALES & MARKETING,TEMPORARY STAFF,A110,TEMPORARY STAFF,H G WELLS,HUMAN RESOURCES
http://statistics.data.gov.uk/id/local-authority/43UM,WOKING BOROUGH COUNCIL,19/03/2020,01/04/2020,0000452197/001,ICL MEDIA,01821200,500.00 ,H G WELLS - H G WELLS - FUNCTION ROOMS,AUDIO VISUAL TECHNICIANS,G124,AUDIO VISUAL TECHNICIANS,H G WELLS,INFORMATION COMMUNICATION TECHNOLOGY
http://statistics.data.gov.uk/id/local-authority/43UM,WOKING BOROUGH COUNCIL,29/03/2020,01/04/2020,0000452211/001,WEST HORSLEY DAIRY,00147600,78.00 ,H G WELLS - H G WELLS - CATERING,PROVISIONS-FOOD,G440,PROVISIONS-FOOD,H G WELLS,CATERING
http://statistics.data.gov.uk/id/local-authority/43UM,WOKING BOROUGH COUNCIL,28/02/2020,01/04/2020,0000450892/001,MARTIN CRANFIELD ASSOCIATES LTD,01474300,1125.00 ,NEIGHBOURHOOD SERVICES - NOISE/POLLUTION ABATE,CONSULTANTS,H670,CONSULTANTS,NEIGHBOURHOOD SERVICES,ENVIRONMENTAL SERVICES
http://statistics.data.gov.uk/id/local-authority/43UM,WOKING BOROUGH COUNCIL,27/03/2020,01/04/2020,0000452271/001,GIBBS & DANDY,40335300,311.45 ,HOUSING SERVICES - HOME IMPS & BEN AGENCY,HANDYPERSON MATERIALS,G201,HANDYPERSON MATERIALS,HOUSING SERVICES,BUILDING CONSTRUCTION MATERIALS
http://statistics.data.gov.uk/id/local-authority/43UM,WOKING BOROUGH COUNCIL,27/03/2020,01/04/2020,0000452273/001,GIBBS & DANDY,40335300,473.02 ,HOUSING SERVICES - HOME IMPS & BEN AGENCY,HANDYPERSON MATERIALS,G201,HANDYPERSON MATERIALS,HOUSING SERVICES,BUILDING CONSTRUCTION MATERIALS
http://statistics.data.gov.uk/id/local-authority/43UM,WOKING BOROUGH COUNCIL,25/03/2020,01/04/2020,0000452260/002,AFFINITY WATER,01095900,146.91 ,INDEPENDENT LIVING SERVICES - MEALS SERVICE - BROCKHILL,WATER,D700,WATER,INDEPENDENT LIVING SERVICES,UTILITIES
http://statistics.data.gov.uk/id/local-authority/43UM,WOKING BOROUGH COUNCIL,23/03/2020,01/04/2020,0000451947/001,WIGHTMAN & PARRISH LTD,40474600,170.04 ,INDEPENDENT LIVING SERVICES - MEALS SERVICE - BROCKHILL,CLEANING MATERIALS,D920,CLEANING MATERIALS,INDEPENDENT LIVING SERVICES,CLEANING & JANITORIAL
http://statistics.data.gov.uk/id/local-authority/43UM,WOKING BOROUGH COUNCIL,23/03/2020,01/04/2020,0000451947/002,WIGHTMAN & PARRISH LTD,40474600,170.04 ,INDEPENDENT LIVING SERVICES - MEALS SERVICE - BROCKHILL,CLEANING MATERIALS,D920,CLEANING MATERIALS,INDEPENDENT LIVING SERVICES,CLEANING & JANITORIAL
http://statistics.data.gov.uk/id/local-authority/43UM,WOKING BOROUGH COUNCIL,23/03/2020,01/04/2020,0000451947/003,WIGHTMAN & PARRISH LTD,40474600,58.38 ,INDEPENDENT LIVING SERVICES - MEALS SERVICE - BROCKHILL,CLEANING MATERIALS,D920,CLEANING MATERIALS,INDEPENDENT LIVING SERVICES,CLEANING & JANITORIAL
http://statistics.data.gov.uk/id/local-authority/43UM,WOKING BOROUGH COUNCIL,23/03/2020,01/04/2020,0000451949/001,WIGHTMAN & PARRISH LTD,40474600,22.95 ,INDEPENDENT LIVING SERVICES - MEALS SERVICE - BROCKHILL,CLEANING MATERIALS,D920,CLEANING MATERIALS,INDEPENDENT LIVING SERVICES,CLEANING & JANITORIAL
http://statistics.data.gov.uk/id/local-authority/43UM,WOKING BOROUGH COUNCIL,28/03/2020,01/04/2020,0000452208/001,CHEESMAN BROTHERS LTD,01050500,49.93 ,INDEPENDENT LIVING SERVICES - MEALS SERVICE - BROCKHILL,PROVISIONS,G410,PROVISIONS,INDEPENDENT LIVING SERVICES,CATERING
http://statistics.data.gov.uk/id/local-authority/43UM,WOKING BOROUGH COUNCIL,31/03/2020,01/04/2020,0000452305/001,HALLS ELECTRICAL,40870300,775.87 ,INDEPENDENT LIVING SERVICES - MEALS ON WHEELS,VEHICLE REPAIRS,F120,VEHICLE REPAIRS,INDEPENDENT LIVING SERVICES,CATERING
http://statistics.data.gov.uk/id/local-authority/43UM,WOKING BOROUGH COUNCIL,31/03/2020,01/04/2020,0000452306/001,HALLS ELECTRICAL,40870300,775.87 ,INDEPENDENT LIVING SERVICES - MEALS ON WHEELS,VEHICLE REPAIRS,F120,VEHICLE REPAIRS,INDEPENDENT LIVING SERVICES,CATERING
http://statistics.data.gov.uk/id/local-authority/43UM,WOKING BOROUGH COUNCIL,31/03/2020,01/04/2020,0000452307/001,HALLS ELECTRICAL,40870300,775.87 ,INDEPENDENT LIVING SERVICES - MEALS ON WHEELS,VEHICLE REPAIRS,F120,VEHICLE REPAIRS,INDEPENDENT LIVING SERVICES,CATERING
http://statistics.data.gov.uk/id/local-authority/43UM,WOKING BOROUGH COUNCIL,25/03/2020,01/04/2020,0000452053/001,PERSONNEL SELECTION ASSOCIATES LIMITED,00061400,53.20 ,INDEPENDENT LIVING SERVICES - MEALS ON WHEELS,PETROL,F200,PETROL,INDEPENDENT LIVING SERVICES,HUMAN RESOURCES
http://statistics.data.gov.uk/id/local-authority/43UM,WOKING BOROUGH COUNCIL,01/04/2020,01/04/2020,GPC/00011289,CO-OP GROUP FOOD,PROCUREMENT CARD,1.95 ,INDEPENDENT LIVING SERVICES - BROCKHILL DAY CARE,REFURBISHMENTS,D104,TV CHOICE MAGAZINE FOR BROCKHILL RESIDENTS,MRS M CHILCOTT,GROCERY STORES
http://statistics.data.gov.uk/id/local-authority/43UM,WOKING BOROUGH COUNCIL,01/04/2020,01/04/2020,GPC/00011290,WAITROSE 181,PROCUREMENT CARD,80.08 ,INDEPENDENT LIVING SERVICES - BROCKHILL DAY CARE,REFURBISHMENTS,D104,BROCKHILL SHOPPING FOR TENANTS,MRS M CHILCOTT,GROCERY STORES
http://statistics.data.gov.uk/id/local-authority/43UM,WOKING BOROUGH COUNCIL,25/03/2020,01/04/2020,0000452310/001,SCCI ALPHATRACK LTD,40103400,82.00 ,HOUSING SERVICES - NTL,R&M BUILDINGS - CONTRACTORS,D100,R&M BUILDINGS - CONTRACTORS,HOUSING SERVICES,WORKS (CONSTRUCTION REPAIR MAINTENANCE)
http://statistics.data.gov.uk/id/local-authority/43UM,WOKING BOROUGH COUNCIL,25/03/2020,01/04/2020,0000452311/001,SCCI ALPHATRACK LTD,40103400,82.00 ,HOUSING SERVICES - NTL,R&M BUILDINGS - CONTRACTORS,D100,R&M BUILDINGS - CONTRACTORS,HOUSING SERVICES,WORKS (CONSTRUCTION REPAIR MAINTENANCE)
http://statistics.data.gov.uk/id/local-authority/43UM,WOKING BOROUGH COUNCIL,25/03/2020,01/04/2020,0000452312/001,SCCI ALPHATRACK LTD,40103400,82.00 ,HOUSING SERVICES - NTL,R&M BUILDINGS - CONTRACTORS,D100,R&M BUILDINGS - CONTRACTORS,HOUSING SERVICES,WORKS (CONSTRUCTION REPAIR MAINTENANCE)
http://statistics.data.gov.uk/id/local-authority/43UM,WOKING BOROUGH COUNCIL,25/03/2020,01/04/2020,0000452313/001,SCCI ALPHATRACK LTD,40103400,77.00 ,HOUSING SERVICES - NTL,R&M BUILDINGS - CONTRACTORS,D100,R&M BUILDINGS - CONTRACTORS,HOUSING SERVICES,WORKS (CONSTRUCTION REPAIR MAINTENANCE)
http://statistics.data.gov.uk/id/local-authority/43UM,WOKING BOROUGH COUNCIL,25/03/2020,01/04/2020,0000452314/001,SCCI ALPHATRACK LTD,40103400,77.00 ,HOUSING SERVICES - NTL,R&M BUILDINGS - CONTRACTORS,D100,R&M BUILDINGS - CONTRACTORS,HOUSING SERVICES,WORKS (CONSTRUCTION REPAIR MAINTENANCE)
http://statistics.data.gov.uk/id/local-authority/43UM,WOKING BOROUGH COUNCIL,25/03/2020,01/04/2020,0000452315/001,SCCI ALPHATRACK LTD,40103400,77.00 ,HOUSING SERVICES - NTL,R&M BUILDINGS - CONTRACTORS,D100,R&M BUILDINGS - CONTRACTORS,HOUSING SERVICES,WORKS (CONSTRUCTION REPAIR MAINTENANCE)
http://statistics.data.gov.uk/id/local-authority/43UM,WOKING BOROUGH COUNCIL,31/03/2020,01/04/2020,0000452320/001,THAMESWEY MAINTENANCE SERVICES LIMITED,40007000,10579.68 ,HOUSING SERVICES - HEATING MAINTENANCE PLANT,TEL HOUSING PLANT ROOM MNT FEE,D186,TEL HOUSING PLANT ROOM MNT FEE,HOUSING SERVICES,WORKS (CONSTRUCTION REPAIR MAINTENANCE)
http://statistics.data.gov.uk/id/local-authority/43UM,WOKING BOROUGH COUNCIL,26/03/2020,01/04/2020,0000452256/001,EDF ENERGY CUSTOMERS PLC,01451600,66.90 ,HOUSING SERVICES - ENERGY,ELECTRICITY,D400,ELECTRICITY,HOUSING SERVICES,UTILITIES
http://statistics.data.gov.uk/id/local-authority/43UM,WOKING BOROUGH COUNCIL,31/03/2020,01/04/2020,0000452316/001,STC ENERGY MANAGEMENT LIMITED,40614500,675.07 ,HOUSING SERVICES - ENERGY,ENERGY BUREAU SERVICE,H489,ENERGY BUREAU SERVICE,HOUSING SERVICES,UTILITIES
http://statistics.data.gov.uk/id/local-authority/43UM,WOKING BOROUGH COUNCIL,25/03/2020,01/04/2020,0000452260/001,AFFINITY WATER,01095900,587.65 ,HOUSING SERVICES - LANDLORDS EXPENSES,WATER,D700,WATER,HOUSING SERVICES,UTILITIES
http://statistics.data.gov.uk/id/local-authority/43UM,WOKING BOROUGH COUNCIL,31/03/2020,01/04/2020,0000452317/001,MORGAN LAMBERT LIMITED,40581300,350.00 ,HOUSING SERVICES - HRA MARKET TESTING,CONSULTANTS,H670,CONSULTANTS,HOUSING SERVICES,FINANCIAL SERVICES
http://statistics.data.gov.uk/id/local-authority/43UM,WOKING BOROUGH COUNCIL,30/03/2020,01/04/2020,0000452284/001,ATKINSONS GUEST HOUSE,40250600,240.00 ,HOUSING SERVICES - HOUSING OPTIONS,BED & BREAKFAST EXPENDITURE,H786,BED & BREAKFAST EXPENDITURE,HOUSING SERVICES,HOUSING MANAGEMENT
http://statistics.data.gov.uk/id/local-authority/43UM,WOKING BOROUGH COUNCIL,30/03/2020,01/04/2020,0000452285/001,ATKINSONS GUEST HOUSE,40250600,735.00 ,HOUSING SERVICES - HOUSING OPTIONS,BED & BREAKFAST EXPENDITURE,H786,BED & BREAKFAST EXPENDITURE,HOUSING SERVICES,HOUSING MANAGEMENT
http://statistics.data.gov.uk/id/local-authority/43UM,WOKING BOROUGH COUNCIL,30/03/2020,01/04/2020,0000452295/001,PROJECT114 LTD,40370300,6230.00 ,HOUSING SERVICES - HOUSING OPTIONS,BED & BREAKFAST EXPENDITURE,H786,BED & BREAKFAST EXPENDITURE,HOUSING SERVICES,HOUSING MANAGEMENT
http://statistics.data.gov.uk/id/local-authority/43UM,WOKING BOROUGH COUNCIL,01/04/2020,01/04/2020,GPC/00011291,HIRE SRVS SOUTHERN LTD,PROCUREMENT CARD,-61.73 ,CORPORATE STRATEGY - LEISURE MANAGEMENT CONTRACT,R&M BUILDINGS - CONTRACTORS,D100,RETURNED ITEM FOR POOL IN THE PARK WORKS,MR C NORTON,EQUIP/FURN RENT/LEASE SERV
http://statistics.data.gov.uk/id/local-authority/43UM,WOKING BOROUGH COUNCIL,19/03/2020,01/04/2020,0000451768/001,HEADLINE DESIGN & PRINT,00016900,100.00 ,NEIGHBOURHOOD SERVICES - SPORTS DEVELOPMENT,ADVERTISING,H400,ADVERTISING,NEIGHBOURHOOD SERVICES,FINANCIAL SERVICES
http://statistics.data.gov.uk/id/local-authority/43UM,WOKING BOROUGH COUNCIL,30/03/2020,01/04/2020,0000452215/001,SHENA GRIGOR,40056300,109.80 ,NEIGHBOURHOOD SERVICES - SPORTS DEVELOPMENT,COACH EDUCATION,H657,COACH EDUCATION,NEIGHBOURHOOD SERVICES,ARTS & LEISURE SERVICES
http://statistics.data.gov.uk/id/local-authority/43UM,WOKING BOROUGH COUNCIL,01/04/2020,01/04/2020,GPC/00011294,FIREPROTECT,PROCUREMENT CARD,199.95 ,CORPORATE MANAGEMENT GROUP - STAFF TRAINING/GENERAL COSTS,COVID-19 SUPPLIES & SERVICES,H980,HAND SANITISER,LISA HARRINGTON,ELECTRONICS SALES
http://statistics.data.gov.uk/id/local-authority/43UM,WOKING BOROUGH COUNCIL,01/04/2020,01/04/2020,GPC/00011295,ADOBE ACROPRO SUBS,PROCUREMENT CARD,150.92 ,INFORMATION TECHNOLOGY - I.T.S. ICT,PC & SERVER SYSTEMS SOFTWARE,G193,ADOBE ACROBAT PRO SUBSCRIPTION,ANDREW GRESHAM,COMPUTER SOFTWARE STORES
http://statistics.data.gov.uk/id/local-authority/43UM,WOKING BOROUGH COUNCIL,01/04/2020,01/04/2020,GPC/00011288,AO RETAIL LIMITED,PROCUREMENT CARD,99.17 ,CORPORATE STRATEGY - COVID -19 PENDEMIC,MAIN CONTRACTOR,Q200,EMERGENCY MOVE NO FRIDGE IN PROPERTY,JANET COURTNEY,HOUSEHOLD APPLIANCE STORES
http://statistics.data.gov.uk/id/local-authority/43UM,WOKING BOROUGH COUNCIL,01/04/2020,01/04/2020,GPC/00011287,ARGOS LTD,PROCUREMENT CARD,27.46 ,CORPORATE STRATEGY - COVID-19 EMERGENCY SERV ACCOMODATION,ADDITIONAL EQUIPMENT,Q020,MOVE IN COST,ANGELLA KENTARO,DISCOUNT STORES
http://statistics.data.gov.uk/id/local-authority/43UM,WOKING BOROUGH COUNCIL,01/04/2020,01/04/2020,GPC/00011286,WWW.MATTRESSNEXTDAY.CO.U,PROCUREMENT CARD,120.75 ,CORPORATE STRATEGY - COVID-19 EMERGENCY SERV ACCOMODATION,ADDITIONAL EQUIPMENT,Q020,MOVING ON COSTS,ANGELLA KENTARO,FURNITURE/EQUIP STORES
http://statistics.data.gov.uk/id/local-authority/43UM,WOKING BOROUGH COUNCIL,01/04/2020,01/04/2020,GPC/00011296,WWW.MATTRESSNEXTDAY.CO.U,PROCUREMENT CARD,174.87 ,CORPORATE STRATEGY - COVID-19 EMERGENCY SERV ACCOMODATION,ADDITIONAL EQUIPMENT,Q020,MOVE ON COSTS,ANGELLA KENTARO,FURNITURE/EQUIP STORES
http://statistics.data.gov.uk/id/local-authority/43UM,WOKING BOROUGH COUNCIL,28/02/2020,01/04/2020,0000450979/001,VAIL WILLIAMS LLP,01844600,6000.00 ,ASSET MANAGEMENT - CLOCKTOWER (RED HOUSE),OTHER CONSULTANTS,Q430,OTHER CONSULTANTS,ASSET MANAGEMENT,CONSULTANCY
http://statistics.data.gov.uk/id/local-authority/43UM,WOKING BOROUGH COUNCIL,28/02/2020,01/04/2020,0000450979/002,VAIL WILLIAMS LLP,01844600,2152.54 ,ASSET MANAGEMENT - CLOCKTOWER (RED HOUSE),OTHER CONSULTANTS,Q430,OTHER CONSULTANTS,ASSET MANAGEMENT,CONSULTANCY
http://statistics.data.gov.uk/id/local-authority/43UM,WOKING BOROUGH COUNCIL,23/03/2020,01/04/2020,0000452264/001,ARTON MONOSEAL LIMITED,01770200,580.00 ,HOUSING SERVICES - DISABLED FACILITIES GRANTS,MANDATORY GRANTS,Q712,MANDATORY GRANTS,HOUSING SERVICES,WORKS (CONSTRUCTION REPAIR MAINTENANCE)
http://statistics.data.gov.uk/id/local-authority/43UM,WOKING BOROUGH COUNCIL,23/03/2020,01/04/2020,0000452269/001,ARTON MONOSEAL LTD,40470800,9394.00 ,HOUSING SERVICES - DISABLED FACILITIES GRANTS,MANDATORY GRANTS,Q712,MANDATORY GRANTS,HOUSING SERVICES,WORKS (CONSTRUCTION REPAIR MAINTENANCE)
http://statistics.data.gov.uk/id/local-authority/43UM,WOKING BOROUGH COUNCIL,23/03/2020,01/04/2020,0000452282/001,ARTON MONOSEAL LTD,40470800,9162.00 ,HOUSING SERVICES - DISABLED FACILITIES GRANTS,MANDATORY GRANTS,Q712,MANDATORY GRANTS,HOUSING SERVICES,WORKS (CONSTRUCTION REPAIR MAINTENANCE)
http://statistics.data.gov.uk/id/local-authority/43UM,WOKING BOROUGH COUNCIL,10/03/2020,01/04/2020,0000452262/001,AST SERVICES LIMITED,40700200,750.00 ,HOUSING SERVICES - DISABLED FACILITIES GRANTS,MANDATORY GRANTS,Q712,MANDATORY GRANTS,HOUSING SERVICES,FINANCIAL SERVICES
http://statistics.data.gov.uk/id/local-authority/43UM,WOKING BOROUGH COUNCIL,02/04/2020,02/04/2020,GPC/00011300,AMZNMKTPLACE,PROCUREMENT CARD,16.23 ,REVENUES AND BENEFITS - RESOURCES GENERAL EXPENSES,TRAVEL EXPENSES-OFFICERS,F600,PHONE STAND FOR HOME OFFICE,BEN JONES,MISC SPECIALITY RETAIL
http://statistics.data.gov.uk/id/local-authority/43UM,WOKING BOROUGH COUNCIL,02/04/2020,02/04/2020,GPC/00011305,PAYPAL,PROCUREMENT CARD,57.46 ,ASSET MANAGEMENT - ASSET MANAGEMENT GENERAL EXPEN,GENERAL SAFETY,G196,SAFETY BOOTS D RASBURN,DAVID RASBURN,MISC APPAREL/ACCESS SHOPS
http://statistics.data.gov.uk/id/local-authority/43UM,WOKING BOROUGH COUNCIL,02/04/2020,02/04/2020,GPC/00011297,FORCES WAR RECORDS,PROCUREMENT CARD,7.46 ,NEIGHBOURHOOD SERVICES - COMMUNITY DEVELOPMENT,CONFERENCE EXPENSES,A790,WW FORCES RECORDS,ZAFAR IQBAL,INFORMATION RETRIEVAL SERVICES
http://statistics.data.gov.uk/id/local-authority/43UM,WOKING BOROUGH COUNCIL,02/04/2020,02/04/2020,GPC/00011304,AMAZON.CO.UK,PROCUREMENT CARD,226.46 ,INDEPENDENT LIVING SERVICES - MOORCROFT,REFURBISHMENTS,D104,REPLACEMENT FOR BROKEN DELIVERY,RICHARD BUCKENHAM,OTHER DIRECT MARKETERS
http://statistics.data.gov.uk/id/local-authority/43UM,WOKING BOROUGH COUNCIL,02/04/2020,02/04/2020,GPC/00011302,ALLIANCE DISPOSABLES,PROCUREMENT CARD,64.00 ,INDEPENDENT LIVING SERVICES - MEALS SERVICE - BROCKHILL,PROVISIONS,G410,GLOVES FOR DELIVERERS,REBECCA STEVENS,CATERERS
http://statistics.data.gov.uk/id/local-authority/43UM,WOKING BOROUGH COUNCIL,02/04/2020,02/04/2020,GPC/00011303,BOOKERECOMM,PROCUREMENT CARD,123.39 ,INDEPENDENT LIVING SERVICES - MEALS SERVICE - BROCKHILL,PROVISIONS,G410,GROCERIES FOR KITCHENS,REBECCA STEVENS,CATERERS
http://statistics.data.gov.uk/id/local-authority/43UM,WOKING BOROUGH COUNCIL,02/04/2020,02/04/2020,GPC/00011299,MARTIN MCCOLL,PROCUREMENT CARD,8.65 ,INDEPENDENT LIVING SERVICES - BROCKHILL DAY CARE,REFURBISHMENTS,D104,MAGAZINES FOR BROCKHILL,MRS M CHILCOTT,MISC FOOD STORES - DEFAULT
http://statistics.data.gov.uk/id/local-authority/43UM,WOKING BOROUGH COUNCIL,02/04/2020,02/04/2020,GPC/00011298,WAITROSE 181,PROCUREMENT CARD,8.18 ,INDEPENDENT LIVING SERVICES - BROCKHILL DAY CARE,REFURBISHMENTS,D104,WAITROSE SHOPPING FOR TENANTS,MRS M CHILCOTT,GROCERY STORES
http://statistics.data.gov.uk/id/local-authority/43UM,WOKING BOROUGH COUNCIL,02/04/2020,02/04/2020,GPC/00011308,AMZNMKTPLACE,PROCUREMENT CARD,6.66 ,INDEPENDENT LIVING SERVICES - FAMILY CENTRES,NEW EQUIPMENT,G105,EARPHONES,NASREEN FAROOQ,MISC SPECIALITY RETAIL
http://statistics.data.gov.uk/id/local-authority/43UM,WOKING BOROUGH COUNCIL,02/04/2020,02/04/2020,GPC/00011307,WWW.MOBILEFUN.CO.U,PROCUREMENT CARD,10.15 ,INDEPENDENT LIVING SERVICES - FAMILY CENTRES,NEW EQUIPMENT,G105,BLUETOOTH EARPHONES,NASREEN FAROOQ,PHONE SERV/EQUIP NON-UTIL
http://statistics.data.gov.uk/id/local-authority/43UM,WOKING BOROUGH COUNCIL,02/04/2020,02/04/2020,GPC/00011306,WWW.MOBILEFUN.CO.U,PROCUREMENT CARD,10.15 ,INDEPENDENT LIVING SERVICES - FAMILY CENTRES,NEW EQUIPMENT,G105,BLUETOOTH EARPHONES,NASREEN FAROOQ,PHONE SERV/EQUIP NON-UTIL
http://statistics.data.gov.uk/id/local-authority/43UM,WOKING BOROUGH COUNCIL,02/04/2020,02/04/2020,GPC/00011309,PAYPAL,PROCUREMENT CARD,1235.31 ,CORPORATE STRATEGY - COVID -19 PENDEMIC,MAIN CONTRACTOR,Q200,SANITISERS FOR COVID 19,SANDRA ARCHER,ADVERTISING SERVICES
http://statistics.data.gov.uk/id/local-authority/43UM,WOKING BOROUGH COUNCIL,02/04/2020,02/04/2020,GPC/00011301,WWW.DEOS.CO.UK,PROCUREMENT CARD,435.56 ,CORPORATE STRATEGY - COVID -19 PENDEMIC,MAIN CONTRACTOR,Q200,SANITISER,MRS F M WALTHER,STATIONERY STORES
http://statistics.data.gov.uk/id/local-authority/43UM,WOKING BOROUGH COUNCIL,03/04/2020,03/04/2020,GPC/00011318,AMZNMKTPLACE,PROCUREMENT CARD,20.79 ,INDEPENDENT LIVING SERVICES - MOORCROFT,STATIONERY,G620,REFURB,RICHARD BUCKENHAM,MISC SPECIALITY RETAIL
http://statistics.data.gov.uk/id/local-authority/43UM,WOKING BOROUGH COUNCIL,03/04/2020,03/04/2020,GPC/00011317,AMZNMKTPLACE AMAZON.CO.UK,PROCUREMENT CARD,16.62 ,INDEPENDENT LIVING SERVICES - MOORCROFT,COVID-19 SUPPLIES & SERVICES,H980,COVID 19,RICHARD BUCKENHAM,MISC SPECIALITY RETAIL
http://statistics.data.gov.uk/id/local-authority/43UM,WOKING BOROUGH COUNCIL,18/03/2020,03/04/2020,0000451871/001,ALLSTAR BUSINESS SOLUTIONS LTD,01500600,113.40 ,INDEPENDENT LIVING SERVICES - MEALS ON WHEELS,PETROL,F200,PETROL,INDEPENDENT LIVING SERVICES,UTILITIES
http://statistics.data.gov.uk/id/local-authority/43UM,WOKING BOROUGH COUNCIL,03/04/2020,03/04/2020,GPC/00011323,BOOTS 5073,PROCUREMENT CARD,1.08 ,INDEPENDENT LIVING SERVICES - BROCKHILL DAY CARE,REFURBISHMENTS,D104,BROCKHILL RESIDENT SHOPPING,GARY CORDERY,DRUG STORES AND PHARMACIES
http://statistics.data.gov.uk/id/local-authority/43UM,WOKING BOROUGH COUNCIL,03/04/2020,03/04/2020,GPC/00011321,AMZNMKTPLACE,PROCUREMENT CARD,6.66 ,INDEPENDENT LIVING SERVICES - FAMILY CENTRES,NEW EQUIPMENT,G105,EARPHONES,NASREEN FAROOQ,MISC SPECIALITY RETAIL
http://statistics.data.gov.uk/id/local-authority/43UM,WOKING BOROUGH COUNCIL,03/04/2020,03/04/2020,GPC/00011322,AMZNMKTPLACE,PROCUREMENT CARD,6.66 ,INDEPENDENT LIVING SERVICES - FAMILY CENTRES,NEW EQUIPMENT,G105,EARPHONES,NASREEN FAROOQ,MISC SPECIALITY RETAIL
http://statistics.data.gov.uk/id/local-authority/43UM,WOKING BOROUGH COUNCIL,02/04/2020,03/04/2020,0000452374/001,DRUMBEAT EXHIBITIONS,00909300,21000.00 ,CORPORATE STRATEGY - TOWN CENTRE FORUM,ECDEV CMG AGREED CONTINGENCY,H417,ECDEV CMG AGREED CONTINGENCY,CORPORATE STRATEGY,ARTS & LEISURE SERVICES
http://statistics.data.gov.uk/id/local-authority/43UM,WOKING BOROUGH COUNCIL,03/04/2020,03/04/2020,GPC/00011313,WWW.SIGN-UP.TO,PROCUREMENT CARD,100.00 ,CORPORATE STRATEGY - PUBLIC RELATIONS,GENERAL PUBLIC RELATIONS EXPNS,H915,MONTHLY FEE,MR GLENN J THOROGOOD,ADVERTISING SERVICES
http://statistics.data.gov.uk/id/local-authority/43UM,WOKING BOROUGH COUNCIL,03/04/2020,03/04/2020,GPC/00011320,R H ENVIRONMENTAL LTD,PROCUREMENT CARD,67.50 ,CORPORATE MANAGEMENT GROUP - STAFF TRAINING/GENERAL COSTS,TRAINING - CORPORATE,A910,EXTERNAL TRAINING,SHAUN MOSS,COMPUTER SOFTWARE STORES
http://statistics.data.gov.uk/id/local-authority/43UM,WOKING BOROUGH COUNCIL,03/04/2020,03/04/2020,GPC/00011324,SQ *LEGIONELLA CONTROL IN,PROCUREMENT CARD,308.43 ,CORPORATE MANAGEMENT GROUP - STAFF TRAINING/GENERAL COSTS,TRAINING - CORPORATE,A910,LEGIONELLA TRAINING COURSE R HAZLEWOOD,SANDRA ARCHER,MGMT/CONSULT/PUBLIC REL SER
http://statistics.data.gov.uk/id/local-authority/43UM,WOKING BOROUGH COUNCIL,25/03/2020,03/04/2020,0030002141/001,MACE LIMITED,40012600,40000.00 ,ASSET MANAGEMENT - WOKING SHOPPING ESCALATORS,MAIN CONTRACTOR,Q200,MAIN CONTRACTOR,ASSET MANAGEMENT,CONSULTANCY
http://statistics.data.gov.uk/id/local-authority/43UM,WOKING BOROUGH COUNCIL,04/04/2020,04/04/2020,GPC/00011311,AMZNMKTPLACE,PROCUREMENT CARD,74.92 ,HOUSING SERVICES - HOME IMPS & BEN AGENCY,HANDYPERSON MATERIALS,G201,HANDYPERSON MATERIALS,IAN DEANE,MISC SPECIALITY RETAIL
http://statistics.data.gov.uk/id/local-authority/43UM,WOKING BOROUGH COUNCIL,04/04/2020,04/04/2020,GPC/00011312,BROOKWOOD FISHERIES,PROCUREMENT CARD,182.50 ,INDEPENDENT LIVING SERVICES - BROCKHILL EXTRA CARE,COVID-19 SUPPLIES & SERVICES,H980,COVID PURCHASE FOR RESIDENTS OF BROCKHILL,IAN DEANE,FAST FOOD RESTAURANTS
http://statistics.data.gov.uk/id/local-authority/43UM,WOKING BOROUGH COUNCIL,04/04/2020,04/04/2020,GPC/00011314,AMZNMKTPLACE,PROCUREMENT CARD,14.18 ,INDEPENDENT LIVING SERVICES - FAMILY SUPPORT PROGRAMME,FAMILY ENABLING (FSP PROJECT),H137,STATIONERY FOR FAMILY,PALLAVI SHARAN,MISC SPECIALITY RETAIL
http://statistics.data.gov.uk/id/local-authority/43UM,WOKING BOROUGH COUNCIL,05/04/2020,05/04/2020,GPC/00011316,AMAZON.CO.UK,PROCUREMENT CARD,33.32 ,REVENUES AND BENEFITS - RESOURCES GENERAL EXPENSES,TRAVEL EXPENSES-OFFICERS,F600,PRINTER/SCANNER,GIUSEPPE AMICO,OTHER DIRECT MARKETERS
http://statistics.data.gov.uk/id/local-authority/43UM,WOKING BOROUGH COUNCIL,05/04/2020,05/04/2020,GPC/00011319,AMZNMKTPLACE,PROCUREMENT CARD,27.49 ,INDEPENDENT LIVING SERVICES - MOORCROFT,REFURBISHMENTS,D104,REFURB,RICHARD BUCKENHAM,MISC SPECIALITY RETAIL
http://statistics.data.gov.uk/id/local-authority/43UM,WOKING BOROUGH COUNCIL,05/04/2020,05/04/2020,GPC/00011310,WAITROSE 181,PROCUREMENT CARD,154.60 ,INDEPENDENT LIVING SERVICES - BROCKHILL DAY CARE,REFURBISHMENTS,D104,BROCKHILL SHOPPING FOR RESIDENTS,MRS M CHILCOTT,GROCERY STORES
http://statistics.data.gov.uk/id/local-authority/43UM,WOKING BOROUGH COUNCIL,05/04/2020,05/04/2020,GPC/00011315,AMZNMKTPLACE,PROCUREMENT CARD,108.20 ,INFORMATION TECHNOLOGY - ICT GENERAL REPLACEMENT 2020/21,ADDITIONAL EQUIPMENT,Q020,20 X SAMSUNG A20E CASES,MR G S SANDHU,MISC SPECIALITY RETAIL
http://statistics.data.gov.uk/id/local-authority/43UM,WOKING BOROUGH COUNCIL,06/04/2020,06/04/2020,GPC/00011332,WAITROSE 181,PROCUREMENT CARD,102.69 ,INDEPENDENT LIVING SERVICES - BROCKHILL EXTRA CARE,COVID-19 SUPPLIES & SERVICES,H980,EASTER SUPPLIES - BROCKHILL,GARY CORDERY,GROCERY STORES
http://statistics.data.gov.uk/id/local-authority/43UM,WOKING BOROUGH COUNCIL,06/04/2020,06/04/2020,GPC/00011333,WAITROSE 181,PROCUREMENT CARD,63.85 ,INDEPENDENT LIVING SERVICES - BROCKHILL EXTRA CARE,COVID-19 SUPPLIES & SERVICES,H980,EASTER SUPPLIES - BROCKHILL,GARY CORDERY,GROCERY STORES
http://statistics.data.gov.uk/id/local-authority/43UM,WOKING BOROUGH COUNCIL,06/04/2020,06/04/2020,GPC/00011325,WAITROSE 181,PROCUREMENT CARD,49.97 ,INDEPENDENT LIVING SERVICES - BROCKHILL EXTRA CARE,COVID-19 SUPPLIES & SERVICES,H980,WAITROSE SHOPPING,MRS M CHILCOTT,GROCERY STORES
http://statistics.data.gov.uk/id/local-authority/43UM,WOKING BOROUGH COUNCIL,06/04/2020,06/04/2020,GPC/00011326,WWW.BOZFRUITVEG.CO.UK,PROCUREMENT CARD,60.00 ,INDEPENDENT LIVING SERVICES - BROCKHILL EXTRA CARE,COVID-19 SUPPLIES & SERVICES,H980,FRUIT FOR BROCKHILL,REBECCA STEVENS,COMPUTER SOFTWARE STORES
http://statistics.data.gov.uk/id/local-authority/43UM,WOKING BOROUGH COUNCIL,06/04/2020,06/04/2020,GPC/00011330,WICKES BUILDING,PROCUREMENT CARD,50.00 ,INDEPENDENT LIVING SERVICES - PARKVIEW,REFURBISHMENTS,D104,PAINT FOR THE CENTRE,DONNA GREGORY,LUMBER/BUILD SUPPLY STORES
http://statistics.data.gov.uk/id/local-authority/43UM,WOKING BOROUGH COUNCIL,06/04/2020,06/04/2020,GPC/00011329,SAINSBURYS,PROCUREMENT CARD,3.95 ,INDEPENDENT LIVING SERVICES - PARKVIEW,COVID-19 SUPPLIES & SERVICES,H980,BREAD FOR WOODLANDS HOUSE,DONNA GREGORY,GROCERY STORES
http://statistics.data.gov.uk/id/local-authority/43UM,WOKING BOROUGH COUNCIL,06/04/2020,06/04/2020,GPC/00011331,SETON,PROCUREMENT CARD,9.71 ,CORPORATE MANAGEMENT GROUP - STAFF TRAINING/GENERAL COSTS,HEALTH CARE,A780,CLEAN YOUR HANDS SIGN,LISA HARRINGTON,DURABLE GOODS - DEFAULT
http://statistics.data.gov.uk/id/local-authority/43UM,WOKING BOROUGH COUNCIL,06/04/2020,06/04/2020,GPC/00011328,WOKING TOWNGTE 1,PROCUREMENT CARD,100.00 ,HOUSING SERVICES - SYRIAN REFUGEE FAMILES,CONTRIBUTION,Q623,FAMILY CASH,PHILIP OGLESBY,FINANCIAL INST/AUTO CASH
http://statistics.data.gov.uk/id/local-authority/43UM,WOKING BOROUGH COUNCIL,06/04/2020,06/04/2020,GPC/00011327,AMZNMKTPLACE,PROCUREMENT CARD,27.99 ,INFORMATION TECHNOLOGY - ICT GENERAL REPLACEMENT 2020/21,REPLACEMENT EQUIPMENT,Q010,1 X PROCASE IPAD 10.2 2019 KEYBOARD CASE,MR G S SANDHU,MISC SPECIALITY RETAIL
http://statistics.data.gov.uk/id/local-authority/43UM,WOKING BOROUGH COUNCIL,01/04/2020,07/04/2020,0000452368/001,BDI SECURITIES,40768200,29.92 ,FINANCIAL SERVICES - CORPORATE MANAGEMENT (FINANCE),CSS BANK CHARGES,H619,CSS BANK CHARGES,FINANCIAL SERVICES,FINANCIAL SERVICES
http://statistics.data.gov.uk/id/local-authority/43UM,WOKING BOROUGH COUNCIL,01/04/2020,07/04/2020,0000452456/004,BDI SECURITIES,40768200,60.00 ,ASSET MANAGEMENT - PEACOCK WALK MARKET,CASH COLLECTION SERVICE,H600,CASH COLLECTION SERVICE,ASSET MANAGEMENT,FINANCIAL SERVICES
http://statistics.data.gov.uk/id/local-authority/43UM,WOKING BOROUGH COUNCIL,01/04/2020,07/04/2020,0000452456/005,BDI SECURITIES,40768200,60.00 ,ASSET MANAGEMENT - FISHMONGER TRADING,CASH COLLECTION SERVICE,H600,CASH COLLECTION SERVICE,ASSET MANAGEMENT,FINANCIAL SERVICES
http://statistics.data.gov.uk/id/local-authority/43UM,WOKING BOROUGH COUNCIL,01/04/2020,07/04/2020,0000452441/001,ENTERPRISE RENT-A-CAR,40570900,231.04 ,CORPORATE MANAGEMENT GROUP - LEASED CAR RELIEF,EXPEND FROM FUND,T750,EXPEND FROM FUND,CORPORATE MANAGEMENT GROUP,VEHICLE MANAGEMENT
http://statistics.data.gov.uk/id/local-authority/43UM,WOKING BOROUGH COUNCIL,01/04/2020,07/04/2020,0000452442/001,ENTERPRISE RENT-A-CAR,40570900,162.14 ,CORPORATE MANAGEMENT GROUP - LEASED CAR RELIEF,EXPEND FROM FUND,T750,EXPEND FROM FUND,CORPORATE MANAGEMENT GROUP,VEHICLE MANAGEMENT
http://statistics.data.gov.uk/id/local-authority/43UM,WOKING BOROUGH COUNCIL,02/04/2020,07/04/2020,0000452362/001,GREENWICH CONTRACTS LIMITED,40656500,1000.00 ,REVENUES AND BENEFITS - BENEFIT SERVICES,TEMPORARY STAFF,A110,TEMPORARY STAFF,REVENUES AND BENEFITS,CONSULTANCY
http://statistics.data.gov.uk/id/local-authority/43UM,WOKING BOROUGH COUNCIL,03/04/2020,07/04/2020,0000452365/001,GREENWICH CONTRACTS LIMITED,40656500,1000.00 ,REVENUES AND BENEFITS - BENEFIT SERVICES,TEMPORARY STAFF,A110,TEMPORARY STAFF,REVENUES AND BENEFITS,CONSULTANCY
http://statistics.data.gov.uk/id/local-authority/43UM,WOKING BOROUGH COUNCIL,01/04/2020,07/04/2020,0000452486/001,VENN GROUP LIMITED,40383900,1309.44 ,REVENUES AND BENEFITS - BENEFIT SERVICES,TEMPORARY STAFF,A110,TEMPORARY STAFF,REVENUES AND BENEFITS,HUMAN RESOURCES
http://statistics.data.gov.uk/id/local-authority/43UM,WOKING BOROUGH COUNCIL,01/04/2020,07/04/2020,0000452456/002,BDI SECURITIES,40768200,75.00 ,CORPORATE STRATEGY - CUSTOMER SERVICES,CASH COLLECTION SERVICE,H600,CASH COLLECTION SERVICE,CORPORATE STRATEGY,FINANCIAL SERVICES
http://statistics.data.gov.uk/id/local-authority/43UM,WOKING BOROUGH COUNCIL,01/04/2020,07/04/2020,0000452448/001,GEMINI CONSULTANTS LTD,01152000,8684.62 ,HOUSING SERVICES - HOUSING ADVANCES-ADMIN,PAYMENTS TO CONTRACTOR,J791,PAYMENTS TO CONTRACTOR,HOUSING SERVICES,CONSULTANCY
http://statistics.data.gov.uk/id/local-authority/43UM,WOKING BOROUGH COUNCIL,01/04/2020,07/04/2020,0000452472/002,SURREY COUNTY COUNCIL-PENSION CONTRIBS,40235700,28899.46 ,FINANCIAL SERVICES - OTHER OPERATING EXPENDITURE,TR FROM SLA'S ETC,U999,TR FROM SLA'S ETC,FINANCIAL SERVICES,FINANCIAL SERVICES
http://statistics.data.gov.uk/id/local-authority/43UM,WOKING BOROUGH COUNCIL,01/04/2020,07/04/2020,0000452474/002,SURREY COUNTY COUNCIL-PENSION CONTRIBS,40235700,7555.04 ,FINANCIAL SERVICES - OTHER OPERATING EXPENDITURE,TR FROM SLA'S ETC,U999,TR FROM SLA'S ETC,FINANCIAL SERVICES,FINANCIAL SERVICES
http://statistics.data.gov.uk/id/local-authority/43UM,WOKING BOROUGH COUNCIL,01/04/2020,07/04/2020,0000452472/001,SURREY COUNTY COUNCIL-PENSION CONTRIBS,40235700,5099.91 ,HOUSING SERVICES - CORPORATE MANAGEMENT,MANAGEMENT OF CHANGE,A732,MANAGEMENT OF CHANGE,HOUSING SERVICES,FINANCIAL SERVICES
http://statistics.data.gov.uk/id/local-authority/43UM,WOKING BOROUGH COUNCIL,01/04/2020,07/04/2020,0000452474/001,SURREY COUNTY COUNCIL-PENSION CONTRIBS,40235700,5036.70 ,HOUSING SERVICES - CORPORATE MANAGEMENT,MANAGEMENT OF CHANGE,A732,MANAGEMENT OF CHANGE,HOUSING SERVICES,FINANCIAL SERVICES
http://statistics.data.gov.uk/id/local-authority/43UM,WOKING BOROUGH COUNCIL,01/04/2020,07/04/2020,0000452475/001,SURREY COUNTY COUNCIL-PENSION CONTRIBS,40235700,6329.05 ,HOUSING SERVICES - CORPORATE MANAGEMENT,MANAGEMENT OF CHANGE,A732,MANAGEMENT OF CHANGE,HOUSING SERVICES,FINANCIAL SERVICES
http://statistics.data.gov.uk/id/local-authority/43UM,WOKING BOROUGH COUNCIL,14/02/2020,07/04/2020,0000452276/001,LAYERV C/O PULSANT LIMITED,40884500,14120.00 ,FINANCIAL SERVICES - SUNDRY DEPOSITS,SUNDRY DEPOSITS,S400,SUNDRY DEPOSITS,FINANCIAL SERVICES,HOUSING MANAGEMENT
http://statistics.data.gov.uk/id/local-authority/43UM,WOKING BOROUGH COUNCIL,06/04/2020,07/04/2020,0000452421/001,KENT FINANCIAL SERVICES,40484900,45.00 ,HOUSING SERVICES - HOUSING OPTIONS DEPOSITS,DEPOSITS,T720,DEPOSITS,HOUSING SERVICES,FINANCIAL SERVICES
http://statistics.data.gov.uk/id/local-authority/43UM,WOKING BOROUGH COUNCIL,21/02/2020,07/04/2020,0000452390/001,THAMESWEY HOUSING LIMITED,40790400,966.16 ,HOUSING SERVICES - HOUSING OPTIONS DEPOSITS,DEPOSITS,T720,DEPOSITS,HOUSING SERVICES,FINANCIAL SERVICES
http://statistics.data.gov.uk/id/local-authority/43UM,WOKING BOROUGH COUNCIL,25/03/2020,07/04/2020,0000452429/001,DIANA BURCH ARTIST,40886200,800.00 ,NEIGHBOURHOOD SERVICES - ARTS PARTNERSHIP SURREY,MISCELLANEOUS EXPENSES,X827,MISCELLANEOUS EXPENSES,NEIGHBOURHOOD SERVICES,ARTS & LEISURE SERVICES
http://statistics.data.gov.uk/id/local-authority/43UM,WOKING BOROUGH COUNCIL,25/03/2020,07/04/2020,0000452127/001,HOLLIE MILLER,40884600,800.00 ,NEIGHBOURHOOD SERVICES - ARTS PARTNERSHIP SURREY,MISCELLANEOUS EXPENSES,X827,MISCELLANEOUS EXPENSES,NEIGHBOURHOOD SERVICES,ARTS & LEISURE SERVICES
http://statistics.data.gov.uk/id/local-authority/43UM,WOKING BOROUGH COUNCIL,24/03/2020,07/04/2020,0000452013/001,MRS J OLGIVIE T/A SHARP PENCIL DESIGN,40883700,810.00 ,NEIGHBOURHOOD SERVICES - ARTS PARTNERSHIP SURREY,MISCELLANEOUS EXPENSES,X827,MISCELLANEOUS EXPENSES,NEIGHBOURHOOD SERVICES,ARTS & LEISURE SERVICES
http://statistics.data.gov.uk/id/local-authority/43UM,WOKING BOROUGH COUNCIL,23/03/2020,07/04/2020,0000452232/001,DAVITT JONES BOULD LTD - SOLICITORS,01490800,287.30 ,CORPORATE STRATEGY - LEGAL,AD HOC WORK,H781,AD HOC WORK,CORPORATE STRATEGY,LEGAL SERVICES
http://statistics.data.gov.uk/id/local-authority/43UM,WOKING BOROUGH COUNCIL,23/03/2020,07/04/2020,0000452233/001,DAVITT JONES BOULD LTD - SOLICITORS,01490800,423.90 ,CORPORATE STRATEGY - LEGAL,AD HOC WORK,H781,AD HOC WORK,CORPORATE STRATEGY,LEGAL SERVICES
http://statistics.data.gov.uk/id/local-authority/43UM,WOKING BOROUGH COUNCIL,23/03/2020,07/04/2020,0000452234/001,DAVITT JONES BOULD LTD - SOLICITORS,01490800,236.60 ,CORPORATE STRATEGY - LEGAL,AD HOC WORK,H781,AD HOC WORK,CORPORATE STRATEGY,LEGAL SERVICES
http://statistics.data.gov.uk/id/local-authority/43UM,WOKING BOROUGH COUNCIL,23/03/2020,07/04/2020,0000452235/001,DAVITT JONES BOULD LTD - SOLICITORS,01490800,172.70 ,CORPORATE STRATEGY - LEGAL,AD HOC WORK,H781,AD HOC WORK,CORPORATE STRATEGY,LEGAL SERVICES
http://statistics.data.gov.uk/id/local-authority/43UM,WOKING BOROUGH COUNCIL,23/03/2020,07/04/2020,0000452236/001,DAVITT JONES BOULD LTD - SOLICITORS,01490800,554.10 ,CORPORATE STRATEGY - LEGAL,AD HOC WORK,H781,AD HOC WORK,CORPORATE STRATEGY,LEGAL SERVICES
http://statistics.data.gov.uk/id/local-authority/43UM,WOKING BOROUGH COUNCIL,23/03/2020,07/04/2020,0000452237/001,DAVITT JONES BOULD LTD - SOLICITORS,01490800,188.40 ,CORPORATE STRATEGY - LEGAL,AD HOC WORK,H781,AD HOC WORK,CORPORATE STRATEGY,LEGAL SERVICES
http://statistics.data.gov.uk/id/local-authority/43UM,WOKING BOROUGH COUNCIL,23/03/2020,07/04/2020,0000452238/001,DAVITT JONES BOULD LTD - SOLICITORS,01490800,415.20 ,CORPORATE STRATEGY - LEGAL,AD HOC WORK,H781,AD HOC WORK,CORPORATE STRATEGY,LEGAL SERVICES
http://statistics.data.gov.uk/id/local-authority/43UM,WOKING BOROUGH COUNCIL,23/03/2020,07/04/2020,0000452250/001,DAVITT JONES BOULD LTD - SOLICITORS,01490800,425.50 ,CORPORATE STRATEGY - LEGAL,AD HOC WORK,H781,AD HOC WORK,CORPORATE STRATEGY,LEGAL SERVICES
http://statistics.data.gov.uk/id/local-authority/43UM,WOKING BOROUGH COUNCIL,06/01/2020,07/04/2020,0000452428/001,YORK ROAD PROJECT,01196700,58516.36 ,CORPORATE STRATEGY - GRANTS TO ORGANISATION,GRANTS,H100,GRANTS,CORPORATE STRATEGY,FINANCIAL SERVICES
http://statistics.data.gov.uk/id/local-authority/43UM,WOKING BOROUGH COUNCIL,01/04/2020,07/04/2020,0000452418/001,WESTCOUNTRY GROUP,00864400,978.40 ,CORPORATE STRATEGY - POSTAGE,STATIONERY,G620,STATIONERY,CORPORATE STRATEGY,STATIONERY
http://statistics.data.gov.uk/id/local-authority/43UM,WOKING BOROUGH COUNCIL,03/04/2020,07/04/2020,0000452487/001,SHARP CAT LTD,40073500,13340.74 ,CORPORATE STRATEGY - POSTAGE,POSTAGE - STANDARD TARIFF,G700,POSTAGE - STANDARD TARIFF,CORPORATE STRATEGY,MAIL SERVICES
http://statistics.data.gov.uk/id/local-authority/43UM,WOKING BOROUGH COUNCIL,30/03/2020,07/04/2020,0000452283/001,ANDERSON STRATHERN LLP,40105500,2984.00 ,ASSET MANAGEMENT - PROPERTY SERVICES,CONSULTANTS,H670,CONSULTANTS,ASSET MANAGEMENT,LEGAL SERVICES
http://statistics.data.gov.uk/id/local-authority/43UM,WOKING BOROUGH COUNCIL,03/04/2020,07/04/2020,0000452402/001,SAVILLS,00424100,1750.00 ,ASSET MANAGEMENT - PROPERTY SERVICES,CONSULTANTS,H670,CONSULTANTS,ASSET MANAGEMENT,WORKS (CONSTRUCTION REPAIR MAINTENANCE)
http://statistics.data.gov.uk/id/local-authority/43UM,WOKING BOROUGH COUNCIL,03/04/2020,07/04/2020,0000452402/002,SAVILLS,00424100,1000.00 ,ASSET MANAGEMENT - PROPERTY SERVICES,CONSULTANTS,H670,CONSULTANTS,ASSET MANAGEMENT,WORKS (CONSTRUCTION REPAIR MAINTENANCE)
http://statistics.data.gov.uk/id/local-authority/43UM,WOKING BOROUGH COUNCIL,28/02/2020,07/04/2020,0000450899/001,VAIL WILLIAMS LLP,01844600,7450.93 ,ASSET MANAGEMENT - PROPERTY SERVICES,CONSULTANTS,H670,CONSULTANTS,ASSET MANAGEMENT,CONSULTANCY
http://statistics.data.gov.uk/id/local-authority/43UM,WOKING BOROUGH COUNCIL,31/03/2020,07/04/2020,0000452420/001,THAMESWEY DEVELOPMENTS LIMITED,40301400,5050.00 ,ASSET MANAGEMENT - 20 HIGH ST. WOKING,RENTS PAYABLE,D500,RENTS PAYABLE,ASSET MANAGEMENT,WORKS (CONSTRUCTION REPAIR MAINTENANCE)
http://statistics.data.gov.uk/id/local-authority/43UM,WOKING BOROUGH COUNCIL,26/03/2020,07/04/2020,0000452268/001,BRAY FOX SMITH LTD,40828100,24038.81 ,ASSET MANAGEMENT - DUKES COURT,CONSULTANTS,H670,CONSULTANTS,ASSET MANAGEMENT,LEGAL SERVICES
http://statistics.data.gov.uk/id/local-authority/43UM,WOKING BOROUGH COUNCIL,01/04/2020,07/04/2020,0000452270/001,HURST WARNE,40765600,24038.81 ,ASSET MANAGEMENT - DUKES COURT,AGENTS LETTING FEES,H742,AGENTS LETTING FEES,ASSET MANAGEMENT,LEGAL SERVICES
http://statistics.data.gov.uk/id/local-authority/43UM,WOKING BOROUGH COUNCIL,30/03/2020,07/04/2020,0000452266/001,ETHICAL LETTINGS CIC,40564500,264.00 ,ASSET MANAGEMENT - BRIDGE (HG WELLS),R&M BUILDINGS - CONTRACTORS,D100,R&M BUILDINGS - CONTRACTORS,ASSET MANAGEMENT,HOUSING MANAGEMENT
http://statistics.data.gov.uk/id/local-authority/43UM,WOKING BOROUGH COUNCIL,27/02/2020,07/04/2020,0000452363/001,GAZPROM MARKETING & TRADING RETAIL LTD,40670600,87.40 ,ASSET MANAGEMENT - TOWN CENTRE LEISURE,GAS,D420,GAS,ASSET MANAGEMENT,UTILITIES
http://statistics.data.gov.uk/id/local-authority/43UM,WOKING BOROUGH COUNCIL,01/04/2020,07/04/2020,0000452206/001,ASTOP LTD,40788400,1656.99 ,ASSET MANAGEMENT - WOLSEY PLACE,VOID COST,D124,VOID COST,ASSET MANAGEMENT,CONSULTANCY
http://statistics.data.gov.uk/id/local-authority/43UM,WOKING BOROUGH COUNCIL,16/03/2020,07/04/2020,0000451980/001,SAVILLS (UK) LTD,01581900,12270.00 ,ASSET MANAGEMENT - WOLSEY PLACE,SERVICE CHARGE,D510,SERVICE CHARGE,ASSET MANAGEMENT,FACILITIES & MANAGEMENT SERVICES
http://statistics.data.gov.uk/id/local-authority/43UM,WOKING BOROUGH COUNCIL,16/03/2020,07/04/2020,0000451981/001,SAVILLS (UK) LTD,01581900,1689.00 ,ASSET MANAGEMENT - WOLSEY PLACE,SERVICE CHARGE,D510,SERVICE CHARGE,ASSET MANAGEMENT,FACILITIES & MANAGEMENT SERVICES
http://statistics.data.gov.uk/id/local-authority/43UM,WOKING BOROUGH COUNCIL,16/03/2020,07/04/2020,0000451982/001,SAVILLS (UK) LTD,01581900,12270.00 ,ASSET MANAGEMENT - WOLSEY PLACE,SERVICE CHARGE,D510,SERVICE CHARGE,ASSET MANAGEMENT,FACILITIES & MANAGEMENT SERVICES
http://statistics.data.gov.uk/id/local-authority/43UM,WOKING BOROUGH COUNCIL,16/03/2020,07/04/2020,0000451983/001,SAVILLS (UK) LTD,01581900,12270.00 ,ASSET MANAGEMENT - WOLSEY PLACE,SERVICE CHARGE,D510,SERVICE CHARGE,ASSET MANAGEMENT,FACILITIES & MANAGEMENT SERVICES
http://statistics.data.gov.uk/id/local-authority/43UM,WOKING BOROUGH COUNCIL,16/03/2020,07/04/2020,0000451984/001,SAVILLS (UK) LTD,01581900,117.00 ,ASSET MANAGEMENT - WOLSEY PLACE,SERVICE CHARGE,D510,SERVICE CHARGE,ASSET MANAGEMENT,FACILITIES & MANAGEMENT SERVICES
http://statistics.data.gov.uk/id/local-authority/43UM,WOKING BOROUGH COUNCIL,16/03/2020,07/04/2020,0000451985/001,SAVILLS (UK) LTD,01581900,227.00 ,ASSET MANAGEMENT - WOLSEY PLACE,SERVICE CHARGE,D510,SERVICE CHARGE,ASSET MANAGEMENT,FACILITIES & MANAGEMENT SERVICES
http://statistics.data.gov.uk/id/local-authority/43UM,WOKING BOROUGH COUNCIL,16/03/2020,07/04/2020,0000451986/001,SAVILLS (UK) LTD,01581900,227.00 ,ASSET MANAGEMENT - WOLSEY PLACE,SERVICE CHARGE,D510,SERVICE CHARGE,ASSET MANAGEMENT,FACILITIES & MANAGEMENT SERVICES
http://statistics.data.gov.uk/id/local-authority/43UM,WOKING BOROUGH COUNCIL,16/03/2020,07/04/2020,0000451987/001,SAVILLS (UK) LTD,01581900,8869.00 ,ASSET MANAGEMENT - WOLSEY PLACE,SERVICE CHARGE,D510,SERVICE CHARGE,ASSET MANAGEMENT,FACILITIES & MANAGEMENT SERVICES
http://statistics.data.gov.uk/id/local-authority/43UM,WOKING BOROUGH COUNCIL,16/03/2020,07/04/2020,0000451988/001,SAVILLS (UK) LTD,01581900,2925.00 ,ASSET MANAGEMENT - WOLSEY PLACE,SERVICE CHARGE,D510,SERVICE CHARGE,ASSET MANAGEMENT,FACILITIES & MANAGEMENT SERVICES
http://statistics.data.gov.uk/id/local-authority/43UM,WOKING BOROUGH COUNCIL,16/03/2020,07/04/2020,0000451989/001,SAVILLS (UK) LTD,01581900,7791.00 ,ASSET MANAGEMENT - WOLSEY PLACE,SERVICE CHARGE,D510,SERVICE CHARGE,ASSET MANAGEMENT,FACILITIES & MANAGEMENT SERVICES
http://statistics.data.gov.uk/id/local-authority/43UM,WOKING BOROUGH COUNCIL,16/03/2020,07/04/2020,0000451990/001,SAVILLS (UK) LTD,01581900,6327.00 ,ASSET MANAGEMENT - WOLSEY PLACE,SERVICE CHARGE,D510,SERVICE CHARGE,ASSET MANAGEMENT,FACILITIES & MANAGEMENT SERVICES
http://statistics.data.gov.uk/id/local-authority/43UM,WOKING BOROUGH COUNCIL,16/03/2020,07/04/2020,0000451991/001,SAVILLS (UK) LTD,01581900,4538.00 ,ASSET MANAGEMENT - WOLSEY PLACE,SERVICE CHARGE,D510,SERVICE CHARGE,ASSET MANAGEMENT,FACILITIES & MANAGEMENT SERVICES
http://statistics.data.gov.uk/id/local-authority/43UM,WOKING BOROUGH COUNCIL,16/03/2020,07/04/2020,0000451992/001,SAVILLS (UK) LTD,01581900,25089.00 ,ASSET MANAGEMENT - WOLSEY PLACE,SERVICE CHARGE,D510,SERVICE CHARGE,ASSET MANAGEMENT,FACILITIES & MANAGEMENT SERVICES
http://statistics.data.gov.uk/id/local-authority/43UM,WOKING BOROUGH COUNCIL,16/03/2020,07/04/2020,0000451993/001,SAVILLS (UK) LTD,01581900,3199.00 ,ASSET MANAGEMENT - WOLSEY PLACE,SERVICE CHARGE,D510,SERVICE CHARGE,ASSET MANAGEMENT,FACILITIES & MANAGEMENT SERVICES
http://statistics.data.gov.uk/id/local-authority/43UM,WOKING BOROUGH COUNCIL,16/03/2020,07/04/2020,0000451994/001,SAVILLS (UK) LTD,01581900,918.00 ,ASSET MANAGEMENT - WOLSEY PLACE,SERVICE CHARGE,D510,SERVICE CHARGE,ASSET MANAGEMENT,FACILITIES & MANAGEMENT SERVICES
http://statistics.data.gov.uk/id/local-authority/43UM,WOKING BOROUGH COUNCIL,16/03/2020,07/04/2020,0000451995/001,SAVILLS (UK) LTD,01581900,6970.00 ,ASSET MANAGEMENT - WOLSEY PLACE,SERVICE CHARGE,D510,SERVICE CHARGE,ASSET MANAGEMENT,FACILITIES & MANAGEMENT SERVICES
http://statistics.data.gov.uk/id/local-authority/43UM,WOKING BOROUGH COUNCIL,16/03/2020,07/04/2020,0000451996/001,SAVILLS (UK) LTD,01581900,1625.00 ,ASSET MANAGEMENT - WOLSEY PLACE,SERVICE CHARGE,D510,SERVICE CHARGE,ASSET MANAGEMENT,FACILITIES & MANAGEMENT SERVICES
http://statistics.data.gov.uk/id/local-authority/43UM,WOKING BOROUGH COUNCIL,16/03/2020,07/04/2020,0000451997/001,SAVILLS (UK) LTD,01581900,7176.00 ,ASSET MANAGEMENT - WOLSEY PLACE,SERVICE CHARGE,D510,SERVICE CHARGE,ASSET MANAGEMENT,FACILITIES & MANAGEMENT SERVICES
http://statistics.data.gov.uk/id/local-authority/43UM,WOKING BOROUGH COUNCIL,16/03/2020,07/04/2020,0000451998/001,SAVILLS (UK) LTD,01581900,3086.00 ,ASSET MANAGEMENT - WOLSEY PLACE,SERVICE CHARGE,D510,SERVICE CHARGE,ASSET MANAGEMENT,FACILITIES & MANAGEMENT SERVICES
http://statistics.data.gov.uk/id/local-authority/43UM,WOKING BOROUGH COUNCIL,16/03/2020,07/04/2020,0000451999/001,SAVILLS (UK) LTD,01581900,3347.50 ,ASSET MANAGEMENT - WOLSEY PLACE,SERVICE CHARGE,D510,SERVICE CHARGE,ASSET MANAGEMENT,FACILITIES & MANAGEMENT SERVICES
http://statistics.data.gov.uk/id/local-authority/43UM,WOKING BOROUGH COUNCIL,16/03/2020,07/04/2020,0000452000/001,SAVILLS (UK) LTD,01581900,1307.00 ,ASSET MANAGEMENT - WOLSEY PLACE,SERVICE CHARGE,D510,SERVICE CHARGE,ASSET MANAGEMENT,FACILITIES & MANAGEMENT SERVICES
http://statistics.data.gov.uk/id/local-authority/43UM,WOKING BOROUGH COUNCIL,16/03/2020,07/04/2020,0000452001/001,SAVILLS (UK) LTD,01581900,3367.00 ,ASSET MANAGEMENT - WOLSEY PLACE,SERVICE CHARGE,D510,SERVICE CHARGE,ASSET MANAGEMENT,FACILITIES & MANAGEMENT SERVICES
http://statistics.data.gov.uk/id/local-authority/43UM,WOKING BOROUGH COUNCIL,16/03/2020,07/04/2020,0000452002/001,SAVILLS (UK) LTD,01581900,3799.00 ,ASSET MANAGEMENT - WOLSEY PLACE,SERVICE CHARGE,D510,SERVICE CHARGE,ASSET MANAGEMENT,FACILITIES & MANAGEMENT SERVICES
http://statistics.data.gov.uk/id/local-authority/43UM,WOKING BOROUGH COUNCIL,16/03/2020,07/04/2020,0000452003/001,SAVILLS (UK) LTD,01581900,4345.00 ,ASSET MANAGEMENT - WOLSEY PLACE,SERVICE CHARGE,D510,SERVICE CHARGE,ASSET MANAGEMENT,FACILITIES & MANAGEMENT SERVICES
http://statistics.data.gov.uk/id/local-authority/43UM,WOKING BOROUGH COUNCIL,16/03/2020,07/04/2020,0000452004/001,SAVILLS (UK) LTD,01581900,6007.00 ,ASSET MANAGEMENT - WOLSEY PLACE,SERVICE CHARGE,D510,SERVICE CHARGE,ASSET MANAGEMENT,FACILITIES & MANAGEMENT SERVICES
http://statistics.data.gov.uk/id/local-authority/43UM,WOKING BOROUGH COUNCIL,25/03/2020,07/04/2020,0000452128/001,ARCOM IT LTD,40352600,100.00 ,ASSET MANAGEMENT - WOLSEY PLACE,IT TOREX,G921,IT TOREX,ASSET MANAGEMENT,UTILITIES
http://statistics.data.gov.uk/id/local-authority/43UM,WOKING BOROUGH COUNCIL,31/03/2020,07/04/2020,0000452339/001,BENOY LIMITED,40239400,1548.06 ,ASSET MANAGEMENT - WOLSEY PLACE,CONSULTANTS,H670,CONSULTANTS,ASSET MANAGEMENT,CONSULTANCY
http://statistics.data.gov.uk/id/local-authority/43UM,WOKING BOROUGH COUNCIL,27/03/2020,07/04/2020,0000452400/001,ANDERSON STRATHERN LLP,40105500,959.00 ,ASSET MANAGEMENT - WOLSEY PLACE,LEGAL FEES,H677,LEGAL FEES,ASSET MANAGEMENT,LEGAL SERVICES
http://statistics.data.gov.uk/id/local-authority/43UM,WOKING BOROUGH COUNCIL,31/03/2020,07/04/2020,0000452424/001,EUROTECH MONITORING SERVICES LTD,00643100,358.98 ,ASSET MANAGEMENT - UNIT 15A MON WAY EAST,CONTRACT SECURITY,H602,CONTRACT SECURITY,ASSET MANAGEMENT,FACILITIES & MANAGEMENT SERVICES
http://statistics.data.gov.uk/id/local-authority/43UM,WOKING BOROUGH COUNCIL,01/04/2020,07/04/2020,0000452207/001,ASTOP LTD,40788400,1770.66 ,ASSET MANAGEMENT - 6 CHURCH STREET WEST,VOID COST,D124,VOID COST,ASSET MANAGEMENT,CONSULTANCY
http://statistics.data.gov.uk/id/local-authority/43UM,WOKING BOROUGH COUNCIL,27/03/2020,07/04/2020,0000452325/001,MAEVE CONTRACTORS LTD,40841600,790.00 ,ASSET MANAGEMENT - ALBION HOUSE (WOKING ONE),CONSULTANTS,H670,CONSULTANTS,ASSET MANAGEMENT,WORKS (CONSTRUCTION REPAIR MAINTENANCE)
http://statistics.data.gov.uk/id/local-authority/43UM,WOKING BOROUGH COUNCIL,03/02/2020,07/04/2020,0000449762/001,TDA INTERIORS SOUTH LTD,40666100,4850.00 ,ASSET MANAGEMENT - ALBION HOUSE (WOKING ONE),CONSULTANTS,H670,CONSULTANTS,ASSET MANAGEMENT,WORKS (CONSTRUCTION REPAIR MAINTENANCE)
http://statistics.data.gov.uk/id/local-authority/43UM,WOKING BOROUGH COUNCIL,06/04/2020,07/04/2020,0000452484/001,JAMES POTTER,40849300,2186.25 ,ASSET MANAGEMENT - VALUATION SERVICES,TEMPORARY STAFF,A110,TEMPORARY STAFF,ASSET MANAGEMENT,ENVIRONMENTAL SERVICES
http://statistics.data.gov.uk/id/local-authority/43UM,WOKING BOROUGH COUNCIL,25/03/2020,07/04/2020,0000452045/001,OYSTER PARTNERSHIP,40443300,629.00 ,ASSET MANAGEMENT - VALUATION SERVICES,TEMPORARY STAFF,A110,TEMPORARY STAFF,ASSET MANAGEMENT,HUMAN RESOURCES
http://statistics.data.gov.uk/id/local-authority/43UM,WOKING BOROUGH COUNCIL,25/03/2020,07/04/2020,0000452046/001,OYSTER PARTNERSHIP,40443300,2275.00 ,ASSET MANAGEMENT - VALUATION SERVICES,TEMPORARY STAFF,A110,TEMPORARY STAFF,ASSET MANAGEMENT,HUMAN RESOURCES
http://statistics.data.gov.uk/id/local-authority/43UM,WOKING BOROUGH COUNCIL,28/03/2020,07/04/2020,0000452434/001,CATALYST SUPPORT LIMITED,40798900,1175.00 ,NEIGHBOURHOOD SERVICES - COMMUNITY SAFETY,GRANTS,H100,GRANTS,NEIGHBOURHOOD SERVICES,FINANCIAL SERVICES
http://statistics.data.gov.uk/id/local-authority/43UM,WOKING BOROUGH COUNCIL,02/02/2019,07/04/2020,0000452393/001,HORSELL RESIDENTS ASSOCIATION LTD,40885900,1164.00 ,CORPORATE STRATEGY - EMERGENCY PLANNING,EQUIPMENT,G100,EQUIPMENT,CORPORATE STRATEGY,ARTS & LEISURE SERVICES
http://statistics.data.gov.uk/id/local-authority/43UM,WOKING BOROUGH COUNCIL,26/02/2020,07/04/2020,0000452153/001,AFFINITY FOR BUSINESS,40615700,1202.27 ,CORPORATE STRATEGY - THE JUNCTION,UTILITIES,G515,UTILITIES,CORPORATE STRATEGY,UTILITIES
http://statistics.data.gov.uk/id/local-authority/43UM,WOKING BOROUGH COUNCIL,01/04/2020,07/04/2020,0000452431/001,DAISY CORPORATE SERVICES TRADING LTD,40680200,692.01 ,INFORMATION TECHNOLOGY - COMMUNICATIONS,NETWORK CIRCUITS,G800,NETWORK CIRCUITS,INFORMATION TECHNOLOGY,INFORMATION COMMUNICATION TECHNOLOGY
http://statistics.data.gov.uk/id/local-authority/43UM,WOKING BOROUGH COUNCIL,04/03/2020,07/04/2020,0000451262/001,VERIZON UK LIMITED,00107600,1030.83 ,INFORMATION TECHNOLOGY - COMMUNICATIONS,NETWORK CIRCUITS,G800,NETWORK CIRCUITS,INFORMATION TECHNOLOGY,INFORMATION COMMUNICATION TECHNOLOGY
http://statistics.data.gov.uk/id/local-authority/43UM,WOKING BOROUGH COUNCIL,04/03/2020,07/04/2020,0000451262/002,VERIZON UK LIMITED,00107600,1095.08 ,INFORMATION TECHNOLOGY - COMMUNICATIONS,NETWORK CIRCUITS,G800,NETWORK CIRCUITS,INFORMATION TECHNOLOGY,INFORMATION COMMUNICATION TECHNOLOGY
http://statistics.data.gov.uk/id/local-authority/43UM,WOKING BOROUGH COUNCIL,03/04/2020,07/04/2020,0000452403/001,SECURE RECOGNITION LIMITED,40858700,104.00 ,ASSET MANAGEMENT - CIVIC OFFICES,SECURITY EQUIPMENT - SERVICING,G161,SECURITY EQUIPMENT - SERVICING,ASSET MANAGEMENT,FACILITIES & MANAGEMENT SERVICES
http://statistics.data.gov.uk/id/local-authority/43UM,WOKING BOROUGH COUNCIL,04/12/2019,07/04/2020,0000447699/001,HSI FURNITURE,01421100,9.90 ,ASSET MANAGEMENT - CIVIC OFFICES,FURNITURE - NEW,G300,FURNITURE - NEW,ASSET MANAGEMENT,FURNITURE & SOFT FURNISHINGS
http://statistics.data.gov.uk/id/local-authority/43UM,WOKING BOROUGH COUNCIL,06/03/2020,07/04/2020,0000452392/001,FAITH RECRUITMENT,01709500,754.82 ,H G WELLS - H G WELLS SALES & MARKETING,TEMPORARY STAFF,A110,TEMPORARY STAFF,H G WELLS,HUMAN RESOURCES
http://statistics.data.gov.uk/id/local-authority/43UM,WOKING BOROUGH COUNCIL,06/03/2020,07/04/2020,0000452392/002,FAITH RECRUITMENT,01709500,665.93 ,H G WELLS - H G WELLS SALES & MARKETING,TEMPORARY STAFF,A110,TEMPORARY STAFF,H G WELLS,HUMAN RESOURCES
http://statistics.data.gov.uk/id/local-authority/43UM,WOKING BOROUGH COUNCIL,31/03/2020,07/04/2020,0000452338/001,EMCOR GROUP (UK) PLC,00004600,228.97 ,H G WELLS - H G WELLS - FUNCTION ROOMS,CCTV SYSTEM MAINTENANCE,D341,CCTV SYSTEM MAINTENANCE,H G WELLS,WORKS (CONSTRUCTION REPAIR MAINTENANCE)
http://statistics.data.gov.uk/id/local-authority/43UM,WOKING BOROUGH COUNCIL,01/04/2020,07/04/2020,0000452456/003,BDI SECURITIES,40768200,30.00 ,H G WELLS - H G WELLS - FUNCTION ROOMS,CASH COLLECTION SERVICE,H600,CASH COLLECTION SERVICE,H G WELLS,FINANCIAL SERVICES
http://statistics.data.gov.uk/id/local-authority/43UM,WOKING BOROUGH COUNCIL,06/04/2020,07/04/2020,0000452496/001,FRONTLINE PROTECTION SGD LTD,40542500,3640.00 ,H G WELLS - H G WELLS - FUNCTION ROOMS,CONTRACT SECURITY,H602,CONTRACT SECURITY,H G WELLS,FACILITIES & MANAGEMENT SERVICES
http://statistics.data.gov.uk/id/local-authority/43UM,WOKING BOROUGH COUNCIL,13/03/2020,07/04/2020,0000452202/001,BEYOND HEATING,40885100,205.00 ,HOUSING SERVICES - LETS RENT SCHEME,LANDLORD SAFETY CERTIFICATES,H776,LANDLORD SAFETY CERTIFICATES,HOUSING SERVICES,BUILDING CONSTRUCTION MATERIALS
http://statistics.data.gov.uk/id/local-authority/43UM,WOKING BOROUGH COUNCIL,01/04/2020,07/04/2020,0000452437/001,ENTERPRISE RENT-A-CAR,40570900,690.48 ,HOUSING SERVICES - HOME IMPS & BEN AGENCY,VEHICLE LEASING COSTS,F400,VEHICLE LEASING COSTS,HOUSING SERVICES,VEHICLE MANAGEMENT
http://statistics.data.gov.uk/id/local-authority/43UM,WOKING BOROUGH COUNCIL,01/04/2020,07/04/2020,0000452438/001,ENTERPRISE RENT-A-CAR,40570900,690.48 ,HOUSING SERVICES - HOME IMPS & BEN AGENCY,VEHICLE LEASING COSTS,F400,VEHICLE LEASING COSTS,HOUSING SERVICES,VEHICLE MANAGEMENT
http://statistics.data.gov.uk/id/local-authority/43UM,WOKING BOROUGH COUNCIL,24/03/2020,07/04/2020,0000452337/001,WCS,00064200,50.00 ,INDEPENDENT LIVING SERVICES - MOORCROFT,WINDOW CLEANING,D910,WINDOW CLEANING,INDEPENDENT LIVING SERVICES,CLEANING & JANITORIAL
http://statistics.data.gov.uk/id/local-authority/43UM,WOKING BOROUGH COUNCIL,23/03/2020,07/04/2020,0000451950/001,WIGHTMAN & PARRISH LTD,40474600,33.24 ,INDEPENDENT LIVING SERVICES - MOORCROFT,CLEANING MATERIALS,D920,CLEANING MATERIALS,INDEPENDENT LIVING SERVICES,CLEANING & JANITORIAL
http://statistics.data.gov.uk/id/local-authority/43UM,WOKING BOROUGH COUNCIL,01/04/2020,07/04/2020,0000452456/006,BDI SECURITIES,40768200,30.00 ,INDEPENDENT LIVING SERVICES - MOORCROFT,CASH COLLECTION SERVICE,H600,CASH COLLECTION SERVICE,INDEPENDENT LIVING SERVICES,FINANCIAL SERVICES
http://statistics.data.gov.uk/id/local-authority/43UM,WOKING BOROUGH COUNCIL,01/04/2020,07/04/2020,0000452456/001,BDI SECURITIES,40768200,30.00 ,INDEPENDENT LIVING SERVICES - BROCKHILL EXTRA CARE,CASH COLLECTION SERVICE,H600,CASH COLLECTION SERVICE,INDEPENDENT LIVING SERVICES,FINANCIAL SERVICES
http://statistics.data.gov.uk/id/local-authority/43UM,WOKING BOROUGH COUNCIL,07/04/2020,07/04/2020,GPC/00011336,AMZNMKTPLACE,PROCUREMENT CARD,15.38 ,INDEPENDENT LIVING SERVICES - FAMILY SUPPORT PROGRAMME,FAMILY ENABLING (FSP PROJECT),H137,ENABLING CHILD TO KEEP WELL,PALLAVI SHARAN,MISC SPECIALITY RETAIL
http://statistics.data.gov.uk/id/local-authority/43UM,WOKING BOROUGH COUNCIL,10/03/2020,07/04/2020,0000451625/001,WCS,00064200,32.50 ,INDEPENDENT LIVING SERVICES - THE VYNE,WINDOW CLEANING,D910,WINDOW CLEANING,INDEPENDENT LIVING SERVICES,CLEANING & JANITORIAL
http://statistics.data.gov.uk/id/local-authority/43UM,WOKING BOROUGH COUNCIL,17/03/2020,07/04/2020,0000451633/001,WIGHTMAN & PARRISH LTD,40474600,125.88 ,INDEPENDENT LIVING SERVICES - THE VYNE,CLEANING MATERIALS,D920,CLEANING MATERIALS,INDEPENDENT LIVING SERVICES,CLEANING & JANITORIAL
http://statistics.data.gov.uk/id/local-authority/43UM,WOKING BOROUGH COUNCIL,17/03/2020,07/04/2020,0000451633/002,WIGHTMAN & PARRISH LTD,40474600,62.84 ,INDEPENDENT LIVING SERVICES - THE VYNE,CLEANING MATERIALS,D920,CLEANING MATERIALS,INDEPENDENT LIVING SERVICES,CLEANING & JANITORIAL
http://statistics.data.gov.uk/id/local-authority/43UM,WOKING BOROUGH COUNCIL,17/03/2020,07/04/2020,0000451633/003,WIGHTMAN & PARRISH LTD,40474600,37.04 ,INDEPENDENT LIVING SERVICES - THE VYNE,CLEANING MATERIALS,D920,CLEANING MATERIALS,INDEPENDENT LIVING SERVICES,CLEANING & JANITORIAL
http://statistics.data.gov.uk/id/local-authority/43UM,WOKING BOROUGH COUNCIL,23/03/2020,07/04/2020,0000451948/001,WIGHTMAN & PARRISH LTD,40474600,26.51 ,INDEPENDENT LIVING SERVICES - THE VYNE,CLEANING MATERIALS,D920,CLEANING MATERIALS,INDEPENDENT LIVING SERVICES,CLEANING & JANITORIAL
http://statistics.data.gov.uk/id/local-authority/43UM,WOKING BOROUGH COUNCIL,06/04/2020,07/04/2020,0000452481/001,WIGHTMAN & PARRISH LTD,40474600,62.84 ,INDEPENDENT LIVING SERVICES - THE VYNE,CLEANING MATERIALS,D920,CLEANING MATERIALS,INDEPENDENT LIVING SERVICES,CLEANING & JANITORIAL
http://statistics.data.gov.uk/id/local-authority/43UM,WOKING BOROUGH COUNCIL,06/04/2020,07/04/2020,0000452481/002,WIGHTMAN & PARRISH LTD,40474600,15.98 ,INDEPENDENT LIVING SERVICES - THE VYNE,CLEANING MATERIALS,D920,CLEANING MATERIALS,INDEPENDENT LIVING SERVICES,CLEANING & JANITORIAL
http://statistics.data.gov.uk/id/local-authority/43UM,WOKING BOROUGH COUNCIL,01/04/2020,07/04/2020,0000452456/009,BDI SECURITIES,40768200,30.00 ,INDEPENDENT LIVING SERVICES - THE VYNE,CASH COLLECTION SERVICE,H600,CASH COLLECTION SERVICE,INDEPENDENT LIVING SERVICES,FINANCIAL SERVICES
http://statistics.data.gov.uk/id/local-authority/43UM,WOKING BOROUGH COUNCIL,01/04/2020,07/04/2020,0000452456/007,BDI SECURITIES,40768200,15.00 ,INDEPENDENT LIVING SERVICES - PARKVIEW,CASH COLLECTION SERVICE,H600,CASH COLLECTION SERVICE,INDEPENDENT LIVING SERVICES,FINANCIAL SERVICES
http://statistics.data.gov.uk/id/local-authority/43UM,WOKING BOROUGH COUNCIL,01/04/2020,07/04/2020,0000452333/001,WIGHTMAN & PARRISH LTD,40474600,24.60 ,INDEPENDENT LIVING SERVICES - MEALS SERVICE - BROCKHILL,CLEANING MATERIALS,D920,CLEANING MATERIALS,INDEPENDENT LIVING SERVICES,CLEANING & JANITORIAL
http://statistics.data.gov.uk/id/local-authority/43UM,WOKING BOROUGH COUNCIL,02/04/2020,07/04/2020,0000452361/001,WIGHTMAN & PARRISH LTD,40474600,13.82 ,INDEPENDENT LIVING SERVICES - MEALS SERVICE - BROCKHILL,CLEANING MATERIALS,D920,CLEANING MATERIALS,INDEPENDENT LIVING SERVICES,CLEANING & JANITORIAL
http://statistics.data.gov.uk/id/local-authority/43UM,WOKING BOROUGH COUNCIL,02/04/2020,07/04/2020,0000452361/002,WIGHTMAN & PARRISH LTD,40474600,15.73 ,INDEPENDENT LIVING SERVICES - MEALS SERVICE - BROCKHILL,CLEANING MATERIALS,D920,CLEANING MATERIALS,INDEPENDENT LIVING SERVICES,CLEANING & JANITORIAL
http://statistics.data.gov.uk/id/local-authority/43UM,WOKING BOROUGH COUNCIL,02/04/2020,07/04/2020,0000452361/003,WIGHTMAN & PARRISH LTD,40474600,19.94 ,INDEPENDENT LIVING SERVICES - MEALS SERVICE - BROCKHILL,CLEANING MATERIALS,D920,CLEANING MATERIALS,INDEPENDENT LIVING SERVICES,CLEANING & JANITORIAL
http://statistics.data.gov.uk/id/local-authority/43UM,WOKING BOROUGH COUNCIL,02/04/2020,07/04/2020,0000452361/004,WIGHTMAN & PARRISH LTD,40474600,92.48 ,INDEPENDENT LIVING SERVICES - MEALS SERVICE - BROCKHILL,CLEANING MATERIALS,D920,CLEANING MATERIALS,INDEPENDENT LIVING SERVICES,CLEANING & JANITORIAL
http://statistics.data.gov.uk/id/local-authority/43UM,WOKING BOROUGH COUNCIL,02/04/2020,07/04/2020,0000452361/005,WIGHTMAN & PARRISH LTD,40474600,8.55 ,INDEPENDENT LIVING SERVICES - MEALS SERVICE - BROCKHILL,CLEANING MATERIALS,D920,CLEANING MATERIALS,INDEPENDENT LIVING SERVICES,CLEANING & JANITORIAL
http://statistics.data.gov.uk/id/local-authority/43UM,WOKING BOROUGH COUNCIL,02/04/2020,07/04/2020,0000452361/006,WIGHTMAN & PARRISH LTD,40474600,27.21 ,INDEPENDENT LIVING SERVICES - MEALS SERVICE - BROCKHILL,CLEANING MATERIALS,D920,CLEANING MATERIALS,INDEPENDENT LIVING SERVICES,CLEANING & JANITORIAL
http://statistics.data.gov.uk/id/local-authority/43UM,WOKING BOROUGH COUNCIL,02/04/2020,07/04/2020,0000452361/007,WIGHTMAN & PARRISH LTD,40474600,3.31 ,INDEPENDENT LIVING SERVICES - MEALS SERVICE - BROCKHILL,CLEANING MATERIALS,D920,CLEANING MATERIALS,INDEPENDENT LIVING SERVICES,CLEANING & JANITORIAL
http://statistics.data.gov.uk/id/local-authority/43UM,WOKING BOROUGH COUNCIL,02/04/2020,07/04/2020,0000452361/008,WIGHTMAN & PARRISH LTD,40474600,12.55 ,INDEPENDENT LIVING SERVICES - MEALS SERVICE - BROCKHILL,CLEANING MATERIALS,D920,CLEANING MATERIALS,INDEPENDENT LIVING SERVICES,CLEANING & JANITORIAL
http://statistics.data.gov.uk/id/local-authority/43UM,WOKING BOROUGH COUNCIL,02/04/2020,07/04/2020,0000452361/009,WIGHTMAN & PARRISH LTD,40474600,3.02 ,INDEPENDENT LIVING SERVICES - MEALS SERVICE - BROCKHILL,CLEANING MATERIALS,D920,CLEANING MATERIALS,INDEPENDENT LIVING SERVICES,CLEANING & JANITORIAL
http://statistics.data.gov.uk/id/local-authority/43UM,WOKING BOROUGH COUNCIL,02/04/2020,07/04/2020,0000452361/010,WIGHTMAN & PARRISH LTD,40474600,9.87 ,INDEPENDENT LIVING SERVICES - MEALS SERVICE - BROCKHILL,CLEANING MATERIALS,D920,CLEANING MATERIALS,INDEPENDENT LIVING SERVICES,CLEANING & JANITORIAL
http://statistics.data.gov.uk/id/local-authority/43UM,WOKING BOROUGH COUNCIL,02/04/2020,07/04/2020,0000452361/011,WIGHTMAN & PARRISH LTD,40474600,21.81 ,INDEPENDENT LIVING SERVICES - MEALS SERVICE - BROCKHILL,CLEANING MATERIALS,D920,CLEANING MATERIALS,INDEPENDENT LIVING SERVICES,CLEANING & JANITORIAL
http://statistics.data.gov.uk/id/local-authority/43UM,WOKING BOROUGH COUNCIL,02/04/2020,07/04/2020,0000452361/012,WIGHTMAN & PARRISH LTD,40474600,30.31 ,INDEPENDENT LIVING SERVICES - MEALS SERVICE - BROCKHILL,CLEANING MATERIALS,D920,CLEANING MATERIALS,INDEPENDENT LIVING SERVICES,CLEANING & JANITORIAL
http://statistics.data.gov.uk/id/local-authority/43UM,WOKING BOROUGH COUNCIL,06/04/2020,07/04/2020,0000452480/001,WIGHTMAN & PARRISH LTD,40474600,56.68 ,INDEPENDENT LIVING SERVICES - MEALS SERVICE - BROCKHILL,CLEANING MATERIALS,D920,CLEANING MATERIALS,INDEPENDENT LIVING SERVICES,CLEANING & JANITORIAL
http://statistics.data.gov.uk/id/local-authority/43UM,WOKING BOROUGH COUNCIL,06/04/2020,07/04/2020,0000452480/002,WIGHTMAN & PARRISH LTD,40474600,56.68 ,INDEPENDENT LIVING SERVICES - MEALS SERVICE - BROCKHILL,CLEANING MATERIALS,D920,CLEANING MATERIALS,INDEPENDENT LIVING SERVICES,CLEANING & JANITORIAL
http://statistics.data.gov.uk/id/local-authority/43UM,WOKING BOROUGH COUNCIL,01/04/2020,07/04/2020,0000452456/008,BDI SECURITIES,40768200,30.00 ,INDEPENDENT LIVING SERVICES - ST MARY'S DAY CENTRE,CASH COLLECTION SERVICE,H600,CASH COLLECTION SERVICE,INDEPENDENT LIVING SERVICES,FINANCIAL SERVICES
http://statistics.data.gov.uk/id/local-authority/43UM,WOKING BOROUGH COUNCIL,30/03/2020,07/04/2020,0000452280/001,RACHEL COATES,40862100,7.50 ,INDEPENDENT LIVING SERVICES - FAMILY CENTRES,PARKING COSTS,F510,PARKING COSTS,INDEPENDENT LIVING SERVICES,FINANCIAL SERVICES
http://statistics.data.gov.uk/id/local-authority/43UM,WOKING BOROUGH COUNCIL,29/02/2020,07/04/2020,0000451863/001,THAMESWEY MAINTENANCE SERVICES LIMITED,40007000,6486.73 ,HOUSING SERVICES - HEATING MAINTENANCE PLANT,TEL HOUSING PLANT ROOM REPAIRS,D187,TEL HOUSING PLANT ROOM REPAIRS,HOUSING SERVICES,WORKS (CONSTRUCTION REPAIR MAINTENANCE)
http://statistics.data.gov.uk/id/local-authority/43UM,WOKING BOROUGH COUNCIL,25/03/2020,07/04/2020,0000452356/001,GAZPROM MARKETING & TRADING RETAIL LTD,40670600,1177.18 ,HOUSING SERVICES - ENERGY,GAS,D420,GAS,HOUSING SERVICES,UTILITIES
http://statistics.data.gov.uk/id/local-authority/43UM,WOKING BOROUGH COUNCIL,25/03/2020,07/04/2020,0000452356/002,GAZPROM MARKETING & TRADING RETAIL LTD,40670600,897.25 ,HOUSING SERVICES - ENERGY,GAS,D420,GAS,HOUSING SERVICES,UTILITIES
http://statistics.data.gov.uk/id/local-authority/43UM,WOKING BOROUGH COUNCIL,02/03/2020,07/04/2020,0000452357/001,GAZPROM MARKETING & TRADING RETAIL LTD,40670600,446.70 ,HOUSING SERVICES - ENERGY,GAS,D420,GAS,HOUSING SERVICES,UTILITIES
http://statistics.data.gov.uk/id/local-authority/43UM,WOKING BOROUGH COUNCIL,27/02/2020,07/04/2020,0000452363/003,GAZPROM MARKETING & TRADING RETAIL LTD,40670600,455.39 ,HOUSING SERVICES - ENERGY,GAS,D420,GAS,HOUSING SERVICES,UTILITIES
http://statistics.data.gov.uk/id/local-authority/43UM,WOKING BOROUGH COUNCIL,27/02/2020,07/04/2020,0000452363/004,GAZPROM MARKETING & TRADING RETAIL LTD,40670600,1395.51 ,HOUSING SERVICES - ENERGY,GAS,D420,GAS,HOUSING SERVICES,UTILITIES
http://statistics.data.gov.uk/id/local-authority/43UM,WOKING BOROUGH COUNCIL,27/02/2020,07/04/2020,0000452363/007,GAZPROM MARKETING & TRADING RETAIL LTD,40670600,68.60 ,HOUSING SERVICES - ENERGY,GAS,D420,GAS,HOUSING SERVICES,UTILITIES
http://statistics.data.gov.uk/id/local-authority/43UM,WOKING BOROUGH COUNCIL,27/02/2020,07/04/2020,0000452363/002,GAZPROM MARKETING & TRADING RETAIL LTD,40670600,907.73 ,HOUSING SERVICES - LANDLORDS EXPENSES,GAS,D420,GAS,HOUSING SERVICES,UTILITIES
http://statistics.data.gov.uk/id/local-authority/43UM,WOKING BOROUGH COUNCIL,27/02/2020,07/04/2020,0000452363/005,GAZPROM MARKETING & TRADING RETAIL LTD,40670600,2315.46 ,HOUSING SERVICES - LANDLORDS EXPENSES,GAS,D420,GAS,HOUSING SERVICES,UTILITIES
http://statistics.data.gov.uk/id/local-authority/43UM,WOKING BOROUGH COUNCIL,27/02/2020,07/04/2020,0000452364/001,GAZPROM MARKETING & TRADING RETAIL LTD,40670600,-3384.92 ,HOUSING SERVICES - LANDLORDS EXPENSES,GAS,D420,GAS,HOUSING SERVICES,UTILITIES
http://statistics.data.gov.uk/id/local-authority/43UM,WOKING BOROUGH COUNCIL,25/03/2020,07/04/2020,0000452356/003,GAZPROM MARKETING & TRADING RETAIL LTD,40670600,14.03 ,HOUSING SERVICES - DISABLED FACILITIES GRANTS,GAS,D420,GAS,HOUSING SERVICES,UTILITIES
http://statistics.data.gov.uk/id/local-authority/43UM,WOKING BOROUGH COUNCIL,27/02/2020,07/04/2020,0000452363/006,GAZPROM MARKETING & TRADING RETAIL LTD,40670600,155.98 ,HOUSING SERVICES - DISABLED FACILITIES GRANTS,GAS,D420,GAS,HOUSING SERVICES,UTILITIES
http://statistics.data.gov.uk/id/local-authority/43UM,WOKING BOROUGH COUNCIL,23/03/2020,07/04/2020,0000452376/001,MARTIN CONWAY,01025900,455.00 ,HOUSING SERVICES - HOUSING OPTIONS,BED & BREAKFAST EXPENDITURE,H786,BED & BREAKFAST EXPENDITURE,HOUSING SERVICES,HOUSING MANAGEMENT
http://statistics.data.gov.uk/id/local-authority/43UM,WOKING BOROUGH COUNCIL,23/03/2020,07/04/2020,0000452377/001,MARTIN CONWAY,01025900,385.00 ,HOUSING SERVICES - HOUSING OPTIONS,BED & BREAKFAST EXPENDITURE,H786,BED & BREAKFAST EXPENDITURE,HOUSING SERVICES,HOUSING MANAGEMENT
http://statistics.data.gov.uk/id/local-authority/43UM,WOKING BOROUGH COUNCIL,23/03/2020,07/04/2020,0000452378/001,MARTIN CONWAY,01025900,455.00 ,HOUSING SERVICES - HOUSING OPTIONS,BED & BREAKFAST EXPENDITURE,H786,BED & BREAKFAST EXPENDITURE,HOUSING SERVICES,HOUSING MANAGEMENT
http://statistics.data.gov.uk/id/local-authority/43UM,WOKING BOROUGH COUNCIL,23/03/2020,07/04/2020,0000452379/001,MARTIN CONWAY,01025900,55.00 ,HOUSING SERVICES - HOUSING OPTIONS,BED & BREAKFAST EXPENDITURE,H786,BED & BREAKFAST EXPENDITURE,HOUSING SERVICES,HOUSING MANAGEMENT
http://statistics.data.gov.uk/id/local-authority/43UM,WOKING BOROUGH COUNCIL,23/03/2020,07/04/2020,0000452380/001,MARTIN CONWAY,01025900,385.00 ,HOUSING SERVICES - HOUSING OPTIONS,BED & BREAKFAST EXPENDITURE,H786,BED & BREAKFAST EXPENDITURE,HOUSING SERVICES,HOUSING MANAGEMENT
http://statistics.data.gov.uk/id/local-authority/43UM,WOKING BOROUGH COUNCIL,23/03/2020,07/04/2020,0000452381/001,MARTIN CONWAY,01025900,385.00 ,HOUSING SERVICES - HOUSING OPTIONS,BED & BREAKFAST EXPENDITURE,H786,BED & BREAKFAST EXPENDITURE,HOUSING SERVICES,HOUSING MANAGEMENT
http://statistics.data.gov.uk/id/local-authority/43UM,WOKING BOROUGH COUNCIL,23/03/2020,07/04/2020,0000452382/001,MARTIN CONWAY,01025900,420.00 ,HOUSING SERVICES - HOUSING OPTIONS,BED & BREAKFAST EXPENDITURE,H786,BED & BREAKFAST EXPENDITURE,HOUSING SERVICES,HOUSING MANAGEMENT
http://statistics.data.gov.uk/id/local-authority/43UM,WOKING BOROUGH COUNCIL,23/03/2020,07/04/2020,0000452383/001,MARTIN CONWAY,01025900,385.00 ,HOUSING SERVICES - HOUSING OPTIONS,BED & BREAKFAST EXPENDITURE,H786,BED & BREAKFAST EXPENDITURE,HOUSING SERVICES,HOUSING MANAGEMENT
http://statistics.data.gov.uk/id/local-authority/43UM,WOKING BOROUGH COUNCIL,23/03/2020,07/04/2020,0000452384/001,MARTIN CONWAY,01025900,455.00 ,HOUSING SERVICES - HOUSING OPTIONS,BED & BREAKFAST EXPENDITURE,H786,BED & BREAKFAST EXPENDITURE,HOUSING SERVICES,HOUSING MANAGEMENT
http://statistics.data.gov.uk/id/local-authority/43UM,WOKING BOROUGH COUNCIL,23/03/2020,07/04/2020,0000452385/001,MARTIN CONWAY,01025900,385.00 ,HOUSING SERVICES - HOUSING OPTIONS,BED & BREAKFAST EXPENDITURE,H786,BED & BREAKFAST EXPENDITURE,HOUSING SERVICES,HOUSING MANAGEMENT
http://statistics.data.gov.uk/id/local-authority/43UM,WOKING BOROUGH COUNCIL,23/03/2020,07/04/2020,0000452386/001,MARTIN CONWAY,01025900,330.00 ,HOUSING SERVICES - HOUSING OPTIONS,BED & BREAKFAST EXPENDITURE,H786,BED & BREAKFAST EXPENDITURE,HOUSING SERVICES,HOUSING MANAGEMENT
http://statistics.data.gov.uk/id/local-authority/43UM,WOKING BOROUGH COUNCIL,23/03/2020,07/04/2020,0000452387/001,MARTIN CONWAY,01025900,840.00 ,HOUSING SERVICES - HOUSING OPTIONS,BED & BREAKFAST EXPENDITURE,H786,BED & BREAKFAST EXPENDITURE,HOUSING SERVICES,HOUSING MANAGEMENT
http://statistics.data.gov.uk/id/local-authority/43UM,WOKING BOROUGH COUNCIL,23/03/2020,07/04/2020,0000452388/001,MARTIN CONWAY,01025900,385.00 ,HOUSING SERVICES - HOUSING OPTIONS,BED & BREAKFAST EXPENDITURE,H786,BED & BREAKFAST EXPENDITURE,HOUSING SERVICES,HOUSING MANAGEMENT
http://statistics.data.gov.uk/id/local-authority/43UM,WOKING BOROUGH COUNCIL,23/03/2020,07/04/2020,0000452389/001,MARTIN CONWAY,01025900,455.00 ,HOUSING SERVICES - HOUSING OPTIONS,BED & BREAKFAST EXPENDITURE,H786,BED & BREAKFAST EXPENDITURE,HOUSING SERVICES,HOUSING MANAGEMENT
http://statistics.data.gov.uk/id/local-authority/43UM,WOKING BOROUGH COUNCIL,30/03/2020,07/04/2020,0000452296/001,PROJECT114 LTD,40370300,2240.00 ,HOUSING SERVICES - HOUSING OPTIONS,BED & BREAKFAST EXPENDITURE,H786,BED & BREAKFAST EXPENDITURE,HOUSING SERVICES,HOUSING MANAGEMENT
http://statistics.data.gov.uk/id/local-authority/43UM,WOKING BOROUGH COUNCIL,29/03/2020,07/04/2020,0000452461/001,BRISTOW & SUTOR,40257600,3.00 ,HOUSING SERVICES - HOUSING OPTIONS,DEBT COLLECTION AGENCY COMMISS,H910,DEBT COLLECTION AGENCY COMMISS,HOUSING SERVICES,FINANCIAL SERVICES
http://statistics.data.gov.uk/id/local-authority/43UM,WOKING BOROUGH COUNCIL,28/03/2020,07/04/2020,0000452200/001,GURNEY CONSULTING ENGINEERS,00017000,500.00 ,CORPORATE STRATEGY - LEISURE MANAGEMENT CONTRACT,R&M BUILDINGS - CONTRACTORS,D100,R&M BUILDINGS - CONTRACTORS,CORPORATE STRATEGY,WORKS (CONSTRUCTION REPAIR MAINTENANCE)
http://statistics.data.gov.uk/id/local-authority/43UM,WOKING BOROUGH COUNCIL,19/03/2020,07/04/2020,0000451870/001,ANTHONY GURR PHOTOGRAPHY,40859700,50.00 ,LEISURE SERVICES - WOKING PARK TENNIS COURTS,PUBLICITY,H405,PUBLICITY,LEISURE SERVICES,ARTS & LEISURE SERVICES
http://statistics.data.gov.uk/id/local-authority/43UM,WOKING BOROUGH COUNCIL,22/03/2020,07/04/2020,0000452005/001,LEA'S CLEANING SERVICE LTD,01678300,675.00 ,NEIGHBOURHOOD SERVICES - ARTS DEVELOPMENT,EQUIPMENT REPAIR & MAINTENANCE,G120,EQUIPMENT REPAIR & MAINTENANCE,NEIGHBOURHOOD SERVICES,WORKS (CONSTRUCTION REPAIR MAINTENANCE)
http://statistics.data.gov.uk/id/local-authority/43UM,WOKING BOROUGH COUNCIL,06/02/2020,07/04/2020,0000450037/001,HEADLINE DESIGN & PRINT,00016900,110.00 ,NEIGHBOURHOOD SERVICES - ARTS DEVELOPMENT,EXTERNAL PRINTING - PUBLICITY,G605,EXTERNAL PRINTING - PUBLICITY,NEIGHBOURHOOD SERVICES,FINANCIAL SERVICES
http://statistics.data.gov.uk/id/local-authority/43UM,WOKING BOROUGH COUNCIL,30/03/2020,07/04/2020,0000452334/001,HEADLINE DESIGN & PRINT,00016900,105.00 ,NEIGHBOURHOOD SERVICES - ARTS DEVELOPMENT,EXTERNAL PRINTING - PUBLICITY,G605,EXTERNAL PRINTING - PUBLICITY,NEIGHBOURHOOD SERVICES,FINANCIAL SERVICES
http://statistics.data.gov.uk/id/local-authority/43UM,WOKING BOROUGH COUNCIL,30/03/2020,07/04/2020,0000452334/002,HEADLINE DESIGN & PRINT,00016900,2.50 ,NEIGHBOURHOOD SERVICES - ARTS DEVELOPMENT,EXTERNAL PRINTING - PUBLICITY,G605,EXTERNAL PRINTING - PUBLICITY,NEIGHBOURHOOD SERVICES,FINANCIAL SERVICES
http://statistics.data.gov.uk/id/local-authority/43UM,WOKING BOROUGH COUNCIL,30/03/2020,07/04/2020,0000452335/001,HEADLINE DESIGN & PRINT,00016900,110.00 ,NEIGHBOURHOOD SERVICES - ARTS DEVELOPMENT,EXTERNAL PRINTING - PUBLICITY,G605,EXTERNAL PRINTING - PUBLICITY,NEIGHBOURHOOD SERVICES,FINANCIAL SERVICES
http://statistics.data.gov.uk/id/local-authority/43UM,WOKING BOROUGH COUNCIL,27/02/2020,07/04/2020,0000451173/001,LIBERTY PRINTERS (AR & RF REDDIN) LTD,01273100,840.00 ,NEIGHBOURHOOD SERVICES - CPZ WBC FROM 25/7/05,PRINTING EXTERNAL,G600,PRINTING EXTERNAL,NEIGHBOURHOOD SERVICES,STATIONERY
http://statistics.data.gov.uk/id/local-authority/43UM,WOKING BOROUGH COUNCIL,04/10/2019,07/04/2020,0000452459/001,VULCAN MOTORS LIMITED,40836700,137.50 ,NEIGHBOURHOOD SERVICES - SURREY HEATH ON STREET PARKING,VEHICLE SERVICING,F100,VEHICLE SERVICING,NEIGHBOURHOOD SERVICES,VEHICLE MANAGEMENT
http://statistics.data.gov.uk/id/local-authority/43UM,WOKING BOROUGH COUNCIL,24/03/2020,07/04/2020,0000451942/001,SIGNWAY SUPPLIES (DATCHET) LTD,00411200,8586.30 ,NEIGHBOURHOOD SERVICES - TOWN CTR MANAGEMENT,R&M BUILDINGS - CONTRACTORS,D100,R&M BUILDINGS - CONTRACTORS,NEIGHBOURHOOD SERVICES,WORKS (CONSTRUCTION REPAIR MAINTENANCE)
http://statistics.data.gov.uk/id/local-authority/43UM,WOKING BOROUGH COUNCIL,26/03/2020,07/04/2020,0000452257/001,EDF ENERGY CUSTOMERS PLC,01451600,181.53 ,NEIGHBOURHOOD SERVICES - TOWN CTR MANAGEMENT,GROUNDS MAINT-CONTRACTORS,D200,GROUNDS MAINT-CONTRACTORS,NEIGHBOURHOOD SERVICES,UTILITIES
http://statistics.data.gov.uk/id/local-authority/43UM,WOKING BOROUGH COUNCIL,01/04/2020,07/04/2020,0000452439/001,ENTERPRISE RENT-A-CAR,40570900,554.40 ,CORPORATE STRATEGY - ENVIRONMENTAL PROJECTS,CAR HIRE,F405,CAR HIRE,CORPORATE STRATEGY,VEHICLE MANAGEMENT
http://statistics.data.gov.uk/id/local-authority/43UM,WOKING BOROUGH COUNCIL,01/04/2020,07/04/2020,0000452440/001,ENTERPRISE RENT-A-CAR,40570900,554.40 ,CORPORATE STRATEGY - ENVIRONMENTAL PROJECTS,CAR HIRE,F405,CAR HIRE,CORPORATE STRATEGY,VEHICLE MANAGEMENT
http://statistics.data.gov.uk/id/local-authority/43UM,WOKING BOROUGH COUNCIL,20/03/2020,07/04/2020,0000451880/001,NORMAN JOHNS,40883100,25.51 ,CORPORATE STRATEGY - ENVIRONMENTAL PROJECTS,LA21,H118,LA21,CORPORATE STRATEGY,HUMAN RESOURCES
http://statistics.data.gov.uk/id/local-authority/43UM,WOKING BOROUGH COUNCIL,01/04/2020,07/04/2020,0000452347/002,ARTICLE SEVEN,00942800,37.50 ,CORPORATE STRATEGY - TOWN CENTRE FORUM,MARKETING,H406,MARKETING,CORPORATE STRATEGY,FACILITIES & MANAGEMENT SERVICES
http://statistics.data.gov.uk/id/local-authority/43UM,WOKING BOROUGH COUNCIL,02/04/2020,07/04/2020,0000452407/001,WOKING NEWS & MAIL LIMITED,40249900,100.00 ,CORPORATE STRATEGY - TOWN CENTRE FORUM,MARKETING,H406,MARKETING,CORPORATE STRATEGY,FACILITIES & MANAGEMENT SERVICES
http://statistics.data.gov.uk/id/local-authority/43UM,WOKING BOROUGH COUNCIL,01/04/2020,07/04/2020,0000452331/001,CMIS-UK LIMITED,40655600,120.00 ,CORPORATE STRATEGY - TOWN CENTRE FORUM,ECDEV INWARD INVESTMENT PLAN,H409,ECDEV INWARD INVESTMENT PLAN,CORPORATE STRATEGY,INFORMATION COMMUNICATION TECHNOLOGY
http://statistics.data.gov.uk/id/local-authority/43UM,WOKING BOROUGH COUNCIL,01/04/2020,07/04/2020,0000452351/001,OYSTER PARTNERSHIP,40443300,660.00 ,PLANNING SERVICES - DEVELOPMENT CONTROL,TEMPORARY STAFF,A110,TEMPORARY STAFF,PLANNING SERVICES,HUMAN RESOURCES
http://statistics.data.gov.uk/id/local-authority/43UM,WOKING BOROUGH COUNCIL,01/04/2020,07/04/2020,0000452354/001,OYSTER PARTNERSHIP,40443300,1474.54 ,PLANNING SERVICES - DEVELOPMENT CONTROL,TEMPORARY STAFF,A110,TEMPORARY STAFF,PLANNING SERVICES,HUMAN RESOURCES
http://statistics.data.gov.uk/id/local-authority/43UM,WOKING BOROUGH COUNCIL,24/03/2020,07/04/2020,0000452342/001,COLYER REPROPOINT,40603200,7020.00 ,CORPORATE STRATEGY - CORPORATE STRATEGY GENERAL EXP,PRINTING EXTERNAL,G600,PRINTING EXTERNAL,CORPORATE STRATEGY,STATIONERY
http://statistics.data.gov.uk/id/local-authority/43UM,WOKING BOROUGH COUNCIL,31/03/2020,07/04/2020,0000452359/001,EAGLE RADIO LTD,00013700,1120.00 ,CORPORATE STRATEGY - PUBLIC RELATIONS,STATUTORY ADVERTS,H410,STATUTORY ADVERTS,CORPORATE STRATEGY,FACILITIES & MANAGEMENT SERVICES
http://statistics.data.gov.uk/id/local-authority/43UM,WOKING BOROUGH COUNCIL,07/04/2020,07/04/2020,GPC/00011334,HOO*HOOTSUITE INC,PROCUREMENT CARD,88.72 ,CORPORATE STRATEGY - PUBLIC RELATIONS,GENERAL PUBLIC RELATIONS EXPNS,H915,ANNUAL SOCIAL MEDIA MANAGEMENT SUBSCRIPTION,MISS K MAIR,BUSINESS SERVICES - DEFAULT
http://statistics.data.gov.uk/id/local-authority/43UM,WOKING BOROUGH COUNCIL,31/03/2020,07/04/2020,0000452408/001,GALAXY CARS,01385200,1695.00 ,CORPORATE STRATEGY - MAYORS CAR AND DRIVER,VEHICLE AD HOC HIRING,F410,VEHICLE AD HOC HIRING,CORPORATE STRATEGY,VEHICLE MANAGEMENT
http://statistics.data.gov.uk/id/local-authority/43UM,WOKING BOROUGH COUNCIL,03/03/2020,07/04/2020,0000450988/001,CMS TRAINING LTD,40408400,678.00 ,CORPORATE MANAGEMENT GROUP - STAFF TRAINING/GENERAL COSTS,TRAINING - CORPORATE,A910,TRAINING - CORPORATE,CORPORATE MANAGEMENT GROUP,HUMAN RESOURCES
http://statistics.data.gov.uk/id/local-authority/43UM,WOKING BOROUGH COUNCIL,11/03/2020,07/04/2020,0000451147/001,CMS TRAINING LTD,40408400,678.00 ,CORPORATE MANAGEMENT GROUP - STAFF TRAINING/GENERAL COSTS,TRAINING - CORPORATE,A910,TRAINING - CORPORATE,CORPORATE MANAGEMENT GROUP,HUMAN RESOURCES
http://statistics.data.gov.uk/id/local-authority/43UM,WOKING BOROUGH COUNCIL,31/03/2020,07/04/2020,0000452465/001,LEARNING POOL LIMITED,40443500,5625.00 ,CORPORATE MANAGEMENT GROUP - STAFF TRAINING/GENERAL COSTS,TRAINING - CORPORATE,A910,TRAINING - CORPORATE,CORPORATE MANAGEMENT GROUP,HUMAN RESOURCES
http://statistics.data.gov.uk/id/local-authority/43UM,WOKING BOROUGH COUNCIL,07/04/2020,07/04/2020,GPC/00011338,SCREWFIX DIRECT,PROCUREMENT CARD,56.62 ,CORPORATE MANAGEMENT GROUP - STAFF TRAINING/GENERAL COSTS,COVID-19 SUPPLIES & SERVICES,H980,HANDWIPES FOR CIVIC,LISA HARRINGTON,HOME SUPPLY WAREHOUSE STORES
http://statistics.data.gov.uk/id/local-authority/43UM,WOKING BOROUGH COUNCIL,07/04/2020,07/04/2020,GPC/00011339,SCREWFIX DIRECT,PROCUREMENT CARD,22.65 ,CORPORATE MANAGEMENT GROUP - STAFF TRAINING/GENERAL COSTS,COVID-19 SUPPLIES & SERVICES,H980,HANDWIPES FOR CIVIC,LISA HARRINGTON,HOME SUPPLY WAREHOUSE STORES
http://statistics.data.gov.uk/id/local-authority/43UM,WOKING BOROUGH COUNCIL,07/04/2020,07/04/2020,GPC/00011340,SCREWFIX DIRECT,PROCUREMENT CARD,56.62 ,CORPORATE MANAGEMENT GROUP - STAFF TRAINING/GENERAL COSTS,COVID-19 SUPPLIES & SERVICES,H980,HANDWIPES FOR CIVIC,LISA HARRINGTON,HOME SUPPLY WAREHOUSE STORES
http://statistics.data.gov.uk/id/local-authority/43UM,WOKING BOROUGH COUNCIL,01/04/2020,07/04/2020,0000452347/003,ARTICLE SEVEN,00942800,87.50 ,INFORMATION TECHNOLOGY - I.T.S. ICT,PC & SERVER APPLICATION SOFT/W,G180,PC & SERVER APPLICATION SOFT/W,INFORMATION TECHNOLOGY,FACILITIES & MANAGEMENT SERVICES
http://statistics.data.gov.uk/id/local-authority/43UM,WOKING BOROUGH COUNCIL,01/05/2020,07/04/2020,0000452341/001,ACCESSABLE,01652000,9890.00 ,INFORMATION TECHNOLOGY - I.T.S. ICT,HOSTED SYSTEMS,G198,HOSTED SYSTEMS,INFORMATION TECHNOLOGY,INFORMATION COMMUNICATION TECHNOLOGY
http://statistics.data.gov.uk/id/local-authority/43UM,WOKING BOROUGH COUNCIL,01/04/2020,07/04/2020,0000452352/001,MYSOCIETY LTD,40127000,500.00 ,INFORMATION TECHNOLOGY - I.T.S. ICT,HOSTED SYSTEMS,G198,HOSTED SYSTEMS,INFORMATION TECHNOLOGY,INFORMATION COMMUNICATION TECHNOLOGY
http://statistics.data.gov.uk/id/local-authority/43UM,WOKING BOROUGH COUNCIL,31/03/2020,07/04/2020,0000452350/001,SECON CYBER SECURITY LIMITED,40537800,5659.50 ,INFORMATION TECHNOLOGY - I.T.S. ICT,CYBER SECURITY,G898,CYBER SECURITY,INFORMATION TECHNOLOGY,INFORMATION COMMUNICATION TECHNOLOGY
http://statistics.data.gov.uk/id/local-authority/43UM,WOKING BOROUGH COUNCIL,31/03/2020,07/04/2020,0000452350/002,SECON CYBER SECURITY LIMITED,40537800,11319.00 ,INFORMATION TECHNOLOGY - I.T.S. ICT,CYBER SECURITY,G898,CYBER SECURITY,INFORMATION TECHNOLOGY,INFORMATION COMMUNICATION TECHNOLOGY
http://statistics.data.gov.uk/id/local-authority/43UM,WOKING BOROUGH COUNCIL,31/03/2020,07/04/2020,0000452350/003,SECON CYBER SECURITY LIMITED,40537800,3500.00 ,INFORMATION TECHNOLOGY - I.T.S. ICT,CYBER SECURITY,G898,CYBER SECURITY,INFORMATION TECHNOLOGY,INFORMATION COMMUNICATION TECHNOLOGY
http://statistics.data.gov.uk/id/local-authority/43UM,WOKING BOROUGH COUNCIL,31/03/2020,07/04/2020,0000452350/004,SECON CYBER SECURITY LIMITED,40537800,10500.00 ,INFORMATION TECHNOLOGY - I.T.S. ICT,CYBER SECURITY,G898,CYBER SECURITY,INFORMATION TECHNOLOGY,INFORMATION COMMUNICATION TECHNOLOGY
http://statistics.data.gov.uk/id/local-authority/43UM,WOKING BOROUGH COUNCIL,31/03/2020,07/04/2020,0000452350/005,SECON CYBER SECURITY LIMITED,40537800,-2400.00 ,INFORMATION TECHNOLOGY - I.T.S. ICT,CYBER SECURITY,G898,CYBER SECURITY,INFORMATION TECHNOLOGY,INFORMATION COMMUNICATION TECHNOLOGY
http://statistics.data.gov.uk/id/local-authority/43UM,WOKING BOROUGH COUNCIL,31/03/2020,07/04/2020,0000452405/001,IRON MOUNTAIN (UK) PLC,01035400,568.14 ,INFORMATION TECHNOLOGY - I.T.S. ICT,OFF SITE SECURE,H769,OFF SITE SECURE,INFORMATION TECHNOLOGY,FACILITIES & MANAGEMENT SERVICES
http://statistics.data.gov.uk/id/local-authority/43UM,WOKING BOROUGH COUNCIL,17/03/2020,07/04/2020,0000451640/001,HEADLINE DESIGN & PRINT,00016900,127.00 ,CORPORATE STRATEGY - COVID -19 PENDEMIC,COMMUNICATIONS,Q050,COMMUNICATIONS,CORPORATE STRATEGY,FINANCIAL SERVICES
http://statistics.data.gov.uk/id/local-authority/43UM,WOKING BOROUGH COUNCIL,17/03/2020,07/04/2020,0000451640/002,HEADLINE DESIGN & PRINT,00016900,85.00 ,CORPORATE STRATEGY - COVID -19 PENDEMIC,COMMUNICATIONS,Q050,COMMUNICATIONS,CORPORATE STRATEGY,FINANCIAL SERVICES
http://statistics.data.gov.uk/id/local-authority/43UM,WOKING BOROUGH COUNCIL,17/03/2020,07/04/2020,0000451640/003,HEADLINE DESIGN & PRINT,00016900,84.00 ,CORPORATE STRATEGY - COVID -19 PENDEMIC,COMMUNICATIONS,Q050,COMMUNICATIONS,CORPORATE STRATEGY,FINANCIAL SERVICES
http://statistics.data.gov.uk/id/local-authority/43UM,WOKING BOROUGH COUNCIL,03/04/2020,07/04/2020,0000452482/001,FREEDOM LEISURE,40296500,93797.00 ,CORPORATE STRATEGY - COVID -19 PENDEMIC,MAIN CONTRACTOR,Q200,MAIN CONTRACTOR,CORPORATE STRATEGY,HUMAN RESOURCES
http://statistics.data.gov.uk/id/local-authority/43UM,WOKING BOROUGH COUNCIL,03/04/2020,07/04/2020,0000452483/001,FREEDOM LEISURE,40296500,306807.00 ,CORPORATE STRATEGY - COVID -19 PENDEMIC,MAIN CONTRACTOR,Q200,MAIN CONTRACTOR,CORPORATE STRATEGY,HUMAN RESOURCES
http://statistics.data.gov.uk/id/local-authority/43UM,WOKING BOROUGH COUNCIL,02/04/2020,07/04/2020,0000452413/001,PETER SADLER,40886000,27.45 ,CORPORATE STRATEGY - COVID-19 SHOP FOR VULNERABLE,MISCELLANEOUS EXPENSES,Q660,MISCELLANEOUS EXPENSES,CORPORATE STRATEGY,FINANCIAL SERVICES
http://statistics.data.gov.uk/id/local-authority/43UM,WOKING BOROUGH COUNCIL,28/03/2020,07/04/2020,0000452199/001,GURNEY CONSULTING ENGINEERS,00017000,700.00 ,ASSET MANAGEMENT - AMP PITP PH4 ROOF OVER CHG RMS,MAIN CONTRACTOR,Q200,MAIN CONTRACTOR,ASSET MANAGEMENT,WORKS (CONSTRUCTION REPAIR MAINTENANCE)
http://statistics.data.gov.uk/id/local-authority/43UM,WOKING BOROUGH COUNCIL,28/03/2020,07/04/2020,0000452201/001,GURNEY CONSULTING ENGINEERS,00017000,1050.00 ,ASSET MANAGEMENT - AMP PITP PHI STRUCTURE WORKS,MAIN CONTRACTOR,Q200,MAIN CONTRACTOR,ASSET MANAGEMENT,WORKS (CONSTRUCTION REPAIR MAINTENANCE)
http://statistics.data.gov.uk/id/local-authority/43UM,WOKING BOROUGH COUNCIL,28/03/2020,07/04/2020,0000452203/001,GURNEY CONSULTING ENGINEERS,00017000,1850.00 ,ASSET MANAGEMENT - AMP PITP CHANGING ROOM UPGRADE,MAIN CONTRACTOR,Q200,MAIN CONTRACTOR,ASSET MANAGEMENT,WORKS (CONSTRUCTION REPAIR MAINTENANCE)
http://statistics.data.gov.uk/id/local-authority/43UM,WOKING BOROUGH COUNCIL,13/03/2020,07/04/2020,0000452336/001,AUTHORISED PUBLICATIONS LTD,40606700,500.00 ,ASSET MANAGEMENT - BROOKWOOD CEMETERY TEMP COSTS,MAIN CONTRACTOR,Q200,MAIN CONTRACTOR,ASSET MANAGEMENT,STATIONERY
http://statistics.data.gov.uk/id/local-authority/43UM,WOKING BOROUGH COUNCIL,23/03/2020,07/04/2020,0000452343/001,GURNEY CONSULTING ENGINEERS,00017000,1920.00 ,ASSET MANAGEMENT - Y-POD BUILDING REDEVELOPMENT,MAIN CONTRACTOR,Q200,MAIN CONTRACTOR,ASSET MANAGEMENT,WORKS (CONSTRUCTION REPAIR MAINTENANCE)
http://statistics.data.gov.uk/id/local-authority/43UM,WOKING BOROUGH COUNCIL,31/03/2020,07/04/2020,0000452328/001,EDWARD PEARCE LLP,40755800,2500.00 ,ASSET MANAGEMENT - Y-POD BUILDING REDEVELOPMENT,OTHER CONSULTANTS,Q430,OTHER CONSULTANTS,ASSET MANAGEMENT,CONSULTANCY
http://statistics.data.gov.uk/id/local-authority/43UM,WOKING BOROUGH COUNCIL,31/03/2020,07/04/2020,0000452345/001,RGP DESIGN LTD,40821900,650.00 ,ASSET MANAGEMENT - TEN ACRE FARM,OTHER CONSULTANTS,Q430,OTHER CONSULTANTS,ASSET MANAGEMENT,FINANCIAL SERVICES
http://statistics.data.gov.uk/id/local-authority/43UM,WOKING BOROUGH COUNCIL,27/03/2020,07/04/2020,0000452353/001,HANN TUCKER ASSOCIATES,00337300,900.00 ,ASSET MANAGEMENT - CCTV REPLACEMENT IMPROVEMENT,MAIN CONTRACTOR,Q200,MAIN CONTRACTOR,ASSET MANAGEMENT,ENVIRONMENTAL SERVICES
http://statistics.data.gov.uk/id/local-authority/43UM,WOKING BOROUGH COUNCIL,23/03/2020,07/04/2020,0000452395/001,ARTON MONOSEAL LIMITED,01770200,240.00 ,HOUSING SERVICES - DISABLED FACILITIES GRANTS,MANDATORY GRANTS,Q712,MANDATORY GRANTS,HOUSING SERVICES,WORKS (CONSTRUCTION REPAIR MAINTENANCE)
http://statistics.data.gov.uk/id/local-authority/43UM,WOKING BOROUGH COUNCIL,03/03/2020,07/04/2020,0000452394/001,LIFESPAN SOLUTIONS LTD,40733300,11795.00 ,HOUSING SERVICES - DISABLED FACILITIES GRANTS,MANDATORY GRANTS,Q712,MANDATORY GRANTS,HOUSING SERVICES,WORKS (CONSTRUCTION REPAIR MAINTENANCE)
http://statistics.data.gov.uk/id/local-authority/43UM,WOKING BOROUGH COUNCIL,24/03/2020,07/04/2020,0000452398/001,WETDEC UK LTD,40579900,7986.00 ,HOUSING SERVICES - DISABLED FACILITIES GRANTS,MANDATORY GRANTS,Q712,MANDATORY GRANTS,HOUSING SERVICES,BUILDING CONSTRUCTION MATERIALS
http://statistics.data.gov.uk/id/local-authority/43UM,WOKING BOROUGH COUNCIL,02/04/2020,07/04/2020,0000452373/001,AST SERVICES LIMITED,40700200,580.00 ,HOUSING SERVICES - PRIVATE SECTOR RENEWAL GRANT,PALLIATIVE CARE/END OF LIFE AS,Q728,PALLIATIVE CARE/END OF LIFE AS,HOUSING SERVICES,FINANCIAL SERVICES
http://statistics.data.gov.uk/id/local-authority/43UM,WOKING BOROUGH COUNCIL,24/03/2020,07/04/2020,0000452043/001,HEIDI HARRIS,40397100,120.00 ,INDEPENDENT LIVING SERVICES - SHEERWATER SOCIAL SUPPORT,OTHER CONSULTANTS,Q430,OTHER CONSULTANTS,INDEPENDENT LIVING SERVICES,FINANCIAL SERVICES
http://statistics.data.gov.uk/id/local-authority/43UM,WOKING BOROUGH COUNCIL,13/03/2020,07/04/2020,0000452279/001,MAGALI HUYART,40837700,36.00 ,INDEPENDENT LIVING SERVICES - SHEERWATER SOCIAL SUPPORT,OTHER CONSULTANTS,Q430,OTHER CONSULTANTS,INDEPENDENT LIVING SERVICES,ARTS & LEISURE SERVICES
http://statistics.data.gov.uk/id/local-authority/43UM,WOKING BOROUGH COUNCIL,30/03/2020,07/04/2020,0000452278/001,SHENA GRIGOR,40056300,95.00 ,INDEPENDENT LIVING SERVICES - SHEERWATER SOCIAL SUPPORT,OTHER CONSULTANTS,Q430,OTHER CONSULTANTS,INDEPENDENT LIVING SERVICES,ARTS & LEISURE SERVICES
http://statistics.data.gov.uk/id/local-authority/43UM,WOKING BOROUGH COUNCIL,17/02/2020,07/04/2020,0000450433/001,THAMESWEY MAINTENANCE SERVICES LIMITED,40007000,23358.67 ,HOUSING SERVICES - PLANT ROOM UPGRADE - TMSL,MAIN CONTRACTOR,Q200,MAIN CONTRACTOR,HOUSING SERVICES,WORKS (CONSTRUCTION REPAIR MAINTENANCE)
http://statistics.data.gov.uk/id/local-authority/43UM,WOKING BOROUGH COUNCIL,25/03/2020,07/04/2020,0000452425/001,PETER JOHNSON ENTERTAINMENTS LTD,40886100,1395.00 ,CORPORATE STRATEGY - CELEBRATE WOKING - PARTY IN PARK,CELEBRATE WOKING MISC EXPENDITURE,Q562,CELEBRATE WOKING MISC EXPENDITURE,CORPORATE STRATEGY,ARTS & LEISURE SERVICES
http://statistics.data.gov.uk/id/local-authority/43UM,WOKING BOROUGH COUNCIL,02/04/2020,07/04/2020,0000452479/001,PRIMA ARTISTS,40878400,966.00 ,CORPORATE STRATEGY - CELEBRATE WOKING - PARTY IN PARK,CELEBRATE WOKING MISC EXPENDITURE,Q562,CELEBRATE WOKING MISC EXPENDITURE,CORPORATE STRATEGY,ARTS & LEISURE SERVICES
http://statistics.data.gov.uk/id/local-authority/43UM,WOKING BOROUGH COUNCIL,01/04/2020,07/04/2020,0000452347/001,ARTICLE SEVEN,00942800,150.00 ,CORPORATE STRATEGY - CELEBRATE WOKING - SUPPORT PROJECTS 14,MAIN CONTRACTOR,Q200,MAIN CONTRACTOR,CORPORATE STRATEGY,FACILITIES & MANAGEMENT SERVICES
http://statistics.data.gov.uk/id/local-authority/43UM,WOKING BOROUGH COUNCIL,31/03/2020,07/04/2020,0000452406/001,GURNEY CONSULTING ENGINEERS,00017000,550.00 ,NEIGHBOURHOOD SERVICES - VICTORIA W CP REFURB EXTENSION,MAIN CONTRACTOR,Q200,MAIN CONTRACTOR,NEIGHBOURHOOD SERVICES,WORKS (CONSTRUCTION REPAIR MAINTENANCE)
http://statistics.data.gov.uk/id/local-authority/43UM,WOKING BOROUGH COUNCIL,28/02/2020,07/04/2020,0000451012/001,LEWIS & HICKEY LTD,40712600,6000.00 ,NEIGHBOURHOOD SERVICES - VICTORIA W CP REFURB EXTENSION,MAIN CONTRACTOR,Q200,MAIN CONTRACTOR,NEIGHBOURHOOD SERVICES,CONSULTANCY
http://statistics.data.gov.uk/id/local-authority/43UM,WOKING BOROUGH COUNCIL,30/03/2020,07/04/2020,0000452247/001,MALTAWARD BARRIERS LTD,40850900,22.14 ,ASSET MANAGEMENT - WATERMAN HSE & TA UPGRADE,MAIN CONTRACTOR,Q200,MAIN CONTRACTOR,ASSET MANAGEMENT,BUILDING CONSTRUCTION MATERIALS
http://statistics.data.gov.uk/id/local-authority/43UM,WOKING BOROUGH COUNCIL,30/03/2020,07/04/2020,0000452375/001,ECOLOGIA ENVIRONMENTAL SOLUTIONS LTD,40874000,3763.57 ,ASSET MANAGEMENT - BROOKWOOD FARM SEN SCHOOL,OTHER CONSULTANTS,Q430,OTHER CONSULTANTS,ASSET MANAGEMENT,ENVIRONMENTAL SERVICES
http://statistics.data.gov.uk/id/local-authority/43UM,WOKING BOROUGH COUNCIL,30/03/2020,07/04/2020,0000452375/002,ECOLOGIA ENVIRONMENTAL SOLUTIONS LTD,40874000,3293.12 ,ASSET MANAGEMENT - BROOKWOOD FARM SEN SCHOOL,OTHER CONSULTANTS,Q430,OTHER CONSULTANTS,ASSET MANAGEMENT,ENVIRONMENTAL SERVICES
http://statistics.data.gov.uk/id/local-authority/43UM,WOKING BOROUGH COUNCIL,01/04/2020,07/04/2020,0000452340/001,GRAVITAS RECRUITMENT GROUP LIMITED,40721300,2360.00 ,INFORMATION TECHNOLOGY - OPEN HOUSING IMPLEMETATION,SERVICES,Q053,SERVICES,INFORMATION TECHNOLOGY,HUMAN RESOURCES
http://statistics.data.gov.uk/id/local-authority/43UM,WOKING BOROUGH COUNCIL,03/04/2020,07/04/2020,0000452412/001,GRAVITAS RECRUITMENT GROUP LIMITED,40721300,2360.00 ,INFORMATION TECHNOLOGY - OPEN HOUSING IMPLEMETATION,SERVICES,Q053,SERVICES,INFORMATION TECHNOLOGY,HUMAN RESOURCES
http://statistics.data.gov.uk/id/local-authority/43UM,WOKING BOROUGH COUNCIL,06/04/2020,07/04/2020,0000452488/001,COMPLETE IT SYSTEMS,40591300,119.00 ,INFORMATION TECHNOLOGY - ICT GENERAL REPLACEMENT 2019/20,REPLACEMENT EQUIPMENT,Q010,REPLACEMENT EQUIPMENT,INFORMATION TECHNOLOGY,INFORMATION COMMUNICATION TECHNOLOGY
http://statistics.data.gov.uk/id/local-authority/43UM,WOKING BOROUGH COUNCIL,25/03/2020,07/04/2020,0000452514/001,CCS MEDIA,01748600,3360.00 ,INFORMATION TECHNOLOGY - ICT GENERAL REPLACEMENT 2019/20,ADDITIONAL EQUIPMENT,Q020,ADDITIONAL EQUIPMENT,INFORMATION TECHNOLOGY,STATIONERY
http://statistics.data.gov.uk/id/local-authority/43UM,WOKING BOROUGH COUNCIL,31/03/2020,07/04/2020,0000452366/001,PYTHAGORAS COMMUNICATIONS LTD,40854100,2442.00 ,INFORMATION TECHNOLOGY - ICT GENERAL REPLACEMENT 2019/20,SERVICES,Q053,SERVICES,INFORMATION TECHNOLOGY,INFORMATION COMMUNICATION TECHNOLOGY
http://statistics.data.gov.uk/id/local-authority/43UM,WOKING BOROUGH COUNCIL,07/04/2020,07/04/2020,GPC/00011337,AMZNMKTPLACE,PROCUREMENT CARD,79.92 ,INFORMATION TECHNOLOGY - ICT GENERAL REPLACEMENT 2020/21,ADDITIONAL EQUIPMENT,Q020,6 X ZTOTOP CASE FOR IPAD AIR 10.5 2019,MR G S SANDHU,MISC SPECIALITY RETAIL
http://statistics.data.gov.uk/id/local-authority/43UM,WOKING BOROUGH COUNCIL,08/04/2020,08/04/2020,GPC/00011346,WILKO RETAIL LIMITED,PROCUREMENT CARD,3.33 ,ASSET MANAGEMENT - FACILITIES MANAGEMENT,FACILITIES MANAGEMENT REPAIRS,D908,CIVIC OFFICE MATERIALS,MR C NORTON,MISC GEN MERCHANDISE - DEF
http://statistics.data.gov.uk/id/local-authority/43UM,WOKING BOROUGH COUNCIL,08/04/2020,08/04/2020,GPC/00011345,SCREWFIX DIRECT,PROCUREMENT CARD,205.32 ,HOUSING SERVICES - HOME IMPS & BEN AGENCY,HANDYPERSON MATERIALS,G201,HANDYPERSON MATERIALS,IAN DEANE,HOME SUPPLY WAREHOUSE STORES
http://statistics.data.gov.uk/id/local-authority/43UM,WOKING BOROUGH COUNCIL,08/04/2020,08/04/2020,GPC/00011347,SCREWFIX DIRECT,PROCUREMENT CARD,4.57 ,INDEPENDENT LIVING SERVICES - MOORCROFT,REFURBISHMENTS,D104,REFURB,RICHARD BUCKENHAM,HOME SUPPLY WAREHOUSE STORES
http://statistics.data.gov.uk/id/local-authority/43UM,WOKING BOROUGH COUNCIL,08/04/2020,08/04/2020,GPC/00011344,MARTIN MCCOLL,PROCUREMENT CARD,4.60 ,INDEPENDENT LIVING SERVICES - BROCKHILL EXTRA CARE,COVID-19 SUPPLIES & SERVICES,H980,MAGAZINES FOR BROCKHILL TENANTS,MRS M CHILCOTT,MISC FOOD STORES - DEFAULT
http://statistics.data.gov.uk/id/local-authority/43UM,WOKING BOROUGH COUNCIL,08/04/2020,08/04/2020,GPC/00011348,THE POST OFFICE,PROCUREMENT CARD,6.20 ,INDEPENDENT LIVING SERVICES - FAMILY SUPPORT PROGRAMME,FAMILY ENABLING (FSP PROJECT),H137,WOK902 - FAMILY ENABLING,ABI MEICHTRY,POSTAGE STAMPS
http://statistics.data.gov.uk/id/local-authority/43UM,WOKING BOROUGH COUNCIL,08/04/2020,08/04/2020,GPC/00011342,SAINSBURYS S/MKTS,PROCUREMENT CARD,24.10 ,INDEPENDENT LIVING SERVICES - FAMILY SUPPORT PROGRAMME,COVID-19 SUPPLIES & SERVICES,H980,COVID19 SUPPLIES AND SERVICES,ADAM THOMAS,GROCERY STORES
http://statistics.data.gov.uk/id/local-authority/43UM,WOKING BOROUGH COUNCIL,08/04/2020,08/04/2020,GPC/00011343,WWW.DOMINOS.CO.UK,PROCUREMENT CARD,31.23 ,INDEPENDENT LIVING SERVICES - FAMILY SUPPORT PROGRAMME,COVID-19 SUPPLIES & SERVICES,H980,COVID19 SUPPLIES AND SERVICES,ADAM THOMAS,RESTAURANTS
http://statistics.data.gov.uk/id/local-authority/43UM,WOKING BOROUGH COUNCIL,08/04/2020,08/04/2020,GPC/00011335,FOREIGN EXCHANGE FEE,PROCUREMENT CARD,2.44 ,CORPORATE STRATEGY - PUBLIC RELATIONS,GENERAL PUBLIC RELATIONS EXPNS,H915,FOREIGN EXCHANGE FEE FOR HOOTSUITE SUBSCRIPTION,MISS K MAIR,MERCHANT CATEGORY UNKNOWN
http://statistics.data.gov.uk/id/local-authority/43UM,WOKING BOROUGH COUNCIL,08/04/2020,08/04/2020,GPC/00011341,MAILCHIMP,PROCUREMENT CARD,10.35 ,CORPORATE STRATEGY - PUBLIC RELATIONS,GENERAL PUBLIC RELATIONS EXPNS,H915,E-NEWSLETTER SOFTWARE MONTHLY SUBSCRIPTION,MISS K MAIR,DIGITAL GOODS-MULTI-CATEGORY
http://statistics.data.gov.uk/id/local-authority/43UM,WOKING BOROUGH COUNCIL,08/04/2020,08/04/2020,GPC/00011349,AMAZON.CO.UK,PROCUREMENT CARD,11.52 ,CORPORATE MANAGEMENT GROUP - STAFF TRAINING/GENERAL COSTS,HEALTH CARE,A780,LAPTOP STAND,LISA HARRINGTON,OTHER DIRECT MARKETERS
http://statistics.data.gov.uk/id/local-authority/43UM,WOKING BOROUGH COUNCIL,08/04/2020,08/04/2020,GPC/00011350,SETON,PROCUREMENT CARD,34.95 ,CORPORATE MANAGEMENT GROUP - STAFF TRAINING/GENERAL COSTS,COVID-19 SUPPLIES & SERVICES,H980,DISINFECTANT SPRAY,LISA HARRINGTON,DURABLE GOODS - DEFAULT
http://statistics.data.gov.uk/id/local-authority/43UM,WOKING BOROUGH COUNCIL,08/04/2020,08/04/2020,GPC/00011358,AMZNMKTPLACE AMAZON.CO.UK,PROCUREMENT CARD,62.20 ,INFORMATION TECHNOLOGY - ICT GENERAL REPLACEMENT 2020/21,ADDITIONAL EQUIPMENT,Q020,TPLINK NETWORK EQPMENT,DAVE FAYERS,MISC SPECIALITY RETAIL
http://statistics.data.gov.uk/id/local-authority/43UM,WOKING BOROUGH COUNCIL,31/03/2020,09/04/2020,0000452478/001,MARTIN BROKERS,40523400,82.19 ,FINANCIAL SERVICES - DEBT MANAGEMENT EXPENSES,DEBT MANAGEMENT-BROKERAGE,H634,DEBT MANAGEMENT-BROKERAGE,FINANCIAL SERVICES,FINANCIAL SERVICES
http://statistics.data.gov.uk/id/local-authority/43UM,WOKING BOROUGH COUNCIL,29/03/2020,09/04/2020,0000452503/001,BRISTOW & SUTOR,40257600,25.50 ,REVENUES AND BENEFITS - RENT ALLOWANCES,DEBT COLLECTION AGENCY COMMISS,H910,DEBT COLLECTION AGENCY COMMISS,REVENUES AND BENEFITS,FINANCIAL SERVICES
http://statistics.data.gov.uk/id/local-authority/43UM,WOKING BOROUGH COUNCIL,01/04/2020,09/04/2020,0000452415/001,HAYS,00228700,311.10 ,CORPORATE STRATEGY - CUSTOMER SERVICES,TEMPORARY STAFF,A110,TEMPORARY STAFF,CORPORATE STRATEGY,HUMAN RESOURCES
http://statistics.data.gov.uk/id/local-authority/43UM,WOKING BOROUGH COUNCIL,01/04/2020,09/04/2020,0000452432/001,HAYS,00228700,793.32 ,CORPORATE STRATEGY - CUSTOMER SERVICES,TEMPORARY STAFF,A110,TEMPORARY STAFF,CORPORATE STRATEGY,HUMAN RESOURCES
http://statistics.data.gov.uk/id/local-authority/43UM,WOKING BOROUGH COUNCIL,14/03/2020,09/04/2020,0000452537/001,GEORGE AZARIAH-MORENO,40710300,31.20 ,CORPORATE STRATEGY - WAVS,INTERPRETATION & TRANSLATION,H636,INTERPRETATION & TRANSLATION,CORPORATE STRATEGY,CONSULTANCY
http://statistics.data.gov.uk/id/local-authority/43UM,WOKING BOROUGH COUNCIL,14/03/2020,09/04/2020,0000452538/001,GEORGE AZARIAH-MORENO,40710300,14.00 ,CORPORATE STRATEGY - WAVS,INTERPRETATION & TRANSLATION,H636,INTERPRETATION & TRANSLATION,CORPORATE STRATEGY,CONSULTANCY
http://statistics.data.gov.uk/id/local-authority/43UM,WOKING BOROUGH COUNCIL,14/03/2020,09/04/2020,0000452539/001,GEORGE AZARIAH-MORENO,40710300,65.60 ,CORPORATE STRATEGY - WAVS,INTERPRETATION & TRANSLATION,H636,INTERPRETATION & TRANSLATION,CORPORATE STRATEGY,CONSULTANCY
http://statistics.data.gov.uk/id/local-authority/43UM,WOKING BOROUGH COUNCIL,19/03/2020,09/04/2020,0000452450/001,JULIET-ANN BATISTA,40690700,82.00 ,CORPORATE STRATEGY - WAVS,INTERPRETATION & TRANSLATION,H636,INTERPRETATION & TRANSLATION,CORPORATE STRATEGY,CONSULTANCY
http://statistics.data.gov.uk/id/local-authority/43UM,WOKING BOROUGH COUNCIL,17/03/2020,09/04/2020,0000452451/001,JULIET-ANN BATISTA,40690700,80.80 ,CORPORATE STRATEGY - WAVS,INTERPRETATION & TRANSLATION,H636,INTERPRETATION & TRANSLATION,CORPORATE STRATEGY,CONSULTANCY
http://statistics.data.gov.uk/id/local-authority/43UM,WOKING BOROUGH COUNCIL,23/03/2020,09/04/2020,0000452452/001,JULIET-ANN BATISTA,40690700,40.00 ,CORPORATE STRATEGY - WAVS,INTERPRETATION & TRANSLATION,H636,INTERPRETATION & TRANSLATION,CORPORATE STRATEGY,CONSULTANCY
http://statistics.data.gov.uk/id/local-authority/43UM,WOKING BOROUGH COUNCIL,03/04/2020,09/04/2020,0000452485/001,SEEMA PATEL,40688900,43.80 ,CORPORATE STRATEGY - WAVS,INTERPRETATION & TRANSLATION,H636,INTERPRETATION & TRANSLATION,CORPORATE STRATEGY,CONSULTANCY
http://statistics.data.gov.uk/id/local-authority/43UM,WOKING BOROUGH COUNCIL,06/04/2020,09/04/2020,0030002173/001,PUBLIC WORKS LOAN BOARD,00021400,12874.69 ,FINANCIAL SERVICES - INTEREST PAYABLE & SIMILAR CHG,PWLB ANNUITY,U111,PWLB ANNUITY,FINANCIAL SERVICES,FINANCIAL SERVICES
http://statistics.data.gov.uk/id/local-authority/43UM,WOKING BOROUGH COUNCIL,06/04/2020,09/04/2020,0030002171/001,PUBLIC WORKS LOAN BOARD,00021400,118750.00 ,FINANCIAL SERVICES - INTEREST PAYABLE & SIMILAR CHG,PWLB MATURITY LOAN,U112,PWLB MATURITY LOAN,FINANCIAL SERVICES,FINANCIAL SERVICES
http://statistics.data.gov.uk/id/local-authority/43UM,WOKING BOROUGH COUNCIL,06/04/2020,09/04/2020,0030002172/001,PUBLIC WORKS LOAN BOARD,00021400,118750.00 ,FINANCIAL SERVICES - INTEREST PAYABLE & SIMILAR CHG,PWLB MATURITY LOAN,U112,PWLB MATURITY LOAN,FINANCIAL SERVICES,FINANCIAL SERVICES
http://statistics.data.gov.uk/id/local-authority/43UM,WOKING BOROUGH COUNCIL,06/04/2020,09/04/2020,0030002174/001,PUBLIC WORKS LOAN BOARD,00021400,106500.00 ,FINANCIAL SERVICES - INTEREST PAYABLE & SIMILAR CHG,PWLB MATURITY LOAN,U112,PWLB MATURITY LOAN,FINANCIAL SERVICES,FINANCIAL SERVICES
http://statistics.data.gov.uk/id/local-authority/43UM,WOKING BOROUGH COUNCIL,06/04/2020,09/04/2020,0030002170/001,BARCLAYS CAPITAL,00132800,98479.45 ,FINANCIAL SERVICES - INTEREST PAYABLE & SIMILAR CHG,L.O.B.O. LOAN,U113,L.O.B.O. LOAN,FINANCIAL SERVICES,FINANCIAL SERVICES
http://statistics.data.gov.uk/id/local-authority/43UM,WOKING BOROUGH COUNCIL,06/04/2020,09/04/2020,0030002169/001,DANSKE BANK,01657400,118424.66 ,FINANCIAL SERVICES - INTEREST PAYABLE & SIMILAR CHG,L.O.B.O. LOAN,U113,L.O.B.O. LOAN,FINANCIAL SERVICES,FINANCIAL SERVICES
http://statistics.data.gov.uk/id/local-authority/43UM,WOKING BOROUGH COUNCIL,06/04/2020,09/04/2020,0030002168/001,DEXIA CREDIT LOCAL,01657300,118424.66 ,FINANCIAL SERVICES - INTEREST PAYABLE & SIMILAR CHG,L.O.B.O. LOAN,U113,L.O.B.O. LOAN,FINANCIAL SERVICES,FINANCIAL SERVICES
http://statistics.data.gov.uk/id/local-authority/43UM,WOKING BOROUGH COUNCIL,31/03/2020,09/04/2020,0000452462/001,CROSSROADS CARE,40825100,2483.00 ,CORPORATE STRATEGY - GRANTS TO ORGANISATION,GRANTS,H100,GRANTS,CORPORATE STRATEGY,FINANCIAL SERVICES
http://statistics.data.gov.uk/id/local-authority/43UM,WOKING BOROUGH COUNCIL,31/03/2020,09/04/2020,0000452505/001,PARKINSONS UK,40748100,640.00 ,CORPORATE STRATEGY - GRANTS TO ORGANISATION,GRANTS,H100,GRANTS,CORPORATE STRATEGY,FINANCIAL SERVICES
http://statistics.data.gov.uk/id/local-authority/43UM,WOKING BOROUGH COUNCIL,01/04/2020,09/04/2020,0000452444/001,SURREY NORTH AREA CRUSE BEREAVEMENT CARE,40742700,907.50 ,CORPORATE STRATEGY - GRANTS TO ORGANISATION,GRANTS,H100,GRANTS,CORPORATE STRATEGY,SOCIAL COMMUNITY CARE SUPPLIES & SERVICS
http://statistics.data.gov.uk/id/local-authority/43UM,WOKING BOROUGH COUNCIL,31/03/2020,09/04/2020,0000452447/001,THE CLUB AT OLD WOKING,01645900,272.00 ,CORPORATE STRATEGY - GRANTS TO ORGANISATION,GRANTS,H100,GRANTS,CORPORATE STRATEGY,FINANCIAL SERVICES
http://statistics.data.gov.uk/id/local-authority/43UM,WOKING BOROUGH COUNCIL,31/03/2020,09/04/2020,0000452443/001,WOKING AGE CONCERN,01930200,1250.00 ,CORPORATE STRATEGY - GRANTS TO ORGANISATION,GRANTS,H100,GRANTS,CORPORATE STRATEGY,FINANCIAL SERVICES
http://statistics.data.gov.uk/id/local-authority/43UM,WOKING BOROUGH COUNCIL,01/04/2020,09/04/2020,0000452457/001,RELATE WEST SURREY,00028800,15000.00 ,CORPORATE STRATEGY - RELATE,GRANTS,H100,GRANTS,CORPORATE STRATEGY,FINANCIAL SERVICES
http://statistics.data.gov.uk/id/local-authority/43UM,WOKING BOROUGH COUNCIL,29/02/2020,09/04/2020,0000452536/001,CIVICA ELECTION SERVICES LIMITED,40886600,291.44 ,CORPORATE STRATEGY - REGISTER OF ELECTORS,PC & SERVER SYSTEMS SOFTWARE,G193,PC & SERVER SYSTEMS SOFTWARE,CORPORATE STRATEGY,CONSULTANCY
http://statistics.data.gov.uk/id/local-authority/43UM,WOKING BOROUGH COUNCIL,31/03/2020,09/04/2020,0000452501/001,CIVICA ELECTION SERVICES LIMITED,40886600,2.60 ,CORPORATE STRATEGY - REGISTER OF ELECTORS,STATIONERY,G620,STATIONERY,CORPORATE STRATEGY,CONSULTANCY
http://statistics.data.gov.uk/id/local-authority/43UM,WOKING BOROUGH COUNCIL,31/03/2020,09/04/2020,0000452501/002,CIVICA ELECTION SERVICES LIMITED,40886600,27.28 ,CORPORATE STRATEGY - REGISTER OF ELECTORS,POSTAGE - STANDARD TARIFF,G700,POSTAGE - STANDARD TARIFF,CORPORATE STRATEGY,CONSULTANCY
http://statistics.data.gov.uk/id/local-authority/43UM,WOKING BOROUGH COUNCIL,31/03/2020,09/04/2020,0000452321/001,MAILBOXES ETC. (WOKING) LTD,22713100,199.50 ,CORPORATE STRATEGY - POSTAGE,COURIER SERVICES - EXTERNAL,G618,COURIER SERVICES - EXTERNAL,CORPORATE STRATEGY,FINANCIAL SERVICES
http://statistics.data.gov.uk/id/local-authority/43UM,WOKING BOROUGH COUNCIL,09/04/2020,09/04/2020,0030002179/001,THAMESWEY DEVELOPMENTS LTD,40086300,1500000.00 ,FINANCIAL SERVICES - TEL POOLE RD ENERGY CENTRE,LONG TERM LOAN,S864,LONG TERM LOAN,FINANCIAL SERVICES,WORKS (CONSTRUCTION REPAIR MAINTENANCE)
http://statistics.data.gov.uk/id/local-authority/43UM,WOKING BOROUGH COUNCIL,08/04/2020,09/04/2020,0030002176/001,MACKRELL TURNER GARRETT,40887200,400.00 ,FINANCIAL SERVICES - LOAN ADV THL SW PROPERTY PURCH,LONG TERM LOAN,S864,LONG TERM LOAN,FINANCIAL SERVICES,LEGAL SERVICES
http://statistics.data.gov.uk/id/local-authority/43UM,WOKING BOROUGH COUNCIL,30/03/2020,09/04/2020,0030002178/001,RUTLAND (WOKING) LIMITED,40757400,100000.00 ,FINANCIAL SERVICES - RUTLAND ROBIN HOOD PUB,LONG TERM LOAN,S864,LONG TERM LOAN,FINANCIAL SERVICES,FINANCIAL SERVICES
http://statistics.data.gov.uk/id/local-authority/43UM,WOKING BOROUGH COUNCIL,10/03/2020,09/04/2020,0000451718/001,CASTLE WATER LIMITED,40650200,5.63 ,ASSET MANAGEMENT - TOWN CENTRE LEISURE,WATER,D700,WATER,ASSET MANAGEMENT,UTILITIES
http://statistics.data.gov.uk/id/local-authority/43UM,WOKING BOROUGH COUNCIL,05/04/2020,09/04/2020,0000452492/001,BWS PARTNERSHIP,40865400,150.00 ,ASSET MANAGEMENT - ALBION HOUSE (WOKING ONE),CONSULTANTS,H670,CONSULTANTS,ASSET MANAGEMENT,CONSULTANCY
http://statistics.data.gov.uk/id/local-authority/43UM,WOKING BOROUGH COUNCIL,31/03/2020,09/04/2020,0000452329/001,EDWARD PEARCE LLP,40755800,3280.00 ,ASSET MANAGEMENT - FACILITIES MANAGEMENT,FACILITIES MANAGEMENT REPAIRS,D908,FACILITIES MANAGEMENT REPAIRS,ASSET MANAGEMENT,CONSULTANCY
http://statistics.data.gov.uk/id/local-authority/43UM,WOKING BOROUGH COUNCIL,07/04/2020,09/04/2020,0000452575/001,OYSTER PARTNERSHIP,40443300,1866.50 ,ASSET MANAGEMENT - VALUATION SERVICES,TEMPORARY STAFF,A110,TEMPORARY STAFF,ASSET MANAGEMENT,HUMAN RESOURCES
http://statistics.data.gov.uk/id/local-authority/43UM,WOKING BOROUGH COUNCIL,07/04/2020,09/04/2020,0000452576/001,OYSTER PARTNERSHIP,40443300,1871.00 ,ASSET MANAGEMENT - VALUATION SERVICES,TEMPORARY STAFF,A110,TEMPORARY STAFF,ASSET MANAGEMENT,HUMAN RESOURCES
http://statistics.data.gov.uk/id/local-authority/43UM,WOKING BOROUGH COUNCIL,02/03/2020,09/04/2020,0000452555/001,CASTLE WATER LIMITED,40650200,1448.94 ,CORPORATE STRATEGY - WOMENS SUPPORT CENTRE SURREY,UTILITIES,G515,UTILITIES,CORPORATE STRATEGY,UTILITIES
http://statistics.data.gov.uk/id/local-authority/43UM,WOKING BOROUGH COUNCIL,04/04/2020,09/04/2020,0000452556/001,VERIZON UK LIMITED,00107600,1030.83 ,INFORMATION TECHNOLOGY - COMMUNICATIONS,NETWORK CIRCUITS,G800,NETWORK CIRCUITS,INFORMATION TECHNOLOGY,INFORMATION COMMUNICATION TECHNOLOGY
http://statistics.data.gov.uk/id/local-authority/43UM,WOKING BOROUGH COUNCIL,04/04/2020,09/04/2020,0000452556/002,VERIZON UK LIMITED,00107600,1095.08 ,INFORMATION TECHNOLOGY - COMMUNICATIONS,NETWORK CIRCUITS,G800,NETWORK CIRCUITS,INFORMATION TECHNOLOGY,INFORMATION COMMUNICATION TECHNOLOGY
http://statistics.data.gov.uk/id/local-authority/43UM,WOKING BOROUGH COUNCIL,28/03/2020,09/04/2020,0000452348/001,SDK ENVIRONMENTAL LTD,40462700,1177.78 ,NEIGHBOURHOOD SERVICES - PEST CONTROL,PAYMENTS TO CONTRACTORS,H780,PAYMENTS TO CONTRACTORS,NEIGHBOURHOOD SERVICES,ENVIRONMENTAL SERVICES
http://statistics.data.gov.uk/id/local-authority/43UM,WOKING BOROUGH COUNCIL,05/02/2020,09/04/2020,0000452330/001,TREVOR J DEACON & MRS DALIS M DEACON,01401900,1474.84 ,HOUSING SERVICES - LETS RENT SCHEME,CORE BOND CLAIMS,H712,CORE BOND CLAIMS,HOUSING SERVICES,FINANCIAL SERVICES
http://statistics.data.gov.uk/id/local-authority/43UM,WOKING BOROUGH COUNCIL,28/02/2020,09/04/2020,0000452254/001,A M NELLESS LTD,40404900,134.76 ,HOUSING SERVICES - LETS RENT SCHEME,LANDLORD SAFETY CERTIFICATES,H776,LANDLORD SAFETY CERTIFICATES,HOUSING SERVICES,WORKS (CONSTRUCTION REPAIR MAINTENANCE)
http://statistics.data.gov.uk/id/local-authority/43UM,WOKING BOROUGH COUNCIL,09/04/2020,09/04/2020,GPC/00011355,ALLIANCE DISPOSABLES,PROCUREMENT CARD,84.40 ,INDEPENDENT LIVING SERVICES - BROCKHILL EXTRA CARE,COVID-19 SUPPLIES & SERVICES,H980,GLOVES FOR DELIVERERS,REBECCA STEVENS,CATERERS
http://statistics.data.gov.uk/id/local-authority/43UM,WOKING BOROUGH COUNCIL,09/04/2020,09/04/2020,GPC/00011356,BOOKERECOMM,PROCUREMENT CARD,116.88 ,INDEPENDENT LIVING SERVICES - BROCKHILL EXTRA CARE,COVID-19 SUPPLIES & SERVICES,H980,GROCERIES FOR BROCKHILL,REBECCA STEVENS,CATERERS
http://statistics.data.gov.uk/id/local-authority/43UM,WOKING BOROUGH COUNCIL,09/04/2020,09/04/2020,GPC/00011356,BOOKERECOMM,PROCUREMENT CARD,144.34 ,INDEPENDENT LIVING SERVICES - BROCKHILL EXTRA CARE,COVID-19 SUPPLIES & SERVICES,H980,GROCERIES FOR BROCKHILL,REBECCA STEVENS,CATERERS
http://statistics.data.gov.uk/id/local-authority/43UM,WOKING BOROUGH COUNCIL,09/04/2020,09/04/2020,GPC/00011361,BOOTS 5073,PROCUREMENT CARD,6.08 ,INDEPENDENT LIVING SERVICES - BROCKHILL EXTRA CARE,COVID-19 SUPPLIES & SERVICES,H980,BROCKHILL,WARWICK HINDS-SHORLAND,DRUG STORES AND PHARMACIES
http://statistics.data.gov.uk/id/local-authority/43UM,WOKING BOROUGH COUNCIL,09/04/2020,09/04/2020,GPC/00011353,LAKELAND.LIMITED,PROCUREMENT CARD,29.16 ,INDEPENDENT LIVING SERVICES - BROCKHILL EXTRA CARE,COVID-19 SUPPLIES & SERVICES,H980,ELECTRICK HAND WHISK FOR TENANT,MRS M CHILCOTT,MISC GEN MERCHANDISE - DEF
http://statistics.data.gov.uk/id/local-authority/43UM,WOKING BOROUGH COUNCIL,09/04/2020,09/04/2020,GPC/00011360,WAITROSE 181,PROCUREMENT CARD,3.10 ,INDEPENDENT LIVING SERVICES - BROCKHILL EXTRA CARE,COVID-19 SUPPLIES & SERVICES,H980,BROCKHILL,WARWICK HINDS-SHORLAND,GROCERY STORES
http://statistics.data.gov.uk/id/local-authority/43UM,WOKING BOROUGH COUNCIL,09/04/2020,09/04/2020,GPC/00011352,AMZNMKTPLACE,PROCUREMENT CARD,109.93 ,INDEPENDENT LIVING SERVICES - THE VYNE,REFURBISHMENTS,D104,NEW CURTAIN POLES FOR TV,GILLIAN WAINE,MISC SPECIALITY RETAIL
http://statistics.data.gov.uk/id/local-authority/43UM,WOKING BOROUGH COUNCIL,09/04/2020,09/04/2020,GPC/00011364,WICKES BUILDING,PROCUREMENT CARD,57.67 ,INDEPENDENT LIVING SERVICES - PARKVIEW,REFURBISHMENTS,D104,PAINT AND BRUSHES FROM PARKVIEW,DONNA GREGORY,LUMBER/BUILD SUPPLY STORES
http://statistics.data.gov.uk/id/local-authority/43UM,WOKING BOROUGH COUNCIL,31/03/2020,09/04/2020,0000452527/001,APETITO LTD,00186100,321.50 ,INDEPENDENT LIVING SERVICES - MEALS SERVICE - BROCKHILL,PROVISIONS,G410,PROVISIONS,INDEPENDENT LIVING SERVICES,CATERING
http://statistics.data.gov.uk/id/local-authority/43UM,WOKING BOROUGH COUNCIL,31/03/2020,09/04/2020,0000452318/001,CHEESMAN BROTHERS LTD,01050500,55.90 ,INDEPENDENT LIVING SERVICES - MEALS SERVICE - BROCKHILL,PROVISIONS,G410,PROVISIONS,INDEPENDENT LIVING SERVICES,CATERING
http://statistics.data.gov.uk/id/local-authority/43UM,WOKING BOROUGH COUNCIL,04/04/2020,09/04/2020,0000452410/001,CHEESMAN BROTHERS LTD,01050500,54.26 ,INDEPENDENT LIVING SERVICES - MEALS SERVICE - BROCKHILL,PROVISIONS,G410,PROVISIONS,INDEPENDENT LIVING SERVICES,CATERING
http://statistics.data.gov.uk/id/local-authority/43UM,WOKING BOROUGH COUNCIL,31/03/2020,09/04/2020,0000452528/001,APETITO LTD,00186100,2478.49 ,INDEPENDENT LIVING SERVICES - MEALS SERVICE-MOORCROFT,PROVISIONS,G410,PROVISIONS,INDEPENDENT LIVING SERVICES,CATERING
http://statistics.data.gov.uk/id/local-authority/43UM,WOKING BOROUGH COUNCIL,19/03/2020,09/04/2020,0000451873/001,THAMESWEY ENERGY LIMITED,01142300,1282.39 ,INDEPENDENT LIVING SERVICES - ST MARY'S DAY CENTRE,TEL GAS/HEATING,D481,TEL GAS/HEATING,INDEPENDENT LIVING SERVICES,UTILITIES
http://statistics.data.gov.uk/id/local-authority/43UM,WOKING BOROUGH COUNCIL,31/03/2020,09/04/2020,0000452529/001,APETITO LTD,00186100,653.57 ,INDEPENDENT LIVING SERVICES - MEALS SERVICE -THE VYNE,PROVISIONS,G410,PROVISIONS,INDEPENDENT LIVING SERVICES,CATERING
http://statistics.data.gov.uk/id/local-authority/43UM,WOKING BOROUGH COUNCIL,25/03/2020,09/04/2020,0000452057/001,ALLSTAR BUSINESS SOLUTIONS LTD,01500600,113.19 ,INDEPENDENT LIVING SERVICES - MEALS ON WHEELS,PETROL,F200,PETROL,INDEPENDENT LIVING SERVICES,UTILITIES
http://statistics.data.gov.uk/id/local-authority/43UM,WOKING BOROUGH COUNCIL,31/03/2020,09/04/2020,0000452411/001,APETITO LTD,00186100,12975.49 ,INDEPENDENT LIVING SERVICES - MEALS ON WHEELS,PROVISIONS,G410,PROVISIONS,INDEPENDENT LIVING SERVICES,CATERING
http://statistics.data.gov.uk/id/local-authority/43UM,WOKING BOROUGH COUNCIL,09/04/2020,09/04/2020,GPC/00011363,ARGOS LTD,PROCUREMENT CARD,191.66 ,INDEPENDENT LIVING SERVICES - FAMILY CENTRES,FAMILY ENABLING (FSP PROJECT),H137,FRIDGE/FREEZER FOR FAMILY,JENNY FOX,DISCOUNT STORES
http://statistics.data.gov.uk/id/local-authority/43UM,WOKING BOROUGH COUNCIL,04/03/2020,09/04/2020,0000451371/001,SCCI ALPHATRACK LTD,40103400,1340.59 ,HOUSING SERVICES - NTL,R&M BUILDINGS - CONTRACTORS,D100,R&M BUILDINGS - CONTRACTORS,HOUSING SERVICES,WORKS (CONSTRUCTION REPAIR MAINTENANCE)
http://statistics.data.gov.uk/id/local-authority/43UM,WOKING BOROUGH COUNCIL,02/04/2020,09/04/2020,0000452493/001,SCCI ALPHATRACK LTD,40103400,77.00 ,HOUSING SERVICES - NTL,R&M BUILDINGS - CONTRACTORS,D100,R&M BUILDINGS - CONTRACTORS,HOUSING SERVICES,WORKS (CONSTRUCTION REPAIR MAINTENANCE)
http://statistics.data.gov.uk/id/local-authority/43UM,WOKING BOROUGH COUNCIL,02/04/2020,09/04/2020,0000452494/001,SCCI ALPHATRACK LTD,40103400,77.00 ,HOUSING SERVICES - NTL,R&M BUILDINGS - CONTRACTORS,D100,R&M BUILDINGS - CONTRACTORS,HOUSING SERVICES,WORKS (CONSTRUCTION REPAIR MAINTENANCE)
http://statistics.data.gov.uk/id/local-authority/43UM,WOKING BOROUGH COUNCIL,02/04/2020,09/04/2020,0000452495/001,SCCI ALPHATRACK LTD,40103400,77.00 ,HOUSING SERVICES - NTL,R&M BUILDINGS - CONTRACTORS,D100,R&M BUILDINGS - CONTRACTORS,HOUSING SERVICES,WORKS (CONSTRUCTION REPAIR MAINTENANCE)
http://statistics.data.gov.uk/id/local-authority/43UM,WOKING BOROUGH COUNCIL,02/04/2020,09/04/2020,0000452533/001,EDF ENERGY,01426000,46.86 ,HOUSING SERVICES - LANDLORDS EXPENSES,ELECTRICITY,D400,ELECTRICITY,HOUSING SERVICES,UTILITIES
http://statistics.data.gov.uk/id/local-authority/43UM,WOKING BOROUGH COUNCIL,20/03/2020,09/04/2020,0000451926/001,THAMESWEY ENERGY LIMITED,01142300,1759.36 ,HOUSING SERVICES - LANDLORDS EXPENSES,TEL ELECTRICITY,D480,TEL ELECTRICITY,HOUSING SERVICES,UTILITIES
http://statistics.data.gov.uk/id/local-authority/43UM,WOKING BOROUGH COUNCIL,01/04/2020,09/04/2020,0000452571/001,SANTANDER PO GIROBANK,01225300,374.27 ,HOUSING SERVICES - RENT COLLECTION,GIROBANK CHARGES,H627,GIROBANK CHARGES,HOUSING SERVICES,FINANCIAL SERVICES
http://statistics.data.gov.uk/id/local-authority/43UM,WOKING BOROUGH COUNCIL,06/03/2020,09/04/2020,0000451227/001,CERTSURE LLP,40694900,525.00 ,HOUSING SERVICES - HRA MARKET TESTING,CONSULTANTS,H670,CONSULTANTS,HOUSING SERVICES,FINANCIAL SERVICES
http://statistics.data.gov.uk/id/local-authority/43UM,WOKING BOROUGH COUNCIL,18/12/2019,09/04/2020,0000451378/001,CERTSURE LLP,40694900,525.00 ,HOUSING SERVICES - HRA MARKET TESTING,CONSULTANTS,H670,CONSULTANTS,HOUSING SERVICES,FINANCIAL SERVICES
http://statistics.data.gov.uk/id/local-authority/43UM,WOKING BOROUGH COUNCIL,11/03/2020,09/04/2020,0000452508/001,MARION STONARD,01427800,10869.30 ,HOUSING SERVICES - PRIVATE SECTOR LEASING SCHEME,LEASE PAYMENTS TO LANDLORD,H787,LEASE PAYMENTS TO LANDLORD,HOUSING SERVICES,HOUSING MANAGEMENT
http://statistics.data.gov.uk/id/local-authority/43UM,WOKING BOROUGH COUNCIL,20/03/2020,09/04/2020,0000452022/001,FLOWBIRD SMART CITY UK LIMITED,01467400,70.00 ,NEIGHBOURHOOD SERVICES - WOKING PARK LEISURE CAR PARKS,TICKET MACHINE ANNUAL CONTRACT,D830,TICKET MACHINE ANNUAL CONTRACT,NEIGHBOURHOOD SERVICES,STREET & TRAFFIC MANAGEMENT
http://statistics.data.gov.uk/id/local-authority/43UM,WOKING BOROUGH COUNCIL,27/03/2020,09/04/2020,0000452509/001,FAITH RECRUITMENT,01709500,621.75 ,NEIGHBOURHOOD SERVICES - PARKING SERVICES,TEMPORARY STAFF,A110,TEMPORARY STAFF,NEIGHBOURHOOD SERVICES,HUMAN RESOURCES
http://statistics.data.gov.uk/id/local-authority/43UM,WOKING BOROUGH COUNCIL,27/03/2020,09/04/2020,0000452510/001,FAITH RECRUITMENT,01709500,99.48 ,NEIGHBOURHOOD SERVICES - PARKING SERVICES,TEMPORARY STAFF,A110,TEMPORARY STAFF,NEIGHBOURHOOD SERVICES,HUMAN RESOURCES
http://statistics.data.gov.uk/id/local-authority/43UM,WOKING BOROUGH COUNCIL,27/03/2020,09/04/2020,0000452511/001,FAITH RECRUITMENT,01709500,248.70 ,NEIGHBOURHOOD SERVICES - PARKING SERVICES,TEMPORARY STAFF,A110,TEMPORARY STAFF,NEIGHBOURHOOD SERVICES,HUMAN RESOURCES
http://statistics.data.gov.uk/id/local-authority/43UM,WOKING BOROUGH COUNCIL,27/03/2020,09/04/2020,0000452513/001,FAITH RECRUITMENT,01709500,38.19 ,NEIGHBOURHOOD SERVICES - PARKING SERVICES,TEMPORARY STAFF,A110,TEMPORARY STAFF,NEIGHBOURHOOD SERVICES,HUMAN RESOURCES
http://statistics.data.gov.uk/id/local-authority/43UM,WOKING BOROUGH COUNCIL,27/03/2020,09/04/2020,0000452515/001,FAITH RECRUITMENT,01709500,116.06 ,NEIGHBOURHOOD SERVICES - PARKING SERVICES,TEMPORARY STAFF,A110,TEMPORARY STAFF,NEIGHBOURHOOD SERVICES,HUMAN RESOURCES
http://statistics.data.gov.uk/id/local-authority/43UM,WOKING BOROUGH COUNCIL,27/03/2020,09/04/2020,0000452516/001,FAITH RECRUITMENT,01709500,38.19 ,NEIGHBOURHOOD SERVICES - PARKING SERVICES,TEMPORARY STAFF,A110,TEMPORARY STAFF,NEIGHBOURHOOD SERVICES,HUMAN RESOURCES
http://statistics.data.gov.uk/id/local-authority/43UM,WOKING BOROUGH COUNCIL,27/03/2020,09/04/2020,0000452517/001,FAITH RECRUITMENT,01709500,621.75 ,NEIGHBOURHOOD SERVICES - PARKING SERVICES,TEMPORARY STAFF,A110,TEMPORARY STAFF,NEIGHBOURHOOD SERVICES,HUMAN RESOURCES
http://statistics.data.gov.uk/id/local-authority/43UM,WOKING BOROUGH COUNCIL,27/03/2020,09/04/2020,0000452518/001,FAITH RECRUITMENT,01709500,38.19 ,NEIGHBOURHOOD SERVICES - PARKING SERVICES,TEMPORARY STAFF,A110,TEMPORARY STAFF,NEIGHBOURHOOD SERVICES,HUMAN RESOURCES
http://statistics.data.gov.uk/id/local-authority/43UM,WOKING BOROUGH COUNCIL,27/03/2020,09/04/2020,0000452519/001,FAITH RECRUITMENT,01709500,621.75 ,NEIGHBOURHOOD SERVICES - PARKING SERVICES,TEMPORARY STAFF,A110,TEMPORARY STAFF,NEIGHBOURHOOD SERVICES,HUMAN RESOURCES
http://statistics.data.gov.uk/id/local-authority/43UM,WOKING BOROUGH COUNCIL,27/03/2020,09/04/2020,0000452520/001,FAITH RECRUITMENT,01709500,38.19 ,NEIGHBOURHOOD SERVICES - PARKING SERVICES,TEMPORARY STAFF,A110,TEMPORARY STAFF,NEIGHBOURHOOD SERVICES,HUMAN RESOURCES
http://statistics.data.gov.uk/id/local-authority/43UM,WOKING BOROUGH COUNCIL,27/03/2020,09/04/2020,0000452521/001,FAITH RECRUITMENT,01709500,613.50 ,NEIGHBOURHOOD SERVICES - PARKING SERVICES,TEMPORARY STAFF,A110,TEMPORARY STAFF,NEIGHBOURHOOD SERVICES,HUMAN RESOURCES
http://statistics.data.gov.uk/id/local-authority/43UM,WOKING BOROUGH COUNCIL,27/03/2020,09/04/2020,0000452522/001,FAITH RECRUITMENT,01709500,36.81 ,NEIGHBOURHOOD SERVICES - PARKING SERVICES,TEMPORARY STAFF,A110,TEMPORARY STAFF,NEIGHBOURHOOD SERVICES,HUMAN RESOURCES
http://statistics.data.gov.uk/id/local-authority/43UM,WOKING BOROUGH COUNCIL,29/03/2020,09/04/2020,0000452458/001,UNITY RECRUITMENT LTD,40160500,1443.76 ,NEIGHBOURHOOD SERVICES - PARKING SERVICES,TEMPORARY STAFF,A110,TEMPORARY STAFF,NEIGHBOURHOOD SERVICES,HUMAN RESOURCES
http://statistics.data.gov.uk/id/local-authority/43UM,WOKING BOROUGH COUNCIL,04/03/2020,09/04/2020,0000451339/001,FLOWBIRD SMART CITY UK LIMITED,01467400,24815.66 ,NEIGHBOURHOOD SERVICES - CAR PARKS ADMIN&OPERATIONAL EX,TICKET MACHINE ANNUAL CONTRACT,D830,TICKET MACHINE ANNUAL CONTRACT,NEIGHBOURHOOD SERVICES,STREET & TRAFFIC MANAGEMENT
http://statistics.data.gov.uk/id/local-authority/43UM,WOKING BOROUGH COUNCIL,04/03/2020,09/04/2020,0000451340/001,FLOWBIRD SMART CITY UK LIMITED,01467400,33419.60 ,NEIGHBOURHOOD SERVICES - CAR PARKS ADMIN&OPERATIONAL EX,TICKET MACHINE ANNUAL CONTRACT,D830,TICKET MACHINE ANNUAL CONTRACT,NEIGHBOURHOOD SERVICES,STREET & TRAFFIC MANAGEMENT
http://statistics.data.gov.uk/id/local-authority/43UM,WOKING BOROUGH COUNCIL,04/03/2020,09/04/2020,0000451341/001,FLOWBIRD SMART CITY UK LIMITED,01467400,19951.39 ,NEIGHBOURHOOD SERVICES - CAR PARKS ADMIN&OPERATIONAL EX,TICKET MACHINE ANNUAL CONTRACT,D830,TICKET MACHINE ANNUAL CONTRACT,NEIGHBOURHOOD SERVICES,STREET & TRAFFIC MANAGEMENT
http://statistics.data.gov.uk/id/local-authority/43UM,WOKING BOROUGH COUNCIL,04/03/2020,09/04/2020,0000451342/001,FLOWBIRD SMART CITY UK LIMITED,01467400,88789.36 ,NEIGHBOURHOOD SERVICES - CAR PARKS ADMIN&OPERATIONAL EX,TICKET MACHINE ANNUAL CONTRACT,D830,TICKET MACHINE ANNUAL CONTRACT,NEIGHBOURHOOD SERVICES,STREET & TRAFFIC MANAGEMENT
http://statistics.data.gov.uk/id/local-authority/43UM,WOKING BOROUGH COUNCIL,20/03/2020,09/04/2020,0000452022/002,FLOWBIRD SMART CITY UK LIMITED,01467400,150.00 ,NEIGHBOURHOOD SERVICES - CAR PARKS ADMIN&OPERATIONAL EX,TICKET MACHINE ANNUAL CONTRACT,D830,TICKET MACHINE ANNUAL CONTRACT,NEIGHBOURHOOD SERVICES,STREET & TRAFFIC MANAGEMENT
http://statistics.data.gov.uk/id/local-authority/43UM,WOKING BOROUGH COUNCIL,13/03/2020,09/04/2020,0000451347/001,UNICORN OFFICE PRODUCTS LTD,01793600,29.85 ,NEIGHBOURHOOD SERVICES - CAR PARKS ADMIN&OPERATIONAL EX,PRINTING EXTERNAL,G600,PRINTING EXTERNAL,NEIGHBOURHOOD SERVICES,WORKS (CONSTRUCTION REPAIR MAINTENANCE)
http://statistics.data.gov.uk/id/local-authority/43UM,WOKING BOROUGH COUNCIL,13/03/2020,09/04/2020,0000451347/002,UNICORN OFFICE PRODUCTS LTD,01793600,21.00 ,NEIGHBOURHOOD SERVICES - CAR PARKS ADMIN&OPERATIONAL EX,PRINTING EXTERNAL,G600,PRINTING EXTERNAL,NEIGHBOURHOOD SERVICES,WORKS (CONSTRUCTION REPAIR MAINTENANCE)
http://statistics.data.gov.uk/id/local-authority/43UM,WOKING BOROUGH COUNCIL,13/03/2020,09/04/2020,0000451347/003,UNICORN OFFICE PRODUCTS LTD,01793600,298.00 ,NEIGHBOURHOOD SERVICES - CAR PARKS ADMIN&OPERATIONAL EX,PRINTING EXTERNAL,G600,PRINTING EXTERNAL,NEIGHBOURHOOD SERVICES,WORKS (CONSTRUCTION REPAIR MAINTENANCE)
http://statistics.data.gov.uk/id/local-authority/43UM,WOKING BOROUGH COUNCIL,31/03/2020,09/04/2020,0000452491/001,3C PAYMENT UK LTD,01412600,2000.00 ,NEIGHBOURHOOD SERVICES - VICTORIA WAY CAR PARK,CARD HANDLING CHARGE,H617,CARD HANDLING CHARGE,NEIGHBOURHOOD SERVICES,FINANCIAL SERVICES
http://statistics.data.gov.uk/id/local-authority/43UM,WOKING BOROUGH COUNCIL,30/03/2020,09/04/2020,0000452355/001,ALPHA PARKING LTD,40759400,695.00 ,NEIGHBOURHOOD SERVICES - DPE PARKING ACCOUNT,STAFF TRAINING,C531,STAFF TRAINING,NEIGHBOURHOOD SERVICES,FINANCIAL SERVICES
http://statistics.data.gov.uk/id/local-authority/43UM,WOKING BOROUGH COUNCIL,02/04/2020,09/04/2020,0000452404/001,ALPHA PARKING LTD,40759400,1482.00 ,NEIGHBOURHOOD SERVICES - DPE PARKING ACCOUNT,STAFF TRAINING,C531,STAFF TRAINING,NEIGHBOURHOOD SERVICES,FINANCIAL SERVICES
http://statistics.data.gov.uk/id/local-authority/43UM,WOKING BOROUGH COUNCIL,31/03/2020,09/04/2020,0000452466/001,CHIPSIDE LIMITED,40615000,184.56 ,NEIGHBOURHOOD SERVICES - DPE PARKING ACCOUNT,LICENCES,H460,LICENCES,NEIGHBOURHOOD SERVICES,INFORMATION COMMUNICATION TECHNOLOGY
http://statistics.data.gov.uk/id/local-authority/43UM,WOKING BOROUGH COUNCIL,01/04/2020,09/04/2020,0000452471/001,CHIPSIDE LIMITED,40615000,250.00 ,NEIGHBOURHOOD SERVICES - DPE PARKING ACCOUNT,LICENCES,H460,LICENCES,NEIGHBOURHOOD SERVICES,INFORMATION COMMUNICATION TECHNOLOGY
http://statistics.data.gov.uk/id/local-authority/43UM,WOKING BOROUGH COUNCIL,20/03/2020,09/04/2020,0000452022/003,FLOWBIRD SMART CITY UK LIMITED,01467400,220.00 ,NEIGHBOURHOOD SERVICES - CPZ WBC FROM 25/7/05,TICKET MACHINE ANNUAL CONTRACT,D830,TICKET MACHINE ANNUAL CONTRACT,NEIGHBOURHOOD SERVICES,STREET & TRAFFIC MANAGEMENT
http://statistics.data.gov.uk/id/local-authority/43UM,WOKING BOROUGH COUNCIL,31/03/2020,09/04/2020,0000452463/001,CHIPSIDE LIMITED,40615000,110.30 ,NEIGHBOURHOOD SERVICES - CPZ WBC FROM 25/7/05,DVLA SEARCH,H436,DVLA SEARCH,NEIGHBOURHOOD SERVICES,INFORMATION COMMUNICATION TECHNOLOGY
http://statistics.data.gov.uk/id/local-authority/43UM,WOKING BOROUGH COUNCIL,24/03/2020,09/04/2020,0000452034/001,WEX EUROPE SERVICES (UK) LIMITED,01160600,245.29 ,NEIGHBOURHOOD SERVICES - SURREY HEATH ON STREET PARKING,PETROL,F200,PETROL,NEIGHBOURHOOD SERVICES,VEHICLE MANAGEMENT
http://statistics.data.gov.uk/id/local-authority/43UM,WOKING BOROUGH COUNCIL,31/03/2020,09/04/2020,0000452468/001,CHIPSIDE LIMITED,40615000,28.42 ,NEIGHBOURHOOD SERVICES - SURREY HEATH ON STREET PARKING,PARKING PERMIT SOFTWARE,G145,PARKING PERMIT SOFTWARE,NEIGHBOURHOOD SERVICES,INFORMATION COMMUNICATION TECHNOLOGY
http://statistics.data.gov.uk/id/local-authority/43UM,WOKING BOROUGH COUNCIL,31/03/2020,09/04/2020,0000452360/001,EAGLE RADIO LTD,00013700,600.00 ,CORPORATE STRATEGY - TOWN CENTRE FORUM,MARKETING,H406,MARKETING,CORPORATE STRATEGY,FACILITIES & MANAGEMENT SERVICES
http://statistics.data.gov.uk/id/local-authority/43UM,WOKING BOROUGH COUNCIL,31/03/2020,09/04/2020,0000452360/002,EAGLE RADIO LTD,00013700,300.00 ,CORPORATE STRATEGY - TOWN CENTRE FORUM,MARKETING,H406,MARKETING,CORPORATE STRATEGY,FACILITIES & MANAGEMENT SERVICES
http://statistics.data.gov.uk/id/local-authority/43UM,WOKING BOROUGH COUNCIL,05/04/2020,09/04/2020,0000452549/001,STRATAGEMS BUSINESS SOLUTIONS,40339900,375.00 ,CORPORATE STRATEGY - TOWN CENTRE FORUM,STARTUP WOKING COSTS,H408,STARTUP WOKING COSTS,CORPORATE STRATEGY,FACILITIES & MANAGEMENT SERVICES
http://statistics.data.gov.uk/id/local-authority/43UM,WOKING BOROUGH COUNCIL,02/04/2020,09/04/2020,0000452550/001,HAYMARKET MEDIA GROUP LIMITED,00345100,3125.00 ,PLANNING SERVICES - PLANNING SERVICES GENERAL EXPE,SUBSCRIPTIONS,H110,SUBSCRIPTIONS,PLANNING SERVICES,CONSULTANCY
http://statistics.data.gov.uk/id/local-authority/43UM,WOKING BOROUGH COUNCIL,27/03/2020,09/04/2020,0000452507/001,FAITH RECRUITMENT,01709500,28.38 ,PLANNING SERVICES - DEVELOPMENT CONTROL,TEMPORARY STAFF,A110,TEMPORARY STAFF,PLANNING SERVICES,HUMAN RESOURCES
http://statistics.data.gov.uk/id/local-authority/43UM,WOKING BOROUGH COUNCIL,06/04/2020,09/04/2020,0000452498/001,PARK AVENUE RECRUITMENT,40691800,1535.50 ,PLANNING SERVICES - DEVELOPMENT CONTROL,TEMPORARY STAFF,A110,TEMPORARY STAFF,PLANNING SERVICES,HUMAN RESOURCES
http://statistics.data.gov.uk/id/local-authority/43UM,WOKING BOROUGH COUNCIL,28/02/2020,09/04/2020,0000451444/001,GURNEY CONSULTING ENGINEERS,00017000,175.00 ,PLANNING SERVICES - BUILDING REGULATIONS,CONSULTANTS - STRUCTURAL WORKS,H688,CONSULTANTS - STRUCTURAL WORKS,PLANNING SERVICES,WORKS (CONSTRUCTION REPAIR MAINTENANCE)
http://statistics.data.gov.uk/id/local-authority/43UM,WOKING BOROUGH COUNCIL,07/04/2020,09/04/2020,0000452558/001,FRANCOTYP-POSTALIA LTD,01848100,544.00 ,CORPORATE STRATEGY - CORPORATE STRATEGY GENERAL EXP,CONSUMABLES,G630,CONSUMABLES,CORPORATE STRATEGY,MAIL SERVICES
http://statistics.data.gov.uk/id/local-authority/43UM,WOKING BOROUGH COUNCIL,07/04/2020,09/04/2020,0000452558/002,FRANCOTYP-POSTALIA LTD,01848100,59.00 ,CORPORATE STRATEGY - CORPORATE STRATEGY GENERAL EXP,CONSUMABLES,G630,CONSUMABLES,CORPORATE STRATEGY,MAIL SERVICES
http://statistics.data.gov.uk/id/local-authority/43UM,WOKING BOROUGH COUNCIL,07/04/2020,09/04/2020,0000452558/003,FRANCOTYP-POSTALIA LTD,01848100,7.50 ,CORPORATE STRATEGY - CORPORATE STRATEGY GENERAL EXP,CONSUMABLES,G630,CONSUMABLES,CORPORATE STRATEGY,MAIL SERVICES
http://statistics.data.gov.uk/id/local-authority/43UM,WOKING BOROUGH COUNCIL,29/03/2020,09/04/2020,0000452531/001,TERRY'S NEWSAGENTS,00036000,28.50 ,CORPORATE STRATEGY - CORPORATE STRATEGY GENERAL EXP,NEWSPAPERS,G660,NEWSPAPERS,CORPORATE STRATEGY,FACILITIES & MANAGEMENT SERVICES
http://statistics.data.gov.uk/id/local-authority/43UM,WOKING BOROUGH COUNCIL,27/03/2020,09/04/2020,0000452193/001,LICENCE BUREAU LIMITED,40848100,89.00 ,CORPORATE MANAGEMENT GROUP - STAFF TRAINING/GENERAL COSTS,HEALTH CARE,A780,HEALTH CARE,CORPORATE MANAGEMENT GROUP,CONSULTANCY
http://statistics.data.gov.uk/id/local-authority/43UM,WOKING BOROUGH COUNCIL,13/03/2020,09/04/2020,0000451607/001,CIVICA UK LIMITED,00044200,150.00 ,CORPORATE MANAGEMENT GROUP - STAFF TRAINING/GENERAL COSTS,TRAINING - CORPORATE,A910,TRAINING - CORPORATE,CORPORATE MANAGEMENT GROUP,INFORMATION COMMUNICATION TECHNOLOGY
http://statistics.data.gov.uk/id/local-authority/43UM,WOKING BOROUGH COUNCIL,07/04/2020,09/04/2020,0000452563/001,SOUTH EAST EMPLOYERS,00263400,5110.00 ,CORPORATE MANAGEMENT GROUP - HUMAN RESOURCES,SUBSCRIPTIONS,H110,SUBSCRIPTIONS,CORPORATE MANAGEMENT GROUP,HUMAN RESOURCES
http://statistics.data.gov.uk/id/local-authority/43UM,WOKING BOROUGH COUNCIL,09/04/2020,09/04/2020,GPC/00011351,ZOOM.GBP,PROCUREMENT CARD,1533.29 ,INFORMATION TECHNOLOGY - I.T.S. ICT,HOSTED SYSTEMS,G198,ZOOM LICENSES,ADELE DEVON,CONTINUITY/SUBSCRIPTION MERCHANT
http://statistics.data.gov.uk/id/local-authority/43UM,WOKING BOROUGH COUNCIL,30/03/2020,09/04/2020,0000452426/001,ROBINS REMOVAL AND STORAGE,40885700,320.00 ,CORPORATE STRATEGY - COVID -19 PENDEMIC,MAIN CONTRACTOR,Q200,MAIN CONTRACTOR,CORPORATE STRATEGY,SOCIAL COMMUNITY CARE SUPPLIES & SERVICS
http://statistics.data.gov.uk/id/local-authority/43UM,WOKING BOROUGH COUNCIL,30/03/2020,09/04/2020,0000452427/001,ROBINS REMOVAL AND STORAGE,40885700,150.00 ,CORPORATE STRATEGY - COVID -19 PENDEMIC,MAIN CONTRACTOR,Q200,MAIN CONTRACTOR,CORPORATE STRATEGY,SOCIAL COMMUNITY CARE SUPPLIES & SERVICS
http://statistics.data.gov.uk/id/local-authority/43UM,WOKING BOROUGH COUNCIL,26/03/2020,09/04/2020,0000452136/001,DOVETAIL BUILDING CONSULTANTS LTD,40430000,391.50 ,ASSET MANAGEMENT - AMP PITP PHI STRUCTURE WORKS,MAIN CONTRACTOR,Q200,MAIN CONTRACTOR,ASSET MANAGEMENT,CONSULTANCY
http://statistics.data.gov.uk/id/local-authority/43UM,WOKING BOROUGH COUNCIL,09/03/2020,09/04/2020,0000452436/001,RINNOVO,40812000,3780.00 ,ASSET MANAGEMENT - MORRIS HOUSE,OTHER CONSULTANTS,Q430,OTHER CONSULTANTS,ASSET MANAGEMENT,CONSULTANCY
http://statistics.data.gov.uk/id/local-authority/43UM,WOKING BOROUGH COUNCIL,23/03/2020,09/04/2020,0030002177/001,DAVITT JONES BOULD,40370200,216000.00 ,ASSET MANAGEMENT - HIF WTC F3 1A GUILDFORD RD OPP,PURCHASE PRICE,Q100,PURCHASE PRICE,ASSET MANAGEMENT,LEGAL SERVICES
http://statistics.data.gov.uk/id/local-authority/43UM,WOKING BOROUGH COUNCIL,23/03/2020,09/04/2020,0030002177/004,DAVITT JONES BOULD,40370200,135.00 ,ASSET MANAGEMENT - HIF WTC F3 1A GUILDFORD RD OPP,LAND REG/SEARCHFEE,Q140,LAND REG/SEARCHFEE,ASSET MANAGEMENT,LEGAL SERVICES
http://statistics.data.gov.uk/id/local-authority/43UM,WOKING BOROUGH COUNCIL,23/03/2020,09/04/2020,0030002177/003,DAVITT JONES BOULD,40370200,12400.00 ,ASSET MANAGEMENT - HIF WTC F3 1A GUILDFORD RD OPP,STAMP DUTIES,Q150,STAMP DUTIES,ASSET MANAGEMENT,LEGAL SERVICES
http://statistics.data.gov.uk/id/local-authority/43UM,WOKING BOROUGH COUNCIL,23/03/2020,09/04/2020,0030002177/002,DAVITT JONES BOULD,40370200,40000.00 ,ASSET MANAGEMENT - HIF WTC F3 1A GUILDFORD RD OPP,OTHER CONSULTANTS,Q430,OTHER CONSULTANTS,ASSET MANAGEMENT,LEGAL SERVICES
http://statistics.data.gov.uk/id/local-authority/43UM,WOKING BOROUGH COUNCIL,07/04/2020,09/04/2020,0030002175/001,DAVITT JONES BOULD,40370200,16125000.00 ,ASSET MANAGEMENT - GOLDSWORTH PARK SH CTR INV PROP,PURCHASE PRICE,Q100,PURCHASE PRICE,ASSET MANAGEMENT,LEGAL SERVICES
http://statistics.data.gov.uk/id/local-authority/43UM,WOKING BOROUGH COUNCIL,07/04/2020,09/04/2020,0030002175/003,DAVITT JONES BOULD,40370200,455.00 ,ASSET MANAGEMENT - GOLDSWORTH PARK SH CTR INV PROP,LAND REG/SEARCHFEE,Q140,LAND REG/SEARCHFEE,ASSET MANAGEMENT,LEGAL SERVICES
http://statistics.data.gov.uk/id/local-authority/43UM,WOKING BOROUGH COUNCIL,07/04/2020,09/04/2020,0030002175/002,DAVITT JONES BOULD,40370200,795750.00 ,ASSET MANAGEMENT - GOLDSWORTH PARK SH CTR INV PROP,STAMP DUTIES,Q150,STAMP DUTIES,ASSET MANAGEMENT,LEGAL SERVICES
http://statistics.data.gov.uk/id/local-authority/43UM,WOKING BOROUGH COUNCIL,01/04/2020,09/04/2020,0000452391/001,ADRIAN WAITE(INDEPEND.CONSULT.SERVS)LTD,40517500,175.00 ,INDEPENDENT LIVING SERVICES - SHEERWATER SOCIAL SUPPORT,OTHER CONSULTANTS,Q430,OTHER CONSULTANTS,INDEPENDENT LIVING SERVICES,HUMAN RESOURCES
http://statistics.data.gov.uk/id/local-authority/43UM,WOKING BOROUGH COUNCIL,02/04/2020,09/04/2020,0000452433/001,REDACTED PERSONAL DATA,40881400,6167.13 ,INDEPENDENT LIVING SERVICES - SW REGEN HOME LOSS PAYMENTS,MAIN CONTRACTOR,Q200,MAIN CONTRACTOR,INDEPENDENT LIVING SERVICES,FINANCIAL SERVICES
http://statistics.data.gov.uk/id/local-authority/43UM,WOKING BOROUGH COUNCIL,01/04/2020,09/04/2020,0000452422/001,KIER CONSTRUCT LTD T/A KIER CONSTRUCT-SO,01076300,58754.17 ,HOUSING SERVICES - 63-65 HIGH STREET OLD WOKING,MAIN CONTRACTOR,Q200,MAIN CONTRACTOR,HOUSING SERVICES,CONSULTANCY
http://statistics.data.gov.uk/id/local-authority/43UM,WOKING BOROUGH COUNCIL,01/04/2020,09/04/2020,0030002166/001,DAVITT JONES BOULD,40370200,953520.00 ,HOUSING SERVICES - 23 HIGH VIEW SHARE OWN REPURCH,PURCHASE PRICE,Q100,PURCHASE PRICE,HOUSING SERVICES,LEGAL SERVICES
http://statistics.data.gov.uk/id/local-authority/43UM,WOKING BOROUGH COUNCIL,02/04/2020,09/04/2020,0000452476/001,WH STEPHENS,40416600,2950.00 ,ASSET MANAGEMENT - CHOBHAM BRIDGE TOWPATH LINK,PLANNING APPLICATION FEE,Q191,PLANNING APPLICATION FEE,ASSET MANAGEMENT,CONSULTANCY
http://statistics.data.gov.uk/id/local-authority/43UM,WOKING BOROUGH COUNCIL,03/04/2020,09/04/2020,0000452535/001,BBF FIELDING LIMITED,00114900,6650.00 ,ASSET MANAGEMENT - CHOBHAM BRIDGE TOWPATH LINK,MAIN CONTRACTOR,Q200,MAIN CONTRACTOR,ASSET MANAGEMENT,WORKS (CONSTRUCTION REPAIR MAINTENANCE)
http://statistics.data.gov.uk/id/local-authority/43UM,WOKING BOROUGH COUNCIL,02/04/2020,09/04/2020,0000452370/001,CHRIS BANKS T/A BANKS SOLUTIONS,40295900,375.00 ,PLANNING SERVICES - LOCAL DEVELOPMENT FRAMEWORK,CAPITAL BUDGET CODE ONLY,Q000,CAPITAL BUDGET CODE ONLY,PLANNING SERVICES,CONSULTANCY
http://statistics.data.gov.uk/id/local-authority/43UM,WOKING BOROUGH COUNCIL,08/04/2020,09/04/2020,0000452586/001,COMPLETE IT SYSTEMS,40591300,119.00 ,INFORMATION TECHNOLOGY - ICT GENERAL REPLACEMENT 2019/20,ADDITIONAL EQUIPMENT,Q020,ADDITIONAL EQUIPMENT,INFORMATION TECHNOLOGY,INFORMATION COMMUNICATION TECHNOLOGY
http://statistics.data.gov.uk/id/local-authority/43UM,WOKING BOROUGH COUNCIL,08/04/2020,09/04/2020,0000452586/002,COMPLETE IT SYSTEMS,40591300,310.00 ,INFORMATION TECHNOLOGY - ICT GENERAL REPLACEMENT 2019/20,ADDITIONAL EQUIPMENT,Q020,ADDITIONAL EQUIPMENT,INFORMATION TECHNOLOGY,INFORMATION COMMUNICATION TECHNOLOGY
http://statistics.data.gov.uk/id/local-authority/43UM,WOKING BOROUGH COUNCIL,28/03/2020,09/04/2020,0000452218/001,DELL CORPORATION LTD,00320700,4322.20 ,INFORMATION TECHNOLOGY - ICT GENERAL REPLACEMENT 2019/20,ADDITIONAL EQUIPMENT,Q020,ADDITIONAL EQUIPMENT,INFORMATION TECHNOLOGY,INFORMATION COMMUNICATION TECHNOLOGY
http://statistics.data.gov.uk/id/local-authority/43UM,WOKING BOROUGH COUNCIL,06/04/2020,09/04/2020,0000452540/001,BT BUSINESS DIRECT,01898800,107.10 ,INFORMATION TECHNOLOGY - ICT GENERAL REPLACEMENT 2020/21,ADDITIONAL EQUIPMENT,Q020,ADDITIONAL EQUIPMENT,INFORMATION TECHNOLOGY,INFORMATION COMMUNICATION TECHNOLOGY
http://statistics.data.gov.uk/id/local-authority/43UM,WOKING BOROUGH COUNCIL,10/04/2020,10/04/2020,GPC/00011354,WAITROSE 181,PROCUREMENT CARD,140.94 ,INDEPENDENT LIVING SERVICES - BROCKHILL EXTRA CARE,COVID-19 SUPPLIES & SERVICES,H980,TENANT SHOPPING AT WAITROSE,MRS M CHILCOTT,GROCERY STORES
http://statistics.data.gov.uk/id/local-authority/43UM,WOKING BOROUGH COUNCIL,11/04/2020,11/04/2020,GPC/00011357,BOOKERECOMM,PROCUREMENT CARD,-7.99 ,INDEPENDENT LIVING SERVICES - BROCKHILL EXTRA CARE,COVID-19 SUPPLIES & SERVICES,H980,CREDIT FOR BROCKHILL GROCERY,REBECCA STEVENS,CATERERS
http://statistics.data.gov.uk/id/local-authority/43UM,WOKING BOROUGH COUNCIL,11/04/2020,11/04/2020,GPC/00011362,AMAZON PRIME,PROCUREMENT CARD,6.66 ,HOUSING SERVICES - SYRIAN REFUGEE FAMILES,PURCHASE OF FURNITURE,Q500,SUBSCRIPTION CONTINUED IN ERROR,AMEL EL HASAIRI,CONTINUITY/SUBSCRIPTION MERCHANT
http://statistics.data.gov.uk/id/local-authority/43UM,WOKING BOROUGH COUNCIL,11/04/2020,11/04/2020,GPC/00011359,AMAZON.CO.UK,PROCUREMENT CARD,31.63 ,INFORMATION TECHNOLOGY - ICT GENERAL REPLACEMENT 2020/21,ADDITIONAL EQUIPMENT,Q020,TPLINK NETWORK EQUIPMENT,DAVE FAYERS,OTHER DIRECT MARKETERS
http://statistics.data.gov.uk/id/local-authority/43UM,WOKING BOROUGH COUNCIL,07/04/2020,14/04/2020,0000452577/072,SKANSKA RASHLEIGH WEATHERFOIL LTD,40413600,2449.52 ,ASSET MANAGEMENT - PEACOCK WALK MARKET,FACILITIES MANAGEMENT CONTRACT,D909,FACILITIES MANAGEMENT CONTRACT,ASSET MANAGEMENT,FACILITIES & MANAGEMENT SERVICES
http://statistics.data.gov.uk/id/local-authority/43UM,WOKING BOROUGH COUNCIL,07/04/2020,14/04/2020,0000452577/184,SKANSKA RASHLEIGH WEATHERFOIL LTD,40413600,152.54 ,ASSET MANAGEMENT - PEACOCK WALK MARKET,FACILITIES MANAGEMENT CONTRACT,D909,FACILITIES MANAGEMENT CONTRACT,ASSET MANAGEMENT,FACILITIES & MANAGEMENT SERVICES
http://statistics.data.gov.uk/id/local-authority/43UM,WOKING BOROUGH COUNCIL,07/04/2020,14/04/2020,0000452577/185,SKANSKA RASHLEIGH WEATHERFOIL LTD,40413600,435.30 ,ASSET MANAGEMENT - PEACOCK WALK MARKET,FACILITIES MANAGEMENT CONTRACT,D909,FACILITIES MANAGEMENT CONTRACT,ASSET MANAGEMENT,FACILITIES & MANAGEMENT SERVICES
http://statistics.data.gov.uk/id/local-authority/43UM,WOKING BOROUGH COUNCIL,01/04/2020,14/04/2020,0000452548/001,ALPHABET (GB) LIMITED,00015200,30.00 ,CORPORATE MANAGEMENT GROUP - LEASED CAR PAYMENTS,PAYMENT TO LESSORS,T170,PAYMENT TO LESSORS,CORPORATE MANAGEMENT GROUP,VEHICLE MANAGEMENT
http://statistics.data.gov.uk/id/local-authority/43UM,WOKING BOROUGH COUNCIL,02/04/2020,14/04/2020,0000452526/001,WOKING PARK BOWLS CLUB,40886800,510.00 ,CORPORATE STRATEGY - WOK PK BOWLS-DMGE DOOR FRAME,PAYMENT TO CONTRACTOR,T700,PAYMENT TO CONTRACTOR,CORPORATE STRATEGY,ARTS & LEISURE SERVICES
http://statistics.data.gov.uk/id/local-authority/43UM,WOKING BOROUGH COUNCIL,06/04/2020,14/04/2020,0000452455/001,INTERGENERATIONAL MUSIC MAKING,40886300,900.00 ,CORPORATE STRATEGY - COMMUNITY FUND,EXPEND FROM FUND,T750,EXPEND FROM FUND,CORPORATE STRATEGY,FINANCIAL SERVICES
http://statistics.data.gov.uk/id/local-authority/43UM,WOKING BOROUGH COUNCIL,23/03/2020,14/04/2020,0000452241/001,DAVITT JONES BOULD LTD - SOLICITORS,01490800,67.60 ,CORPORATE STRATEGY - LEGAL,AD HOC WORK,H781,AD HOC WORK,CORPORATE STRATEGY,LEGAL SERVICES
http://statistics.data.gov.uk/id/local-authority/43UM,WOKING BOROUGH COUNCIL,23/03/2020,14/04/2020,0000452242/001,DAVITT JONES BOULD LTD - SOLICITORS,01490800,62.80 ,CORPORATE STRATEGY - LEGAL,AD HOC WORK,H781,AD HOC WORK,CORPORATE STRATEGY,LEGAL SERVICES
http://statistics.data.gov.uk/id/local-authority/43UM,WOKING BOROUGH COUNCIL,23/03/2020,14/04/2020,0000452243/001,DAVITT JONES BOULD LTD - SOLICITORS,01490800,128.53 ,CORPORATE STRATEGY - LEGAL,AD HOC WORK,H781,AD HOC WORK,CORPORATE STRATEGY,LEGAL SERVICES
http://statistics.data.gov.uk/id/local-authority/43UM,WOKING BOROUGH COUNCIL,23/03/2020,14/04/2020,0000452252/001,DAVITT JONES BOULD LTD - SOLICITORS,01490800,251.20 ,CORPORATE STRATEGY - LEGAL,AD HOC WORK,H781,AD HOC WORK,CORPORATE STRATEGY,LEGAL SERVICES
http://statistics.data.gov.uk/id/local-authority/43UM,WOKING BOROUGH COUNCIL,02/04/2020,14/04/2020,0000452504/001,HOME-START WOKING,01862600,1875.00 ,CORPORATE STRATEGY - GRANTS TO ORGANISATION,GRANTS,H100,GRANTS,CORPORATE STRATEGY,FINANCIAL SERVICES
http://statistics.data.gov.uk/id/local-authority/43UM,WOKING BOROUGH COUNCIL,31/03/2020,14/04/2020,0000452648/001,LAKEVIEW COMMUNITY ACTION GROUP,01936600,3940.00 ,CORPORATE STRATEGY - GRANTS TO ORGANISATION,GRANTS,H100,GRANTS,CORPORATE STRATEGY,FINANCIAL SERVICES
http://statistics.data.gov.uk/id/local-authority/43UM,WOKING BOROUGH COUNCIL,08/04/2020,14/04/2020,0000452647/001,SURREY DRUG & ALCOHOL CARE LTD,40824200,1500.00 ,CORPORATE STRATEGY - GRANTS TO ORGANISATION,GRANTS,H100,GRANTS,CORPORATE STRATEGY,FINANCIAL SERVICES
http://statistics.data.gov.uk/id/local-authority/43UM,WOKING BOROUGH COUNCIL,07/04/2020,14/04/2020,0000452646/001,SURREY WELFARE RIGHTS UNIT,01238300,2500.00 ,CORPORATE STRATEGY - GRANTS TO ORGANISATION,GRANTS,H100,GRANTS,CORPORATE STRATEGY,FINANCIAL SERVICES
http://statistics.data.gov.uk/id/local-authority/43UM,WOKING BOROUGH COUNCIL,02/04/2020,14/04/2020,0000452449/001,THE BRIGITTE TRUST,40842600,750.00 ,CORPORATE STRATEGY - GRANTS TO ORGANISATION,GRANTS,H100,GRANTS,CORPORATE STRATEGY,CONSULTANCY
http://statistics.data.gov.uk/id/local-authority/43UM,WOKING BOROUGH COUNCIL,03/04/2020,14/04/2020,0000452570/001,THE COUNSELLING PARTNERSHIP,40353300,3000.00 ,CORPORATE STRATEGY - GRANTS TO ORGANISATION,GRANTS,H100,GRANTS,CORPORATE STRATEGY,FINANCIAL SERVICES
http://statistics.data.gov.uk/id/local-authority/43UM,WOKING BOROUGH COUNCIL,02/04/2020,14/04/2020,0000452464/001,WOKING PEOPLE OF FAITH,01916800,3750.00 ,CORPORATE STRATEGY - GRANTS TO ORGANISATION,GRANTS,H100,GRANTS,CORPORATE STRATEGY,FINANCIAL SERVICES
http://statistics.data.gov.uk/id/local-authority/43UM,WOKING BOROUGH COUNCIL,04/04/2020,14/04/2020,0000452617/001,WOKING SHOPMOBILITY,00591100,3125.00 ,CORPORATE STRATEGY - GRANTS TO ORGANISATION,GRANTS,H100,GRANTS,CORPORATE STRATEGY,FINANCIAL SERVICES
http://statistics.data.gov.uk/id/local-authority/43UM,WOKING BOROUGH COUNCIL,03/04/2020,14/04/2020,0000452568/001,WOKING STREET ANGELS,40242600,500.00 ,CORPORATE STRATEGY - GRANTS TO ORGANISATION,GRANTS,H100,GRANTS,CORPORATE STRATEGY,FINANCIAL SERVICES
http://statistics.data.gov.uk/id/local-authority/43UM,WOKING BOROUGH COUNCIL,07/04/2020,14/04/2020,0000452577/002,SKANSKA RASHLEIGH WEATHERFOIL LTD,40413600,635.93 ,ASSET MANAGEMENT - 20 HIGH ST. WOKING,FACILITIES MANAGEMENT CONTRACT,D909,FACILITIES MANAGEMENT CONTRACT,ASSET MANAGEMENT,FACILITIES & MANAGEMENT SERVICES
http://statistics.data.gov.uk/id/local-authority/43UM,WOKING BOROUGH COUNCIL,07/04/2020,14/04/2020,0000452577/089,SKANSKA RASHLEIGH WEATHERFOIL LTD,40413600,1.90 ,ASSET MANAGEMENT - 20 HIGH ST. WOKING,FACILITIES MANAGEMENT CONTRACT,D909,FACILITIES MANAGEMENT CONTRACT,ASSET MANAGEMENT,FACILITIES & MANAGEMENT SERVICES
http://statistics.data.gov.uk/id/local-authority/43UM,WOKING BOROUGH COUNCIL,07/04/2020,14/04/2020,0000452577/124,SKANSKA RASHLEIGH WEATHERFOIL LTD,40413600,2.79 ,ASSET MANAGEMENT - 20 HIGH ST. WOKING,FACILITIES MANAGEMENT CONTRACT,D909,FACILITIES MANAGEMENT CONTRACT,ASSET MANAGEMENT,FACILITIES & MANAGEMENT SERVICES
http://statistics.data.gov.uk/id/local-authority/43UM,WOKING BOROUGH COUNCIL,07/04/2020,14/04/2020,0000452577/143,SKANSKA RASHLEIGH WEATHERFOIL LTD,40413600,2.94 ,ASSET MANAGEMENT - 20 HIGH ST. WOKING,FACILITIES MANAGEMENT CONTRACT,D909,FACILITIES MANAGEMENT CONTRACT,ASSET MANAGEMENT,FACILITIES & MANAGEMENT SERVICES
http://statistics.data.gov.uk/id/local-authority/43UM,WOKING BOROUGH COUNCIL,07/04/2020,14/04/2020,0000452577/195,SKANSKA RASHLEIGH WEATHERFOIL LTD,40413600,-305.73 ,ASSET MANAGEMENT - 20 HIGH ST. WOKING,FACILITIES MANAGEMENT CONTRACT,D909,FACILITIES MANAGEMENT CONTRACT,ASSET MANAGEMENT,FACILITIES & MANAGEMENT SERVICES
http://statistics.data.gov.uk/id/local-authority/43UM,WOKING BOROUGH COUNCIL,07/04/2020,14/04/2020,0000452577/202,SKANSKA RASHLEIGH WEATHERFOIL LTD,40413600,3.28 ,ASSET MANAGEMENT - 20 HIGH ST. WOKING,FACILITIES MANAGEMENT CONTRACT,D909,FACILITIES MANAGEMENT CONTRACT,ASSET MANAGEMENT,FACILITIES & MANAGEMENT SERVICES
http://statistics.data.gov.uk/id/local-authority/43UM,WOKING BOROUGH COUNCIL,07/04/2020,14/04/2020,0000452577/120,SKANSKA RASHLEIGH WEATHERFOIL LTD,40413600,238.11 ,ASSET MANAGEMENT - PROVINCIAL HOUSE,R&M BUILDINGS - CONTRACTORS,D100,R&M BUILDINGS - CONTRACTORS,ASSET MANAGEMENT,FACILITIES & MANAGEMENT SERVICES
http://statistics.data.gov.uk/id/local-authority/43UM,WOKING BOROUGH COUNCIL,07/04/2020,14/04/2020,0000452577/047,SKANSKA RASHLEIGH WEATHERFOIL LTD,40413600,873.80 ,ASSET MANAGEMENT - PROVINCIAL HOUSE,CONTRACT CLEANING,D900,CONTRACT CLEANING,ASSET MANAGEMENT,FACILITIES & MANAGEMENT SERVICES
http://statistics.data.gov.uk/id/local-authority/43UM,WOKING BOROUGH COUNCIL,07/04/2020,14/04/2020,0000452577/003,SKANSKA RASHLEIGH WEATHERFOIL LTD,40413600,3245.68 ,ASSET MANAGEMENT - PROVINCIAL HOUSE,FACILITIES MANAGEMENT CONTRACT,D909,FACILITIES MANAGEMENT CONTRACT,ASSET MANAGEMENT,FACILITIES & MANAGEMENT SERVICES
http://statistics.data.gov.uk/id/local-authority/43UM,WOKING BOROUGH COUNCIL,07/04/2020,14/04/2020,0000452577/068,SKANSKA RASHLEIGH WEATHERFOIL LTD,40413600,165.56 ,ASSET MANAGEMENT - PROVINCIAL HOUSE,FACILITIES MANAGEMENT CONTRACT,D909,FACILITIES MANAGEMENT CONTRACT,ASSET MANAGEMENT,FACILITIES & MANAGEMENT SERVICES
http://statistics.data.gov.uk/id/local-authority/43UM,WOKING BOROUGH COUNCIL,07/04/2020,14/04/2020,0000452577/095,SKANSKA RASHLEIGH WEATHERFOIL LTD,40413600,14.24 ,ASSET MANAGEMENT - PROVINCIAL HOUSE,FACILITIES MANAGEMENT CONTRACT,D909,FACILITIES MANAGEMENT CONTRACT,ASSET MANAGEMENT,FACILITIES & MANAGEMENT SERVICES
http://statistics.data.gov.uk/id/local-authority/43UM,WOKING BOROUGH COUNCIL,07/04/2020,14/04/2020,0000452577/130,SKANSKA RASHLEIGH WEATHERFOIL LTD,40413600,20.90 ,ASSET MANAGEMENT - PROVINCIAL HOUSE,FACILITIES MANAGEMENT CONTRACT,D909,FACILITIES MANAGEMENT CONTRACT,ASSET MANAGEMENT,FACILITIES & MANAGEMENT SERVICES
http://statistics.data.gov.uk/id/local-authority/43UM,WOKING BOROUGH COUNCIL,07/04/2020,14/04/2020,0000452577/149,SKANSKA RASHLEIGH WEATHERFOIL LTD,40413600,22.08 ,ASSET MANAGEMENT - PROVINCIAL HOUSE,FACILITIES MANAGEMENT CONTRACT,D909,FACILITIES MANAGEMENT CONTRACT,ASSET MANAGEMENT,FACILITIES & MANAGEMENT SERVICES
http://statistics.data.gov.uk/id/local-authority/43UM,WOKING BOROUGH COUNCIL,07/04/2020,14/04/2020,0000452577/208,SKANSKA RASHLEIGH WEATHERFOIL LTD,40413600,24.62 ,ASSET MANAGEMENT - PROVINCIAL HOUSE,FACILITIES MANAGEMENT CONTRACT,D909,FACILITIES MANAGEMENT CONTRACT,ASSET MANAGEMENT,FACILITIES & MANAGEMENT SERVICES
http://statistics.data.gov.uk/id/local-authority/43UM,WOKING BOROUGH COUNCIL,07/04/2020,14/04/2020,0000452577/004,SKANSKA RASHLEIGH WEATHERFOIL LTD,40413600,635.93 ,ASSET MANAGEMENT - 19 HIGH ST. WOKING,FACILITIES MANAGEMENT CONTRACT,D909,FACILITIES MANAGEMENT CONTRACT,ASSET MANAGEMENT,FACILITIES & MANAGEMENT SERVICES
http://statistics.data.gov.uk/id/local-authority/43UM,WOKING BOROUGH COUNCIL,07/04/2020,14/04/2020,0000452577/114,SKANSKA RASHLEIGH WEATHERFOIL LTD,40413600,290.82 ,ASSET MANAGEMENT - 19 HIGH ST. WOKING,FACILITIES MANAGEMENT CONTRACT,D909,FACILITIES MANAGEMENT CONTRACT,ASSET MANAGEMENT,FACILITIES & MANAGEMENT SERVICES
http://statistics.data.gov.uk/id/local-authority/43UM,WOKING BOROUGH COUNCIL,07/04/2020,14/04/2020,0000452577/198,SKANSKA RASHLEIGH WEATHERFOIL LTD,40413600,5.90 ,ASSET MANAGEMENT - 19 HIGH ST. WOKING,FACILITIES MANAGEMENT CONTRACT,D909,FACILITIES MANAGEMENT CONTRACT,ASSET MANAGEMENT,FACILITIES & MANAGEMENT SERVICES
http://statistics.data.gov.uk/id/local-authority/43UM,WOKING BOROUGH COUNCIL,07/04/2020,14/04/2020,0000452577/005,SKANSKA RASHLEIGH WEATHERFOIL LTD,40413600,317.97 ,ASSET MANAGEMENT - 19A HIGH STREET,FACILITIES MANAGEMENT CONTRACT,D909,FACILITIES MANAGEMENT CONTRACT,ASSET MANAGEMENT,FACILITIES & MANAGEMENT SERVICES
http://statistics.data.gov.uk/id/local-authority/43UM,WOKING BOROUGH COUNCIL,07/04/2020,14/04/2020,0000452577/088,SKANSKA RASHLEIGH WEATHERFOIL LTD,40413600,1.90 ,ASSET MANAGEMENT - 19A HIGH STREET,FACILITIES MANAGEMENT CONTRACT,D909,FACILITIES MANAGEMENT CONTRACT,ASSET MANAGEMENT,FACILITIES & MANAGEMENT SERVICES
http://statistics.data.gov.uk/id/local-authority/43UM,WOKING BOROUGH COUNCIL,07/04/2020,14/04/2020,0000452577/123,SKANSKA RASHLEIGH WEATHERFOIL LTD,40413600,2.79 ,ASSET MANAGEMENT - 19A HIGH STREET,FACILITIES MANAGEMENT CONTRACT,D909,FACILITIES MANAGEMENT CONTRACT,ASSET MANAGEMENT,FACILITIES & MANAGEMENT SERVICES
http://statistics.data.gov.uk/id/local-authority/43UM,WOKING BOROUGH COUNCIL,07/04/2020,14/04/2020,0000452577/142,SKANSKA RASHLEIGH WEATHERFOIL LTD,40413600,10.30 ,ASSET MANAGEMENT - 19A HIGH STREET,FACILITIES MANAGEMENT CONTRACT,D909,FACILITIES MANAGEMENT CONTRACT,ASSET MANAGEMENT,FACILITIES & MANAGEMENT SERVICES
http://statistics.data.gov.uk/id/local-authority/43UM,WOKING BOROUGH COUNCIL,07/04/2020,14/04/2020,0000452577/201,SKANSKA RASHLEIGH WEATHERFOIL LTD,40413600,11.49 ,ASSET MANAGEMENT - 19A HIGH STREET,FACILITIES MANAGEMENT CONTRACT,D909,FACILITIES MANAGEMENT CONTRACT,ASSET MANAGEMENT,FACILITIES & MANAGEMENT SERVICES
http://statistics.data.gov.uk/id/local-authority/43UM,WOKING BOROUGH COUNCIL,07/04/2020,14/04/2020,0000452577/006,SKANSKA RASHLEIGH WEATHERFOIL LTD,40413600,317.97 ,ASSET MANAGEMENT - ALBION SQUARE CANOPY,FACILITIES MANAGEMENT CONTRACT,D909,FACILITIES MANAGEMENT CONTRACT,ASSET MANAGEMENT,FACILITIES & MANAGEMENT SERVICES
http://statistics.data.gov.uk/id/local-authority/43UM,WOKING BOROUGH COUNCIL,07/04/2020,14/04/2020,0000452577/197,SKANSKA RASHLEIGH WEATHERFOIL LTD,40413600,-317.96 ,ASSET MANAGEMENT - ALBION SQUARE CANOPY,FACILITIES MANAGEMENT CONTRACT,D909,FACILITIES MANAGEMENT CONTRACT,ASSET MANAGEMENT,FACILITIES & MANAGEMENT SERVICES
http://statistics.data.gov.uk/id/local-authority/43UM,WOKING BOROUGH COUNCIL,07/04/2020,14/04/2020,0000452577/113,SKANSKA RASHLEIGH WEATHERFOIL LTD,40413600,107.66 ,ASSET MANAGEMENT - HOLLYWOOD HOUSE,R&M BUILDINGS - CONTRACTORS,D100,R&M BUILDINGS - CONTRACTORS,ASSET MANAGEMENT,FACILITIES & MANAGEMENT SERVICES
http://statistics.data.gov.uk/id/local-authority/43UM,WOKING BOROUGH COUNCIL,07/04/2020,14/04/2020,0000452577/067,SKANSKA RASHLEIGH WEATHERFOIL LTD,40413600,109.24 ,ASSET MANAGEMENT - HOLLYWOOD HOUSE,FACILITIES MANAGEMENT CONTRACT,D909,FACILITIES MANAGEMENT CONTRACT,ASSET MANAGEMENT,FACILITIES & MANAGEMENT SERVICES
http://statistics.data.gov.uk/id/local-authority/43UM,WOKING BOROUGH COUNCIL,07/04/2020,14/04/2020,0000452577/073,SKANSKA RASHLEIGH WEATHERFOIL LTD,40413600,1371.76 ,ASSET MANAGEMENT - HOLLYWOOD HOUSE,FACILITIES MANAGEMENT CONTRACT,D909,FACILITIES MANAGEMENT CONTRACT,ASSET MANAGEMENT,FACILITIES & MANAGEMENT SERVICES
http://statistics.data.gov.uk/id/local-authority/43UM,WOKING BOROUGH COUNCIL,07/04/2020,14/04/2020,0000452577/092,SKANSKA RASHLEIGH WEATHERFOIL LTD,40413600,17.08 ,ASSET MANAGEMENT - HOLLYWOOD HOUSE,FACILITIES MANAGEMENT CONTRACT,D909,FACILITIES MANAGEMENT CONTRACT,ASSET MANAGEMENT,FACILITIES & MANAGEMENT SERVICES
http://statistics.data.gov.uk/id/local-authority/43UM,WOKING BOROUGH COUNCIL,07/04/2020,14/04/2020,0000452577/117,SKANSKA RASHLEIGH WEATHERFOIL LTD,40413600,803.70 ,ASSET MANAGEMENT - HOLLYWOOD HOUSE,FACILITIES MANAGEMENT CONTRACT,D909,FACILITIES MANAGEMENT CONTRACT,ASSET MANAGEMENT,FACILITIES & MANAGEMENT SERVICES
http://statistics.data.gov.uk/id/local-authority/43UM,WOKING BOROUGH COUNCIL,07/04/2020,14/04/2020,0000452577/127,SKANSKA RASHLEIGH WEATHERFOIL LTD,40413600,25.07 ,ASSET MANAGEMENT - HOLLYWOOD HOUSE,FACILITIES MANAGEMENT CONTRACT,D909,FACILITIES MANAGEMENT CONTRACT,ASSET MANAGEMENT,FACILITIES & MANAGEMENT SERVICES
http://statistics.data.gov.uk/id/local-authority/43UM,WOKING BOROUGH COUNCIL,07/04/2020,14/04/2020,0000452577/146,SKANSKA RASHLEIGH WEATHERFOIL LTD,40413600,17.67 ,ASSET MANAGEMENT - HOLLYWOOD HOUSE,FACILITIES MANAGEMENT CONTRACT,D909,FACILITIES MANAGEMENT CONTRACT,ASSET MANAGEMENT,FACILITIES & MANAGEMENT SERVICES
http://statistics.data.gov.uk/id/local-authority/43UM,WOKING BOROUGH COUNCIL,07/04/2020,14/04/2020,0000452577/205,SKANSKA RASHLEIGH WEATHERFOIL LTD,40413600,19.69 ,ASSET MANAGEMENT - HOLLYWOOD HOUSE,FACILITIES MANAGEMENT CONTRACT,D909,FACILITIES MANAGEMENT CONTRACT,ASSET MANAGEMENT,FACILITIES & MANAGEMENT SERVICES
http://statistics.data.gov.uk/id/local-authority/43UM,WOKING BOROUGH COUNCIL,07/04/2020,14/04/2020,0000452577/007,SKANSKA RASHLEIGH WEATHERFOIL LTD,40413600,1346.96 ,ASSET MANAGEMENT - MAYBURY CENTRE,FACILITIES MANAGEMENT CONTRACT,D909,FACILITIES MANAGEMENT CONTRACT,ASSET MANAGEMENT,FACILITIES & MANAGEMENT SERVICES
http://statistics.data.gov.uk/id/local-authority/43UM,WOKING BOROUGH COUNCIL,07/04/2020,14/04/2020,0000452577/038,SKANSKA RASHLEIGH WEATHERFOIL LTD,40413600,89545.29 ,ASSET MANAGEMENT - PEACOCKS - GENERAL,PEACOCKS R&M HOLDING,D108,PEACOCKS R&M HOLDING,ASSET MANAGEMENT,FACILITIES & MANAGEMENT SERVICES
http://statistics.data.gov.uk/id/local-authority/43UM,WOKING BOROUGH COUNCIL,07/04/2020,14/04/2020,0000452577/041,SKANSKA RASHLEIGH WEATHERFOIL LTD,40413600,-2266.35 ,ASSET MANAGEMENT - PEACOCKS - GENERAL,PEACOCKS R&M HOLDING,D108,PEACOCKS R&M HOLDING,ASSET MANAGEMENT,FACILITIES & MANAGEMENT SERVICES
http://statistics.data.gov.uk/id/local-authority/43UM,WOKING BOROUGH COUNCIL,07/04/2020,14/04/2020,0000452577/049,SKANSKA RASHLEIGH WEATHERFOIL LTD,40413600,3542.69 ,ASSET MANAGEMENT - PEACOCKS - GENERAL,PEACOCKS R&M HOLDING,D108,PEACOCKS R&M HOLDING,ASSET MANAGEMENT,FACILITIES & MANAGEMENT SERVICES
http://statistics.data.gov.uk/id/local-authority/43UM,WOKING BOROUGH COUNCIL,07/04/2020,14/04/2020,0000452577/053,SKANSKA RASHLEIGH WEATHERFOIL LTD,40413600,20457.26 ,ASSET MANAGEMENT - PEACOCKS - GENERAL,PEACOCKS R&M HOLDING,D108,PEACOCKS R&M HOLDING,ASSET MANAGEMENT,FACILITIES & MANAGEMENT SERVICES
http://statistics.data.gov.uk/id/local-authority/43UM,WOKING BOROUGH COUNCIL,07/04/2020,14/04/2020,0000452577/070,SKANSKA RASHLEIGH WEATHERFOIL LTD,40413600,2076.46 ,ASSET MANAGEMENT - PEACOCKS - GENERAL,PEACOCKS R&M HOLDING,D108,PEACOCKS R&M HOLDING,ASSET MANAGEMENT,FACILITIES & MANAGEMENT SERVICES
http://statistics.data.gov.uk/id/local-authority/43UM,WOKING BOROUGH COUNCIL,07/04/2020,14/04/2020,0000452577/080,SKANSKA RASHLEIGH WEATHERFOIL LTD,40413600,343.97 ,ASSET MANAGEMENT - PEACOCKS - GENERAL,PEACOCKS R&M HOLDING,D108,PEACOCKS R&M HOLDING,ASSET MANAGEMENT,FACILITIES & MANAGEMENT SERVICES
http://statistics.data.gov.uk/id/local-authority/43UM,WOKING BOROUGH COUNCIL,07/04/2020,14/04/2020,0000452577/084,SKANSKA RASHLEIGH WEATHERFOIL LTD,40413600,-665.45 ,ASSET MANAGEMENT - PEACOCKS - GENERAL,PEACOCKS R&M HOLDING,D108,PEACOCKS R&M HOLDING,ASSET MANAGEMENT,FACILITIES & MANAGEMENT SERVICES
http://statistics.data.gov.uk/id/local-authority/43UM,WOKING BOROUGH COUNCIL,07/04/2020,14/04/2020,0000452577/097,SKANSKA RASHLEIGH WEATHERFOIL LTD,40413600,1519.31 ,ASSET MANAGEMENT - PEACOCKS - GENERAL,PEACOCKS R&M HOLDING,D108,PEACOCKS R&M HOLDING,ASSET MANAGEMENT,FACILITIES & MANAGEMENT SERVICES
http://statistics.data.gov.uk/id/local-authority/43UM,WOKING BOROUGH COUNCIL,07/04/2020,14/04/2020,0000452577/098,SKANSKA RASHLEIGH WEATHERFOIL LTD,40413600,15.42 ,ASSET MANAGEMENT - PEACOCKS - GENERAL,PEACOCKS R&M HOLDING,D108,PEACOCKS R&M HOLDING,ASSET MANAGEMENT,FACILITIES & MANAGEMENT SERVICES
http://statistics.data.gov.uk/id/local-authority/43UM,WOKING BOROUGH COUNCIL,07/04/2020,14/04/2020,0000452577/132,SKANSKA RASHLEIGH WEATHERFOIL LTD,40413600,834.70 ,ASSET MANAGEMENT - PEACOCKS - GENERAL,PEACOCKS R&M HOLDING,D108,PEACOCKS R&M HOLDING,ASSET MANAGEMENT,FACILITIES & MANAGEMENT SERVICES
http://statistics.data.gov.uk/id/local-authority/43UM,WOKING BOROUGH COUNCIL,07/04/2020,14/04/2020,0000452577/133,SKANSKA RASHLEIGH WEATHERFOIL LTD,40413600,9.05 ,ASSET MANAGEMENT - PEACOCKS - GENERAL,PEACOCKS R&M HOLDING,D108,PEACOCKS R&M HOLDING,ASSET MANAGEMENT,FACILITIES & MANAGEMENT SERVICES
http://statistics.data.gov.uk/id/local-authority/43UM,WOKING BOROUGH COUNCIL,07/04/2020,14/04/2020,0000452577/138,SKANSKA RASHLEIGH WEATHERFOIL LTD,40413600,746.73 ,ASSET MANAGEMENT - PEACOCKS - GENERAL,PEACOCKS R&M HOLDING,D108,PEACOCKS R&M HOLDING,ASSET MANAGEMENT,FACILITIES & MANAGEMENT SERVICES
http://statistics.data.gov.uk/id/local-authority/43UM,WOKING BOROUGH COUNCIL,07/04/2020,14/04/2020,0000452577/156,SKANSKA RASHLEIGH WEATHERFOIL LTD,40413600,938.60 ,ASSET MANAGEMENT - PEACOCKS - GENERAL,PEACOCKS R&M HOLDING,D108,PEACOCKS R&M HOLDING,ASSET MANAGEMENT,FACILITIES & MANAGEMENT SERVICES
http://statistics.data.gov.uk/id/local-authority/43UM,WOKING BOROUGH COUNCIL,07/04/2020,14/04/2020,0000452577/157,SKANSKA RASHLEIGH WEATHERFOIL LTD,40413600,7.36 ,ASSET MANAGEMENT - PEACOCKS - GENERAL,PEACOCKS R&M HOLDING,D108,PEACOCKS R&M HOLDING,ASSET MANAGEMENT,FACILITIES & MANAGEMENT SERVICES
http://statistics.data.gov.uk/id/local-authority/43UM,WOKING BOROUGH COUNCIL,07/04/2020,14/04/2020,0000452577/177,SKANSKA RASHLEIGH WEATHERFOIL LTD,40413600,223.69 ,ASSET MANAGEMENT - PEACOCKS - GENERAL,PEACOCKS R&M HOLDING,D108,PEACOCKS R&M HOLDING,ASSET MANAGEMENT,FACILITIES & MANAGEMENT SERVICES
http://statistics.data.gov.uk/id/local-authority/43UM,WOKING BOROUGH COUNCIL,07/04/2020,14/04/2020,0000452577/194,SKANSKA RASHLEIGH WEATHERFOIL LTD,40413600,206.49 ,ASSET MANAGEMENT - PEACOCKS - GENERAL,PEACOCKS R&M HOLDING,D108,PEACOCKS R&M HOLDING,ASSET MANAGEMENT,FACILITIES & MANAGEMENT SERVICES
http://statistics.data.gov.uk/id/local-authority/43UM,WOKING BOROUGH COUNCIL,07/04/2020,14/04/2020,0000452577/213,SKANSKA RASHLEIGH WEATHERFOIL LTD,40413600,1046.28 ,ASSET MANAGEMENT - PEACOCKS - GENERAL,PEACOCKS R&M HOLDING,D108,PEACOCKS R&M HOLDING,ASSET MANAGEMENT,FACILITIES & MANAGEMENT SERVICES
http://statistics.data.gov.uk/id/local-authority/43UM,WOKING BOROUGH COUNCIL,07/04/2020,14/04/2020,0000452577/214,SKANSKA RASHLEIGH WEATHERFOIL LTD,40413600,8.20 ,ASSET MANAGEMENT - PEACOCKS - GENERAL,PEACOCKS R&M HOLDING,D108,PEACOCKS R&M HOLDING,ASSET MANAGEMENT,FACILITIES & MANAGEMENT SERVICES
http://statistics.data.gov.uk/id/local-authority/43UM,WOKING BOROUGH COUNCIL,07/04/2020,14/04/2020,0000452577/217,SKANSKA RASHLEIGH WEATHERFOIL LTD,40413600,-56.44 ,ASSET MANAGEMENT - PEACOCKS - GENERAL,PEACOCKS R&M HOLDING,D108,PEACOCKS R&M HOLDING,ASSET MANAGEMENT,FACILITIES & MANAGEMENT SERVICES
http://statistics.data.gov.uk/id/local-authority/43UM,WOKING BOROUGH COUNCIL,07/04/2020,14/04/2020,0000452577/218,SKANSKA RASHLEIGH WEATHERFOIL LTD,40413600,-55.44 ,ASSET MANAGEMENT - PEACOCKS - GENERAL,PEACOCKS R&M HOLDING,D108,PEACOCKS R&M HOLDING,ASSET MANAGEMENT,FACILITIES & MANAGEMENT SERVICES
http://statistics.data.gov.uk/id/local-authority/43UM,WOKING BOROUGH COUNCIL,07/04/2020,14/04/2020,0000452577/219,SKANSKA RASHLEIGH WEATHERFOIL LTD,40413600,-173.96 ,ASSET MANAGEMENT - PEACOCKS - GENERAL,PEACOCKS R&M HOLDING,D108,PEACOCKS R&M HOLDING,ASSET MANAGEMENT,FACILITIES & MANAGEMENT SERVICES
http://statistics.data.gov.uk/id/local-authority/43UM,WOKING BOROUGH COUNCIL,07/04/2020,14/04/2020,0000452577/220,SKANSKA RASHLEIGH WEATHERFOIL LTD,40413600,-173.96 ,ASSET MANAGEMENT - PEACOCKS - GENERAL,PEACOCKS R&M HOLDING,D108,PEACOCKS R&M HOLDING,ASSET MANAGEMENT,FACILITIES & MANAGEMENT SERVICES
http://statistics.data.gov.uk/id/local-authority/43UM,WOKING BOROUGH COUNCIL,07/04/2020,14/04/2020,0000452577/221,SKANSKA RASHLEIGH WEATHERFOIL LTD,40413600,-10.72 ,ASSET MANAGEMENT - PEACOCKS - GENERAL,PEACOCKS R&M HOLDING,D108,PEACOCKS R&M HOLDING,ASSET MANAGEMENT,FACILITIES & MANAGEMENT SERVICES
http://statistics.data.gov.uk/id/local-authority/43UM,WOKING BOROUGH COUNCIL,07/04/2020,14/04/2020,0000452577/222,SKANSKA RASHLEIGH WEATHERFOIL LTD,40413600,-12.90 ,ASSET MANAGEMENT - PEACOCKS - GENERAL,PEACOCKS R&M HOLDING,D108,PEACOCKS R&M HOLDING,ASSET MANAGEMENT,FACILITIES & MANAGEMENT SERVICES
http://statistics.data.gov.uk/id/local-authority/43UM,WOKING BOROUGH COUNCIL,07/04/2020,14/04/2020,0000452577/223,SKANSKA RASHLEIGH WEATHERFOIL LTD,40413600,-77.14 ,ASSET MANAGEMENT - PEACOCKS - GENERAL,PEACOCKS R&M HOLDING,D108,PEACOCKS R&M HOLDING,ASSET MANAGEMENT,FACILITIES & MANAGEMENT SERVICES
http://statistics.data.gov.uk/id/local-authority/43UM,WOKING BOROUGH COUNCIL,07/04/2020,14/04/2020,0000452577/247,SKANSKA RASHLEIGH WEATHERFOIL LTD,40413600,-384.19 ,ASSET MANAGEMENT - PEACOCKS - GENERAL,PEACOCKS R&M HOLDING,D108,PEACOCKS R&M HOLDING,ASSET MANAGEMENT,FACILITIES & MANAGEMENT SERVICES
http://statistics.data.gov.uk/id/local-authority/43UM,WOKING BOROUGH COUNCIL,07/04/2020,14/04/2020,0000452577/248,SKANSKA RASHLEIGH WEATHERFOIL LTD,40413600,-384.19 ,ASSET MANAGEMENT - PEACOCKS - GENERAL,PEACOCKS R&M HOLDING,D108,PEACOCKS R&M HOLDING,ASSET MANAGEMENT,FACILITIES & MANAGEMENT SERVICES
http://statistics.data.gov.uk/id/local-authority/43UM,WOKING BOROUGH COUNCIL,07/04/2020,14/04/2020,0000452577/249,SKANSKA RASHLEIGH WEATHERFOIL LTD,40413600,-384.19 ,ASSET MANAGEMENT - PEACOCKS - GENERAL,PEACOCKS R&M HOLDING,D108,PEACOCKS R&M HOLDING,ASSET MANAGEMENT,FACILITIES & MANAGEMENT SERVICES
http://statistics.data.gov.uk/id/local-authority/43UM,WOKING BOROUGH COUNCIL,07/04/2020,14/04/2020,0000452577/250,SKANSKA RASHLEIGH WEATHERFOIL LTD,40413600,-38468.27 ,ASSET MANAGEMENT - PEACOCKS - GENERAL,PEACOCKS R&M HOLDING,D108,PEACOCKS R&M HOLDING,ASSET MANAGEMENT,FACILITIES & MANAGEMENT SERVICES
http://statistics.data.gov.uk/id/local-authority/43UM,WOKING BOROUGH COUNCIL,07/04/2020,14/04/2020,0000452577/039,SKANSKA RASHLEIGH WEATHERFOIL LTD,40413600,48818.49 ,ASSET MANAGEMENT - WOLSEY PLACE,PEACOCKS R&M HOLDING,D108,PEACOCKS R&M HOLDING,ASSET MANAGEMENT,FACILITIES & MANAGEMENT SERVICES
http://statistics.data.gov.uk/id/local-authority/43UM,WOKING BOROUGH COUNCIL,07/04/2020,14/04/2020,0000452577/040,SKANSKA RASHLEIGH WEATHERFOIL LTD,40413600,17264.16 ,ASSET MANAGEMENT - WOLSEY PLACE,PEACOCKS R&M HOLDING,D108,PEACOCKS R&M HOLDING,ASSET MANAGEMENT,FACILITIES & MANAGEMENT SERVICES
http://statistics.data.gov.uk/id/local-authority/43UM,WOKING BOROUGH COUNCIL,07/04/2020,14/04/2020,0000452577/046,SKANSKA RASHLEIGH WEATHERFOIL LTD,40413600,197.54 ,ASSET MANAGEMENT - WOLSEY PLACE,PEACOCKS R&M HOLDING,D108,PEACOCKS R&M HOLDING,ASSET MANAGEMENT,FACILITIES & MANAGEMENT SERVICES
http://statistics.data.gov.uk/id/local-authority/43UM,WOKING BOROUGH COUNCIL,07/04/2020,14/04/2020,0000452577/050,SKANSKA RASHLEIGH WEATHERFOIL LTD,40413600,1246.81 ,ASSET MANAGEMENT - WOLSEY PLACE,PEACOCKS R&M HOLDING,D108,PEACOCKS R&M HOLDING,ASSET MANAGEMENT,FACILITIES & MANAGEMENT SERVICES
http://statistics.data.gov.uk/id/local-authority/43UM,WOKING BOROUGH COUNCIL,07/04/2020,14/04/2020,0000452577/052,SKANSKA RASHLEIGH WEATHERFOIL LTD,40413600,3501.96 ,ASSET MANAGEMENT - WOLSEY PLACE,PEACOCKS R&M HOLDING,D108,PEACOCKS R&M HOLDING,ASSET MANAGEMENT,FACILITIES & MANAGEMENT SERVICES
http://statistics.data.gov.uk/id/local-authority/43UM,WOKING BOROUGH COUNCIL,07/04/2020,14/04/2020,0000452577/054,SKANSKA RASHLEIGH WEATHERFOIL LTD,40413600,1967.50 ,ASSET MANAGEMENT - WOLSEY PLACE,PEACOCKS R&M HOLDING,D108,PEACOCKS R&M HOLDING,ASSET MANAGEMENT,FACILITIES & MANAGEMENT SERVICES
http://statistics.data.gov.uk/id/local-authority/43UM,WOKING BOROUGH COUNCIL,07/04/2020,14/04/2020,0000452577/065,SKANSKA RASHLEIGH WEATHERFOIL LTD,40413600,2883.73 ,ASSET MANAGEMENT - WOLSEY PLACE,PEACOCKS R&M HOLDING,D108,PEACOCKS R&M HOLDING,ASSET MANAGEMENT,FACILITIES & MANAGEMENT SERVICES
http://statistics.data.gov.uk/id/local-authority/43UM,WOKING BOROUGH COUNCIL,07/04/2020,14/04/2020,0000452577/066,SKANSKA RASHLEIGH WEATHERFOIL LTD,40413600,2824.66 ,ASSET MANAGEMENT - WOLSEY PLACE,PEACOCKS R&M HOLDING,D108,PEACOCKS R&M HOLDING,ASSET MANAGEMENT,FACILITIES & MANAGEMENT SERVICES
http://statistics.data.gov.uk/id/local-authority/43UM,WOKING BOROUGH COUNCIL,07/04/2020,14/04/2020,0000452577/071,SKANSKA RASHLEIGH WEATHERFOIL LTD,40413600,2076.46 ,ASSET MANAGEMENT - WOLSEY PLACE,PEACOCKS R&M HOLDING,D108,PEACOCKS R&M HOLDING,ASSET MANAGEMENT,FACILITIES & MANAGEMENT SERVICES
http://statistics.data.gov.uk/id/local-authority/43UM,WOKING BOROUGH COUNCIL,07/04/2020,14/04/2020,0000452577/081,SKANSKA RASHLEIGH WEATHERFOIL LTD,40413600,18.34 ,ASSET MANAGEMENT - WOLSEY PLACE,PEACOCKS R&M HOLDING,D108,PEACOCKS R&M HOLDING,ASSET MANAGEMENT,FACILITIES & MANAGEMENT SERVICES
http://statistics.data.gov.uk/id/local-authority/43UM,WOKING BOROUGH COUNCIL,07/04/2020,14/04/2020,0000452577/082,SKANSKA RASHLEIGH WEATHERFOIL LTD,40413600,96.31 ,ASSET MANAGEMENT - WOLSEY PLACE,PEACOCKS R&M HOLDING,D108,PEACOCKS R&M HOLDING,ASSET MANAGEMENT,FACILITIES & MANAGEMENT SERVICES
http://statistics.data.gov.uk/id/local-authority/43UM,WOKING BOROUGH COUNCIL,07/04/2020,14/04/2020,0000452577/085,SKANSKA RASHLEIGH WEATHERFOIL LTD,40413600,-665.45 ,ASSET MANAGEMENT - WOLSEY PLACE,PEACOCKS R&M HOLDING,D108,PEACOCKS R&M HOLDING,ASSET MANAGEMENT,FACILITIES & MANAGEMENT SERVICES
http://statistics.data.gov.uk/id/local-authority/43UM,WOKING BOROUGH COUNCIL,07/04/2020,14/04/2020,0000452577/086,SKANSKA RASHLEIGH WEATHERFOIL LTD,40413600,-665.45 ,ASSET MANAGEMENT - WOLSEY PLACE,PEACOCKS R&M HOLDING,D108,PEACOCKS R&M HOLDING,ASSET MANAGEMENT,FACILITIES & MANAGEMENT SERVICES
http://statistics.data.gov.uk/id/local-authority/43UM,WOKING BOROUGH COUNCIL,07/04/2020,14/04/2020,0000452577/096,SKANSKA RASHLEIGH WEATHERFOIL LTD,40413600,177.95 ,ASSET MANAGEMENT - WOLSEY PLACE,PEACOCKS R&M HOLDING,D108,PEACOCKS R&M HOLDING,ASSET MANAGEMENT,FACILITIES & MANAGEMENT SERVICES
http://statistics.data.gov.uk/id/local-authority/43UM,WOKING BOROUGH COUNCIL,07/04/2020,14/04/2020,0000452577/099,SKANSKA RASHLEIGH WEATHERFOIL LTD,40413600,782.24 ,ASSET MANAGEMENT - WOLSEY PLACE,PEACOCKS R&M HOLDING,D108,PEACOCKS R&M HOLDING,ASSET MANAGEMENT,FACILITIES & MANAGEMENT SERVICES
http://statistics.data.gov.uk/id/local-authority/43UM,WOKING BOROUGH COUNCIL,07/04/2020,14/04/2020,0000452577/100,SKANSKA RASHLEIGH WEATHERFOIL LTD,40413600,14.16 ,ASSET MANAGEMENT - WOLSEY PLACE,PEACOCKS R&M HOLDING,D108,PEACOCKS R&M HOLDING,ASSET MANAGEMENT,FACILITIES & MANAGEMENT SERVICES
http://statistics.data.gov.uk/id/local-authority/43UM,WOKING BOROUGH COUNCIL,07/04/2020,14/04/2020,0000452577/112,SKANSKA RASHLEIGH WEATHERFOIL LTD,40413600,51.92 ,ASSET MANAGEMENT - WOLSEY PLACE,PEACOCKS R&M HOLDING,D108,PEACOCKS R&M HOLDING,ASSET MANAGEMENT,FACILITIES & MANAGEMENT SERVICES
http://statistics.data.gov.uk/id/local-authority/43UM,WOKING BOROUGH COUNCIL,07/04/2020,14/04/2020,0000452577/131,SKANSKA RASHLEIGH WEATHERFOIL LTD,40413600,83.58 ,ASSET MANAGEMENT - WOLSEY PLACE,PEACOCKS R&M HOLDING,D108,PEACOCKS R&M HOLDING,ASSET MANAGEMENT,FACILITIES & MANAGEMENT SERVICES
http://statistics.data.gov.uk/id/local-authority/43UM,WOKING BOROUGH COUNCIL,07/04/2020,14/04/2020,0000452577/134,SKANSKA RASHLEIGH WEATHERFOIL LTD,40413600,341.18 ,ASSET MANAGEMENT - WOLSEY PLACE,PEACOCKS R&M HOLDING,D108,PEACOCKS R&M HOLDING,ASSET MANAGEMENT,FACILITIES & MANAGEMENT SERVICES
http://statistics.data.gov.uk/id/local-authority/43UM,WOKING BOROUGH COUNCIL,07/04/2020,14/04/2020,0000452577/135,SKANSKA RASHLEIGH WEATHERFOIL LTD,40413600,8.36 ,ASSET MANAGEMENT - WOLSEY PLACE,PEACOCKS R&M HOLDING,D108,PEACOCKS R&M HOLDING,ASSET MANAGEMENT,FACILITIES & MANAGEMENT SERVICES
http://statistics.data.gov.uk/id/local-authority/43UM,WOKING BOROUGH COUNCIL,07/04/2020,14/04/2020,0000452577/155,SKANSKA RASHLEIGH WEATHERFOIL LTD,40413600,121.43 ,ASSET MANAGEMENT - WOLSEY PLACE,PEACOCKS R&M HOLDING,D108,PEACOCKS R&M HOLDING,ASSET MANAGEMENT,FACILITIES & MANAGEMENT SERVICES
http://statistics.data.gov.uk/id/local-authority/43UM,WOKING BOROUGH COUNCIL,07/04/2020,14/04/2020,0000452577/158,SKANSKA RASHLEIGH WEATHERFOIL LTD,40413600,445.48 ,ASSET MANAGEMENT - WOLSEY PLACE,PEACOCKS R&M HOLDING,D108,PEACOCKS R&M HOLDING,ASSET MANAGEMENT,FACILITIES & MANAGEMENT SERVICES
http://statistics.data.gov.uk/id/local-authority/43UM,WOKING BOROUGH COUNCIL,07/04/2020,14/04/2020,0000452577/159,SKANSKA RASHLEIGH WEATHERFOIL LTD,40413600,8.80 ,ASSET MANAGEMENT - WOLSEY PLACE,PEACOCKS R&M HOLDING,D108,PEACOCKS R&M HOLDING,ASSET MANAGEMENT,FACILITIES & MANAGEMENT SERVICES
http://statistics.data.gov.uk/id/local-authority/43UM,WOKING BOROUGH COUNCIL,07/04/2020,14/04/2020,0000452577/160,SKANSKA RASHLEIGH WEATHERFOIL LTD,40413600,-22.11 ,ASSET MANAGEMENT - WOLSEY PLACE,PEACOCKS R&M HOLDING,D108,PEACOCKS R&M HOLDING,ASSET MANAGEMENT,FACILITIES & MANAGEMENT SERVICES
http://statistics.data.gov.uk/id/local-authority/43UM,WOKING BOROUGH COUNCIL,07/04/2020,14/04/2020,0000452577/161,SKANSKA RASHLEIGH WEATHERFOIL LTD,40413600,-2.95 ,ASSET MANAGEMENT - WOLSEY PLACE,PEACOCKS R&M HOLDING,D108,PEACOCKS R&M HOLDING,ASSET MANAGEMENT,FACILITIES & MANAGEMENT SERVICES
http://statistics.data.gov.uk/id/local-authority/43UM,WOKING BOROUGH COUNCIL,07/04/2020,14/04/2020,0000452577/162,SKANSKA RASHLEIGH WEATHERFOIL LTD,40413600,-22.00 ,ASSET MANAGEMENT - WOLSEY PLACE,PEACOCKS R&M HOLDING,D108,PEACOCKS R&M HOLDING,ASSET MANAGEMENT,FACILITIES & MANAGEMENT SERVICES
http://statistics.data.gov.uk/id/local-authority/43UM,WOKING BOROUGH COUNCIL,07/04/2020,14/04/2020,0000452577/163,SKANSKA RASHLEIGH WEATHERFOIL LTD,40413600,-44.46 ,ASSET MANAGEMENT - WOLSEY PLACE,PEACOCKS R&M HOLDING,D108,PEACOCKS R&M HOLDING,ASSET MANAGEMENT,FACILITIES & MANAGEMENT SERVICES
http://statistics.data.gov.uk/id/local-authority/43UM,WOKING BOROUGH COUNCIL,07/04/2020,14/04/2020,0000452577/164,SKANSKA RASHLEIGH WEATHERFOIL LTD,40413600,36.56 ,ASSET MANAGEMENT - WOLSEY PLACE,PEACOCKS R&M HOLDING,D108,PEACOCKS R&M HOLDING,ASSET MANAGEMENT,FACILITIES & MANAGEMENT SERVICES
http://statistics.data.gov.uk/id/local-authority/43UM,WOKING BOROUGH COUNCIL,07/04/2020,14/04/2020,0000452577/165,SKANSKA RASHLEIGH WEATHERFOIL LTD,40413600,37.76 ,ASSET MANAGEMENT - WOLSEY PLACE,PEACOCKS R&M HOLDING,D108,PEACOCKS R&M HOLDING,ASSET MANAGEMENT,FACILITIES & MANAGEMENT SERVICES
http://statistics.data.gov.uk/id/local-authority/43UM,WOKING BOROUGH COUNCIL,07/04/2020,14/04/2020,0000452577/166,SKANSKA RASHLEIGH WEATHERFOIL LTD,40413600,-3.24 ,ASSET MANAGEMENT - WOLSEY PLACE,PEACOCKS R&M HOLDING,D108,PEACOCKS R&M HOLDING,ASSET MANAGEMENT,FACILITIES & MANAGEMENT SERVICES
http://statistics.data.gov.uk/id/local-authority/43UM,WOKING BOROUGH COUNCIL,07/04/2020,14/04/2020,0000452577/167,SKANSKA RASHLEIGH WEATHERFOIL LTD,40413600,-252.09 ,ASSET MANAGEMENT - WOLSEY PLACE,PEACOCKS R&M HOLDING,D108,PEACOCKS R&M HOLDING,ASSET MANAGEMENT,FACILITIES & MANAGEMENT SERVICES
http://statistics.data.gov.uk/id/local-authority/43UM,WOKING BOROUGH COUNCIL,07/04/2020,14/04/2020,0000452577/168,SKANSKA RASHLEIGH WEATHERFOIL LTD,40413600,-2.95 ,ASSET MANAGEMENT - WOLSEY PLACE,PEACOCKS R&M HOLDING,D108,PEACOCKS R&M HOLDING,ASSET MANAGEMENT,FACILITIES & MANAGEMENT SERVICES
http://statistics.data.gov.uk/id/local-authority/43UM,WOKING BOROUGH COUNCIL,07/04/2020,14/04/2020,0000452577/169,SKANSKA RASHLEIGH WEATHERFOIL LTD,40413600,-14.74 ,ASSET MANAGEMENT - WOLSEY PLACE,PEACOCKS R&M HOLDING,D108,PEACOCKS R&M HOLDING,ASSET MANAGEMENT,FACILITIES & MANAGEMENT SERVICES
http://statistics.data.gov.uk/id/local-authority/43UM,WOKING BOROUGH COUNCIL,07/04/2020,14/04/2020,0000452577/170,SKANSKA RASHLEIGH WEATHERFOIL LTD,40413600,-3.93 ,ASSET MANAGEMENT - WOLSEY PLACE,PEACOCKS R&M HOLDING,D108,PEACOCKS R&M HOLDING,ASSET MANAGEMENT,FACILITIES & MANAGEMENT SERVICES
http://statistics.data.gov.uk/id/local-authority/43UM,WOKING BOROUGH COUNCIL,07/04/2020,14/04/2020,0000452577/171,SKANSKA RASHLEIGH WEATHERFOIL LTD,40413600,-554.65 ,ASSET MANAGEMENT - WOLSEY PLACE,PEACOCKS R&M HOLDING,D108,PEACOCKS R&M HOLDING,ASSET MANAGEMENT,FACILITIES & MANAGEMENT SERVICES
http://statistics.data.gov.uk/id/local-authority/43UM,WOKING BOROUGH COUNCIL,07/04/2020,14/04/2020,0000452577/172,SKANSKA RASHLEIGH WEATHERFOIL LTD,40413600,4639.66 ,ASSET MANAGEMENT - WOLSEY PLACE,PEACOCKS R&M HOLDING,D108,PEACOCKS R&M HOLDING,ASSET MANAGEMENT,FACILITIES & MANAGEMENT SERVICES
http://statistics.data.gov.uk/id/local-authority/43UM,WOKING BOROUGH COUNCIL,07/04/2020,14/04/2020,0000452577/173,SKANSKA RASHLEIGH WEATHERFOIL LTD,40413600,16.52 ,ASSET MANAGEMENT - WOLSEY PLACE,PEACOCKS R&M HOLDING,D108,PEACOCKS R&M HOLDING,ASSET MANAGEMENT,FACILITIES & MANAGEMENT SERVICES
http://statistics.data.gov.uk/id/local-authority/43UM,WOKING BOROUGH COUNCIL,07/04/2020,14/04/2020,0000452577/174,SKANSKA RASHLEIGH WEATHERFOIL LTD,40413600,14.27 ,ASSET MANAGEMENT - WOLSEY PLACE,PEACOCKS R&M HOLDING,D108,PEACOCKS R&M HOLDING,ASSET MANAGEMENT,FACILITIES & MANAGEMENT SERVICES
http://statistics.data.gov.uk/id/local-authority/43UM,WOKING BOROUGH COUNCIL,07/04/2020,14/04/2020,0000452577/175,SKANSKA RASHLEIGH WEATHERFOIL LTD,40413600,54.84 ,ASSET MANAGEMENT - WOLSEY PLACE,PEACOCKS R&M HOLDING,D108,PEACOCKS R&M HOLDING,ASSET MANAGEMENT,FACILITIES & MANAGEMENT SERVICES
http://statistics.data.gov.uk/id/local-authority/43UM,WOKING BOROUGH COUNCIL,07/04/2020,14/04/2020,0000452577/176,SKANSKA RASHLEIGH WEATHERFOIL LTD,40413600,62.95 ,ASSET MANAGEMENT - WOLSEY PLACE,PEACOCKS R&M HOLDING,D108,PEACOCKS R&M HOLDING,ASSET MANAGEMENT,FACILITIES & MANAGEMENT SERVICES
http://statistics.data.gov.uk/id/local-authority/43UM,WOKING BOROUGH COUNCIL,07/04/2020,14/04/2020,0000452577/178,SKANSKA RASHLEIGH WEATHERFOIL LTD,40413600,65.19 ,ASSET MANAGEMENT - WOLSEY PLACE,PEACOCKS R&M HOLDING,D108,PEACOCKS R&M HOLDING,ASSET MANAGEMENT,FACILITIES & MANAGEMENT SERVICES
http://statistics.data.gov.uk/id/local-authority/43UM,WOKING BOROUGH COUNCIL,07/04/2020,14/04/2020,0000452577/179,SKANSKA RASHLEIGH WEATHERFOIL LTD,40413600,722.44 ,ASSET MANAGEMENT - WOLSEY PLACE,PEACOCKS R&M HOLDING,D108,PEACOCKS R&M HOLDING,ASSET MANAGEMENT,FACILITIES & MANAGEMENT SERVICES
http://statistics.data.gov.uk/id/local-authority/43UM,WOKING BOROUGH COUNCIL,07/04/2020,14/04/2020,0000452577/212,SKANSKA RASHLEIGH WEATHERFOIL LTD,40413600,135.36 ,ASSET MANAGEMENT - WOLSEY PLACE,PEACOCKS R&M HOLDING,D108,PEACOCKS R&M HOLDING,ASSET MANAGEMENT,FACILITIES & MANAGEMENT SERVICES
http://statistics.data.gov.uk/id/local-authority/43UM,WOKING BOROUGH COUNCIL,07/04/2020,14/04/2020,0000452577/215,SKANSKA RASHLEIGH WEATHERFOIL LTD,40413600,496.58 ,ASSET MANAGEMENT - WOLSEY PLACE,PEACOCKS R&M HOLDING,D108,PEACOCKS R&M HOLDING,ASSET MANAGEMENT,FACILITIES & MANAGEMENT SERVICES
http://statistics.data.gov.uk/id/local-authority/43UM,WOKING BOROUGH COUNCIL,07/04/2020,14/04/2020,0000452577/216,SKANSKA RASHLEIGH WEATHERFOIL LTD,40413600,9.83 ,ASSET MANAGEMENT - WOLSEY PLACE,PEACOCKS R&M HOLDING,D108,PEACOCKS R&M HOLDING,ASSET MANAGEMENT,FACILITIES & MANAGEMENT SERVICES
http://statistics.data.gov.uk/id/local-authority/43UM,WOKING BOROUGH COUNCIL,07/04/2020,14/04/2020,0000452577/251,SKANSKA RASHLEIGH WEATHERFOIL LTD,40413600,-28156.74 ,ASSET MANAGEMENT - WOLSEY PLACE,PEACOCKS R&M HOLDING,D108,PEACOCKS R&M HOLDING,ASSET MANAGEMENT,FACILITIES & MANAGEMENT SERVICES
http://statistics.data.gov.uk/id/local-authority/43UM,WOKING BOROUGH COUNCIL,07/04/2020,14/04/2020,0000452577/252,SKANSKA RASHLEIGH WEATHERFOIL LTD,40413600,-7349.49 ,ASSET MANAGEMENT - WOLSEY PLACE,PEACOCKS R&M HOLDING,D108,PEACOCKS R&M HOLDING,ASSET MANAGEMENT,FACILITIES & MANAGEMENT SERVICES
http://statistics.data.gov.uk/id/local-authority/43UM,WOKING BOROUGH COUNCIL,07/04/2020,14/04/2020,0000452577/008,SKANSKA RASHLEIGH WEATHERFOIL LTD,40413600,524.21 ,ASSET MANAGEMENT - UNIT 14B MON WAY EAST,FACILITIES MANAGEMENT CONTRACT,D909,FACILITIES MANAGEMENT CONTRACT,ASSET MANAGEMENT,FACILITIES & MANAGEMENT SERVICES
http://statistics.data.gov.uk/id/local-authority/43UM,WOKING BOROUGH COUNCIL,07/04/2020,14/04/2020,0000452577/087,SKANSKA RASHLEIGH WEATHERFOIL LTD,40413600,18.98 ,ASSET MANAGEMENT - UNIT 14B MON WAY EAST,FACILITIES MANAGEMENT CONTRACT,D909,FACILITIES MANAGEMENT CONTRACT,ASSET MANAGEMENT,FACILITIES & MANAGEMENT SERVICES
http://statistics.data.gov.uk/id/local-authority/43UM,WOKING BOROUGH COUNCIL,07/04/2020,14/04/2020,0000452577/122,SKANSKA RASHLEIGH WEATHERFOIL LTD,40413600,27.86 ,ASSET MANAGEMENT - UNIT 14B MON WAY EAST,FACILITIES MANAGEMENT CONTRACT,D909,FACILITIES MANAGEMENT CONTRACT,ASSET MANAGEMENT,FACILITIES & MANAGEMENT SERVICES
http://statistics.data.gov.uk/id/local-authority/43UM,WOKING BOROUGH COUNCIL,07/04/2020,14/04/2020,0000452577/141,SKANSKA RASHLEIGH WEATHERFOIL LTD,40413600,29.44 ,ASSET MANAGEMENT - UNIT 14B MON WAY EAST,FACILITIES MANAGEMENT CONTRACT,D909,FACILITIES MANAGEMENT CONTRACT,ASSET MANAGEMENT,FACILITIES & MANAGEMENT SERVICES
http://statistics.data.gov.uk/id/local-authority/43UM,WOKING BOROUGH COUNCIL,07/04/2020,14/04/2020,0000452577/200,SKANSKA RASHLEIGH WEATHERFOIL LTD,40413600,32.82 ,ASSET MANAGEMENT - UNIT 14B MON WAY EAST,FACILITIES MANAGEMENT CONTRACT,D909,FACILITIES MANAGEMENT CONTRACT,ASSET MANAGEMENT,FACILITIES & MANAGEMENT SERVICES
http://statistics.data.gov.uk/id/local-authority/43UM,WOKING BOROUGH COUNCIL,07/04/2020,14/04/2020,0000452577/009,SKANSKA RASHLEIGH WEATHERFOIL LTD,40413600,262.10 ,ASSET MANAGEMENT - UNIT 14A MON WAY EAST,FACILITIES MANAGEMENT CONTRACT,D909,FACILITIES MANAGEMENT CONTRACT,ASSET MANAGEMENT,FACILITIES & MANAGEMENT SERVICES
http://statistics.data.gov.uk/id/local-authority/43UM,WOKING BOROUGH COUNCIL,07/04/2020,14/04/2020,0000452577/010,SKANSKA RASHLEIGH WEATHERFOIL LTD,40413600,1346.96 ,ASSET MANAGEMENT - KINGFIELD ROAD COMMUNITY BLDG,FACILITIES MANAGEMENT CONTRACT,D909,FACILITIES MANAGEMENT CONTRACT,ASSET MANAGEMENT,FACILITIES & MANAGEMENT SERVICES
http://statistics.data.gov.uk/id/local-authority/43UM,WOKING BOROUGH COUNCIL,07/04/2020,14/04/2020,0000452577/107,SKANSKA RASHLEIGH WEATHERFOIL LTD,40413600,59.15 ,ASSET MANAGEMENT - KINGFIELD ROAD COMMUNITY BLDG,REFUSE COLLECTION,D960,REFUSE COLLECTION,ASSET MANAGEMENT,FACILITIES & MANAGEMENT SERVICES
http://statistics.data.gov.uk/id/local-authority/43UM,WOKING BOROUGH COUNCIL,07/04/2020,14/04/2020,0000452577/115,SKANSKA RASHLEIGH WEATHERFOIL LTD,40413600,1188.68 ,ASSET MANAGEMENT - STEWARD HSE OFFICES FLR 1 TO 3,R&M BUILDINGS - CONTRACTORS,D100,R&M BUILDINGS - CONTRACTORS,ASSET MANAGEMENT,FACILITIES & MANAGEMENT SERVICES
http://statistics.data.gov.uk/id/local-authority/43UM,WOKING BOROUGH COUNCIL,07/04/2020,14/04/2020,0000452577/152,SKANSKA RASHLEIGH WEATHERFOIL LTD,40413600,11.35 ,ASSET MANAGEMENT - STEWARD HSE OFFICES FLR 1 TO 3,R&M BUILDINGS - CONTRACTORS,D100,R&M BUILDINGS - CONTRACTORS,ASSET MANAGEMENT,FACILITIES & MANAGEMENT SERVICES
http://statistics.data.gov.uk/id/local-authority/43UM,WOKING BOROUGH COUNCIL,07/04/2020,14/04/2020,0000452577/180,SKANSKA RASHLEIGH WEATHERFOIL LTD,40413600,-1200.03 ,ASSET MANAGEMENT - STEWARD HSE OFFICES FLR 1 TO 3,R&M BUILDINGS - CONTRACTORS,D100,R&M BUILDINGS - CONTRACTORS,ASSET MANAGEMENT,FACILITIES & MANAGEMENT SERVICES
http://statistics.data.gov.uk/id/local-authority/43UM,WOKING BOROUGH COUNCIL,07/04/2020,14/04/2020,0000452577/181,SKANSKA RASHLEIGH WEATHERFOIL LTD,40413600,-881.35 ,ASSET MANAGEMENT - STEWARD HSE OFFICES FLR 1 TO 3,R&M BUILDINGS - CONTRACTORS,D100,R&M BUILDINGS - CONTRACTORS,ASSET MANAGEMENT,FACILITIES & MANAGEMENT SERVICES
http://statistics.data.gov.uk/id/local-authority/43UM,WOKING BOROUGH COUNCIL,07/04/2020,14/04/2020,0000452577/118,SKANSKA RASHLEIGH WEATHERFOIL LTD,40413600,881.35 ,ASSET MANAGEMENT - PEARLASSHSE 28 HIGH ST FLR1,R&M BUILDINGS - CONTRACTORS,D100,R&M BUILDINGS - CONTRACTORS,ASSET MANAGEMENT,FACILITIES & MANAGEMENT SERVICES
http://statistics.data.gov.uk/id/local-authority/43UM,WOKING BOROUGH COUNCIL,07/04/2020,14/04/2020,0000452577/119,SKANSKA RASHLEIGH WEATHERFOIL LTD,40413600,2461.05 ,ASSET MANAGEMENT - CLEARY COURT,R&M BUILDINGS - CONTRACTORS,D100,R&M BUILDINGS - CONTRACTORS,ASSET MANAGEMENT,FACILITIES & MANAGEMENT SERVICES
http://statistics.data.gov.uk/id/local-authority/43UM,WOKING BOROUGH COUNCIL,07/04/2020,14/04/2020,0000452577/153,SKANSKA RASHLEIGH WEATHERFOIL LTD,40413600,15.13 ,ASSET MANAGEMENT - CLEARY COURT,R&M BUILDINGS - CONTRACTORS,D100,R&M BUILDINGS - CONTRACTORS,ASSET MANAGEMENT,FACILITIES & MANAGEMENT SERVICES
http://statistics.data.gov.uk/id/local-authority/43UM,WOKING BOROUGH COUNCIL,07/04/2020,14/04/2020,0000452577/182,SKANSKA RASHLEIGH WEATHERFOIL LTD,40413600,-2476.17 ,ASSET MANAGEMENT - CLEARY COURT,R&M BUILDINGS - CONTRACTORS,D100,R&M BUILDINGS - CONTRACTORS,ASSET MANAGEMENT,FACILITIES & MANAGEMENT SERVICES
http://statistics.data.gov.uk/id/local-authority/43UM,WOKING BOROUGH COUNCIL,07/04/2020,14/04/2020,0000452577/001,SKANSKA RASHLEIGH WEATHERFOIL LTD,40413600,635.93 ,ASSET MANAGEMENT - 49 DARTMOUTH AVE (XHRA) ,FACILITIES MANAGEMENT CONTRACT,D909,FACILITIES MANAGEMENT CONTRACT,ASSET MANAGEMENT,FACILITIES & MANAGEMENT SERVICES
http://statistics.data.gov.uk/id/local-authority/43UM,WOKING BOROUGH COUNCIL,07/04/2020,14/04/2020,0000452577/042,SKANSKA RASHLEIGH WEATHERFOIL LTD,40413600,404.87 ,ASSET MANAGEMENT - FACILITIES MANAGEMENT,FACILITIES MANAGEMENT REPAIRS,D908,FACILITIES MANAGEMENT REPAIRS,ASSET MANAGEMENT,FACILITIES & MANAGEMENT SERVICES
http://statistics.data.gov.uk/id/local-authority/43UM,WOKING BOROUGH COUNCIL,07/04/2020,14/04/2020,0000452577/043,SKANSKA RASHLEIGH WEATHERFOIL LTD,40413600,282.42 ,ASSET MANAGEMENT - FACILITIES MANAGEMENT,FACILITIES MANAGEMENT REPAIRS,D908,FACILITIES MANAGEMENT REPAIRS,ASSET MANAGEMENT,FACILITIES & MANAGEMENT SERVICES
http://statistics.data.gov.uk/id/local-authority/43UM,WOKING BOROUGH COUNCIL,07/04/2020,14/04/2020,0000452577/045,SKANSKA RASHLEIGH WEATHERFOIL LTD,40413600,238.75 ,ASSET MANAGEMENT - FACILITIES MANAGEMENT,FACILITIES MANAGEMENT REPAIRS,D908,FACILITIES MANAGEMENT REPAIRS,ASSET MANAGEMENT,FACILITIES & MANAGEMENT SERVICES
http://statistics.data.gov.uk/id/local-authority/43UM,WOKING BOROUGH COUNCIL,07/04/2020,14/04/2020,0000452577/048,SKANSKA RASHLEIGH WEATHERFOIL LTD,40413600,74.98 ,ASSET MANAGEMENT - FACILITIES MANAGEMENT,FACILITIES MANAGEMENT REPAIRS,D908,FACILITIES MANAGEMENT REPAIRS,ASSET MANAGEMENT,FACILITIES & MANAGEMENT SERVICES
http://statistics.data.gov.uk/id/local-authority/43UM,WOKING BOROUGH COUNCIL,07/04/2020,14/04/2020,0000452577/051,SKANSKA RASHLEIGH WEATHERFOIL LTD,40413600,1670.36 ,ASSET MANAGEMENT - FACILITIES MANAGEMENT,FACILITIES MANAGEMENT REPAIRS,D908,FACILITIES MANAGEMENT REPAIRS,ASSET MANAGEMENT,FACILITIES & MANAGEMENT SERVICES
http://statistics.data.gov.uk/id/local-authority/43UM,WOKING BOROUGH COUNCIL,07/04/2020,14/04/2020,0000452577/055,SKANSKA RASHLEIGH WEATHERFOIL LTD,40413600,6026.56 ,ASSET MANAGEMENT - FACILITIES MANAGEMENT,FACILITIES MANAGEMENT REPAIRS,D908,FACILITIES MANAGEMENT REPAIRS,ASSET MANAGEMENT,FACILITIES & MANAGEMENT SERVICES
http://statistics.data.gov.uk/id/local-authority/43UM,WOKING BOROUGH COUNCIL,07/04/2020,14/04/2020,0000452577/058,SKANSKA RASHLEIGH WEATHERFOIL LTD,40413600,-407.50 ,ASSET MANAGEMENT - FACILITIES MANAGEMENT,FACILITIES MANAGEMENT REPAIRS,D908,FACILITIES MANAGEMENT REPAIRS,ASSET MANAGEMENT,FACILITIES & MANAGEMENT SERVICES
http://statistics.data.gov.uk/id/local-authority/43UM,WOKING BOROUGH COUNCIL,07/04/2020,14/04/2020,0000452577/062,SKANSKA RASHLEIGH WEATHERFOIL LTD,40413600,-374.70 ,ASSET MANAGEMENT - FACILITIES MANAGEMENT,FACILITIES MANAGEMENT REPAIRS,D908,FACILITIES MANAGEMENT REPAIRS,ASSET MANAGEMENT,FACILITIES & MANAGEMENT SERVICES
http://statistics.data.gov.uk/id/local-authority/43UM,WOKING BOROUGH COUNCIL,07/04/2020,14/04/2020,0000452577/063,SKANSKA RASHLEIGH WEATHERFOIL LTD,40413600,-28.70 ,ASSET MANAGEMENT - FACILITIES MANAGEMENT,FACILITIES MANAGEMENT REPAIRS,D908,FACILITIES MANAGEMENT REPAIRS,ASSET MANAGEMENT,FACILITIES & MANAGEMENT SERVICES
http://statistics.data.gov.uk/id/local-authority/43UM,WOKING BOROUGH COUNCIL,07/04/2020,14/04/2020,0000452577/064,SKANSKA RASHLEIGH WEATHERFOIL LTD,40413600,-1695.21 ,ASSET MANAGEMENT - FACILITIES MANAGEMENT,FACILITIES MANAGEMENT REPAIRS,D908,FACILITIES MANAGEMENT REPAIRS,ASSET MANAGEMENT,FACILITIES & MANAGEMENT SERVICES
http://statistics.data.gov.uk/id/local-authority/43UM,WOKING BOROUGH COUNCIL,07/04/2020,14/04/2020,0000452577/111,SKANSKA RASHLEIGH WEATHERFOIL LTD,40413600,896.08 ,ASSET MANAGEMENT - FACILITIES MANAGEMENT,FACILITIES MANAGEMENT REPAIRS,D908,FACILITIES MANAGEMENT REPAIRS,ASSET MANAGEMENT,FACILITIES & MANAGEMENT SERVICES
http://statistics.data.gov.uk/id/local-authority/43UM,WOKING BOROUGH COUNCIL,07/04/2020,14/04/2020,0000452577/139,SKANSKA RASHLEIGH WEATHERFOIL LTD,40413600,211.56 ,ASSET MANAGEMENT - FACILITIES MANAGEMENT,FACILITIES MANAGEMENT REPAIRS,D908,FACILITIES MANAGEMENT REPAIRS,ASSET MANAGEMENT,FACILITIES & MANAGEMENT SERVICES
http://statistics.data.gov.uk/id/local-authority/43UM,WOKING BOROUGH COUNCIL,07/04/2020,14/04/2020,0000452577/011,SKANSKA RASHLEIGH WEATHERFOIL LTD,40413600,1272.27 ,ASSET MANAGEMENT - FACILITIES MANAGEMENT,FACILITIES MANAGEMENT CONTRACT,D909,FACILITIES MANAGEMENT CONTRACT,ASSET MANAGEMENT,FACILITIES & MANAGEMENT SERVICES
http://statistics.data.gov.uk/id/local-authority/43UM,WOKING BOROUGH COUNCIL,07/04/2020,14/04/2020,0000452577/074,SKANSKA RASHLEIGH WEATHERFOIL LTD,40413600,-1670.34 ,ASSET MANAGEMENT - FACILITIES MANAGEMENT,FACILITIES MANAGEMENT CONTRACT,D909,FACILITIES MANAGEMENT CONTRACT,ASSET MANAGEMENT,FACILITIES & MANAGEMENT SERVICES
http://statistics.data.gov.uk/id/local-authority/43UM,WOKING BOROUGH COUNCIL,07/04/2020,14/04/2020,0000452577/075,SKANSKA RASHLEIGH WEATHERFOIL LTD,40413600,-4067.74 ,ASSET MANAGEMENT - FACILITIES MANAGEMENT,FACILITIES MANAGEMENT CONTRACT,D909,FACILITIES MANAGEMENT CONTRACT,ASSET MANAGEMENT,FACILITIES & MANAGEMENT SERVICES
http://statistics.data.gov.uk/id/local-authority/43UM,WOKING BOROUGH COUNCIL,07/04/2020,14/04/2020,0000452577/078,SKANSKA RASHLEIGH WEATHERFOIL LTD,40413600,365.28 ,ASSET MANAGEMENT - FACILITIES MANAGEMENT,FACILITIES MANAGEMENT CONTRACT,D909,FACILITIES MANAGEMENT CONTRACT,ASSET MANAGEMENT,FACILITIES & MANAGEMENT SERVICES
http://statistics.data.gov.uk/id/local-authority/43UM,WOKING BOROUGH COUNCIL,07/04/2020,14/04/2020,0000452577/083,SKANSKA RASHLEIGH WEATHERFOIL LTD,40413600,-1996.33 ,ASSET MANAGEMENT - FACILITIES MANAGEMENT,FACILITIES MANAGEMENT CONTRACT,D909,FACILITIES MANAGEMENT CONTRACT,ASSET MANAGEMENT,FACILITIES & MANAGEMENT SERVICES
http://statistics.data.gov.uk/id/local-authority/43UM,WOKING BOROUGH COUNCIL,07/04/2020,14/04/2020,0000452577/101,SKANSKA RASHLEIGH WEATHERFOIL LTD,40413600,-750.26 ,ASSET MANAGEMENT - FACILITIES MANAGEMENT,FACILITIES MANAGEMENT CONTRACT,D909,FACILITIES MANAGEMENT CONTRACT,ASSET MANAGEMENT,FACILITIES & MANAGEMENT SERVICES
http://statistics.data.gov.uk/id/local-authority/43UM,WOKING BOROUGH COUNCIL,07/04/2020,14/04/2020,0000452577/105,SKANSKA RASHLEIGH WEATHERFOIL LTD,40413600,-482.98 ,ASSET MANAGEMENT - FACILITIES MANAGEMENT,FACILITIES MANAGEMENT CONTRACT,D909,FACILITIES MANAGEMENT CONTRACT,ASSET MANAGEMENT,FACILITIES & MANAGEMENT SERVICES
http://statistics.data.gov.uk/id/local-authority/43UM,WOKING BOROUGH COUNCIL,07/04/2020,14/04/2020,0000452577/106,SKANSKA RASHLEIGH WEATHERFOIL LTD,40413600,-496.49 ,ASSET MANAGEMENT - FACILITIES MANAGEMENT,FACILITIES MANAGEMENT CONTRACT,D909,FACILITIES MANAGEMENT CONTRACT,ASSET MANAGEMENT,FACILITIES & MANAGEMENT SERVICES
http://statistics.data.gov.uk/id/local-authority/43UM,WOKING BOROUGH COUNCIL,07/04/2020,14/04/2020,0000452577/109,SKANSKA RASHLEIGH WEATHERFOIL LTD,40413600,-943.07 ,ASSET MANAGEMENT - FACILITIES MANAGEMENT,FACILITIES MANAGEMENT CONTRACT,D909,FACILITIES MANAGEMENT CONTRACT,ASSET MANAGEMENT,FACILITIES & MANAGEMENT SERVICES
http://statistics.data.gov.uk/id/local-authority/43UM,WOKING BOROUGH COUNCIL,07/04/2020,14/04/2020,0000452577/121,SKANSKA RASHLEIGH WEATHERFOIL LTD,40413600,2312.66 ,ASSET MANAGEMENT - FACILITIES MANAGEMENT,FACILITIES MANAGEMENT CONTRACT,D909,FACILITIES MANAGEMENT CONTRACT,ASSET MANAGEMENT,FACILITIES & MANAGEMENT SERVICES
http://statistics.data.gov.uk/id/local-authority/43UM,WOKING BOROUGH COUNCIL,07/04/2020,14/04/2020,0000452577/140,SKANSKA RASHLEIGH WEATHERFOIL LTD,40413600,-1322.24 ,ASSET MANAGEMENT - FACILITIES MANAGEMENT,FACILITIES MANAGEMENT CONTRACT,D909,FACILITIES MANAGEMENT CONTRACT,ASSET MANAGEMENT,FACILITIES & MANAGEMENT SERVICES
http://statistics.data.gov.uk/id/local-authority/43UM,WOKING BOROUGH COUNCIL,07/04/2020,14/04/2020,0000452577/196,SKANSKA RASHLEIGH WEATHERFOIL LTD,40413600,-2312.68 ,ASSET MANAGEMENT - FACILITIES MANAGEMENT,FACILITIES MANAGEMENT CONTRACT,D909,FACILITIES MANAGEMENT CONTRACT,ASSET MANAGEMENT,FACILITIES & MANAGEMENT SERVICES
http://statistics.data.gov.uk/id/local-authority/43UM,WOKING BOROUGH COUNCIL,31/03/2020,14/04/2020,0000452565/001,EMCOR GROUP (UK) PLC,00004600,20441.04 ,ASSET MANAGEMENT - C.C.T.V.,CCTV SYSTEM MAINTENANCE,D341,CCTV SYSTEM MAINTENANCE,ASSET MANAGEMENT,WORKS (CONSTRUCTION REPAIR MAINTENANCE)
http://statistics.data.gov.uk/id/local-authority/43UM,WOKING BOROUGH COUNCIL,27/03/2020,14/04/2020,0000452566/001,VIRGIN MEDIA BUSINESS,00316500,25.00 ,ASSET MANAGEMENT - C.C.T.V.,CCTV TRANSMISSION MAINTENANCE,D342,CCTV TRANSMISSION MAINTENANCE,ASSET MANAGEMENT,INFORMATION COMMUNICATION TECHNOLOGY
http://statistics.data.gov.uk/id/local-authority/43UM,WOKING BOROUGH COUNCIL,25/03/2020,14/04/2020,0000452567/001,VIRGIN MEDIA BUSINESS,00367000,5661.25 ,ASSET MANAGEMENT - C.C.T.V.,CCTV TRANSMISSION MAINTENANCE,D342,CCTV TRANSMISSION MAINTENANCE,ASSET MANAGEMENT,UTILITIES
http://statistics.data.gov.uk/id/local-authority/43UM,WOKING BOROUGH COUNCIL,07/04/2020,14/04/2020,0000452577/012,SKANSKA RASHLEIGH WEATHERFOIL LTD,40413600,25929.29 ,ASSET MANAGEMENT - CIVIC OFFICES,FACILITIES MANAGEMENT CONTRACT,D909,FACILITIES MANAGEMENT CONTRACT,ASSET MANAGEMENT,FACILITIES & MANAGEMENT SERVICES
http://statistics.data.gov.uk/id/local-authority/43UM,WOKING BOROUGH COUNCIL,07/04/2020,14/04/2020,0000452577/090,SKANSKA RASHLEIGH WEATHERFOIL LTD,40413600,139.99 ,ASSET MANAGEMENT - CIVIC OFFICES,FACILITIES MANAGEMENT CONTRACT,D909,FACILITIES MANAGEMENT CONTRACT,ASSET MANAGEMENT,FACILITIES & MANAGEMENT SERVICES
http://statistics.data.gov.uk/id/local-authority/43UM,WOKING BOROUGH COUNCIL,07/04/2020,14/04/2020,0000452577/125,SKANSKA RASHLEIGH WEATHERFOIL LTD,40413600,170.62 ,ASSET MANAGEMENT - CIVIC OFFICES,FACILITIES MANAGEMENT CONTRACT,D909,FACILITIES MANAGEMENT CONTRACT,ASSET MANAGEMENT,FACILITIES & MANAGEMENT SERVICES
http://statistics.data.gov.uk/id/local-authority/43UM,WOKING BOROUGH COUNCIL,07/04/2020,14/04/2020,0000452577/144,SKANSKA RASHLEIGH WEATHERFOIL LTD,40413600,117.75 ,ASSET MANAGEMENT - CIVIC OFFICES,FACILITIES MANAGEMENT CONTRACT,D909,FACILITIES MANAGEMENT CONTRACT,ASSET MANAGEMENT,FACILITIES & MANAGEMENT SERVICES
http://statistics.data.gov.uk/id/local-authority/43UM,WOKING BOROUGH COUNCIL,07/04/2020,14/04/2020,0000452577/203,SKANSKA RASHLEIGH WEATHERFOIL LTD,40413600,131.27 ,ASSET MANAGEMENT - CIVIC OFFICES,FACILITIES MANAGEMENT CONTRACT,D909,FACILITIES MANAGEMENT CONTRACT,ASSET MANAGEMENT,FACILITIES & MANAGEMENT SERVICES
http://statistics.data.gov.uk/id/local-authority/43UM,WOKING BOROUGH COUNCIL,27/03/2020,14/04/2020,0000452409/001,FAITH RECRUITMENT,01709500,740.45 ,H G WELLS - H G WELLS SALES & MARKETING,TEMPORARY STAFF,A110,TEMPORARY STAFF,H G WELLS,HUMAN RESOURCES
http://statistics.data.gov.uk/id/local-authority/43UM,WOKING BOROUGH COUNCIL,07/04/2020,14/04/2020,0000452577/094,SKANSKA RASHLEIGH WEATHERFOIL LTD,40413600,28.48 ,H G WELLS - H G WELLS - FUNCTION ROOMS,CONTRACT CLEANING,D900,CONTRACT CLEANING,H G WELLS,FACILITIES & MANAGEMENT SERVICES
http://statistics.data.gov.uk/id/local-authority/43UM,WOKING BOROUGH COUNCIL,07/04/2020,14/04/2020,0000452577/129,SKANSKA RASHLEIGH WEATHERFOIL LTD,40413600,41.79 ,H G WELLS - H G WELLS - FUNCTION ROOMS,CONTRACT CLEANING,D900,CONTRACT CLEANING,H G WELLS,FACILITIES & MANAGEMENT SERVICES
http://statistics.data.gov.uk/id/local-authority/43UM,WOKING BOROUGH COUNCIL,07/04/2020,14/04/2020,0000452577/148,SKANSKA RASHLEIGH WEATHERFOIL LTD,40413600,48.57 ,H G WELLS - H G WELLS - FUNCTION ROOMS,CONTRACT CLEANING,D900,CONTRACT CLEANING,H G WELLS,FACILITIES & MANAGEMENT SERVICES
http://statistics.data.gov.uk/id/local-authority/43UM,WOKING BOROUGH COUNCIL,07/04/2020,14/04/2020,0000452577/207,SKANSKA RASHLEIGH WEATHERFOIL LTD,40413600,54.15 ,H G WELLS - H G WELLS - FUNCTION ROOMS,CONTRACT CLEANING,D900,CONTRACT CLEANING,H G WELLS,FACILITIES & MANAGEMENT SERVICES
http://statistics.data.gov.uk/id/local-authority/43UM,WOKING BOROUGH COUNCIL,07/04/2020,14/04/2020,0000452577/013,SKANSKA RASHLEIGH WEATHERFOIL LTD,40413600,9388.22 ,H G WELLS - H G WELLS - FUNCTION ROOMS,FACILITIES MANAGEMENT CONTRACT,D909,FACILITIES MANAGEMENT CONTRACT,H G WELLS,FACILITIES & MANAGEMENT SERVICES
http://statistics.data.gov.uk/id/local-authority/43UM,WOKING BOROUGH COUNCIL,07/04/2020,14/04/2020,0000452577/059,SKANSKA RASHLEIGH WEATHERFOIL LTD,40413600,-110.97 ,H G WELLS - H G WELLS - FUNCTION ROOMS,FACILITIES MANAGEMENT CONTRACT,D909,FACILITIES MANAGEMENT CONTRACT,H G WELLS,FACILITIES & MANAGEMENT SERVICES
http://statistics.data.gov.uk/id/local-authority/43UM,WOKING BOROUGH COUNCIL,07/04/2020,14/04/2020,0000452577/257,SKANSKA RASHLEIGH WEATHERFOIL LTD,40413600,171.36 ,H G WELLS - H G WELLS - FUNCTION ROOMS,FACILITIES MANAGEMENT CONTRACT,D909,FACILITIES MANAGEMENT CONTRACT,H G WELLS,FACILITIES & MANAGEMENT SERVICES
http://statistics.data.gov.uk/id/local-authority/43UM,WOKING BOROUGH COUNCIL,07/04/2020,14/04/2020,0000452577/258,SKANSKA RASHLEIGH WEATHERFOIL LTD,40413600,-0.10 ,H G WELLS - H G WELLS - FUNCTION ROOMS,FACILITIES MANAGEMENT CONTRACT,D909,FACILITIES MANAGEMENT CONTRACT,H G WELLS,FACILITIES & MANAGEMENT SERVICES
http://statistics.data.gov.uk/id/local-authority/43UM,WOKING BOROUGH COUNCIL,31/03/2020,14/04/2020,0000452435/001,CAPITA TRAVEL AND EVENTS,40470300,546.24 ,H G WELLS - H G WELLS - FUNCTION ROOMS,AGENTS COMMISSION,H900,AGENTS COMMISSION,H G WELLS,CATERING
http://statistics.data.gov.uk/id/local-authority/43UM,WOKING BOROUGH COUNCIL,31/03/2020,14/04/2020,0000452430/001,BOC LTD,00262700,56.85 ,H G WELLS - H G WELLS - BAR,LEASING COSTS-EQUIPMENT,G110,LEASING COSTS-EQUIPMENT,H G WELLS,UTILITIES
http://statistics.data.gov.uk/id/local-authority/43UM,WOKING BOROUGH COUNCIL,05/04/2020,14/04/2020,0000452499/001,WEST HORSLEY DAIRY,00147600,186.14 ,H G WELLS - H G WELLS - CATERING,PROVISIONS-FOOD,G440,PROVISIONS-FOOD,H G WELLS,CATERING
http://statistics.data.gov.uk/id/local-authority/43UM,WOKING BOROUGH COUNCIL,08/04/2020,14/04/2020,0000452604/001,A M NELLESS LTD,40404900,120.00 ,HOUSING SERVICES - LETS RENT SCHEME,LANDLORD SAFETY CERTIFICATES,H776,LANDLORD SAFETY CERTIFICATES,HOUSING SERVICES,WORKS (CONSTRUCTION REPAIR MAINTENANCE)
http://statistics.data.gov.uk/id/local-authority/43UM,WOKING BOROUGH COUNCIL,14/04/2020,14/04/2020,GPC/00011368,MRH GOLDSWORTH PARK SERVI,PROCUREMENT CARD,54.17 ,HOUSING SERVICES - HOME IMPS & BEN AGENCY,TRAVEL EXPENSES-OFFICERS,F600,FUEL FOR HANDYPERSON VAN,IAN DEANE,SERVICE STATIONS
http://statistics.data.gov.uk/id/local-authority/43UM,WOKING BOROUGH COUNCIL,07/04/2020,14/04/2020,0000452577/014,SKANSKA RASHLEIGH WEATHERFOIL LTD,40413600,1064.10 ,INDEPENDENT LIVING SERVICES - MOORCROFT,FACILITIES MANAGEMENT CONTRACT,D909,FACILITIES MANAGEMENT CONTRACT,INDEPENDENT LIVING SERVICES,FACILITIES & MANAGEMENT SERVICES
http://statistics.data.gov.uk/id/local-authority/43UM,WOKING BOROUGH COUNCIL,07/04/2020,14/04/2020,0000452577/102,SKANSKA RASHLEIGH WEATHERFOIL LTD,40413600,1060.37 ,INDEPENDENT LIVING SERVICES - BROCKHILL EXTRA CARE,CONTRACT CLEANING,D900,CONTRACT CLEANING,INDEPENDENT LIVING SERVICES,FACILITIES & MANAGEMENT SERVICES
http://statistics.data.gov.uk/id/local-authority/43UM,WOKING BOROUGH COUNCIL,07/04/2020,14/04/2020,0000452577/015,SKANSKA RASHLEIGH WEATHERFOIL LTD,40413600,1091.07 ,INDEPENDENT LIVING SERVICES - BROCKHILL EXTRA CARE,FACILITIES MANAGEMENT CONTRACT,D909,FACILITIES MANAGEMENT CONTRACT,INDEPENDENT LIVING SERVICES,FACILITIES & MANAGEMENT SERVICES
http://statistics.data.gov.uk/id/local-authority/43UM,WOKING BOROUGH COUNCIL,07/04/2020,14/04/2020,0000452577/069,SKANSKA RASHLEIGH WEATHERFOIL LTD,40413600,83.84 ,INDEPENDENT LIVING SERVICES - BROCKHILL EXTRA CARE,FACILITIES MANAGEMENT CONTRACT,D909,FACILITIES MANAGEMENT CONTRACT,INDEPENDENT LIVING SERVICES,FACILITIES & MANAGEMENT SERVICES
http://statistics.data.gov.uk/id/local-authority/43UM,WOKING BOROUGH COUNCIL,07/04/2020,14/04/2020,0000452577/091,SKANSKA RASHLEIGH WEATHERFOIL LTD,40413600,0.95 ,INDEPENDENT LIVING SERVICES - BROCKHILL EXTRA CARE,FACILITIES MANAGEMENT CONTRACT,D909,FACILITIES MANAGEMENT CONTRACT,INDEPENDENT LIVING SERVICES,FACILITIES & MANAGEMENT SERVICES
http://statistics.data.gov.uk/id/local-authority/43UM,WOKING BOROUGH COUNCIL,07/04/2020,14/04/2020,0000452577/126,SKANSKA RASHLEIGH WEATHERFOIL LTD,40413600,1.40 ,INDEPENDENT LIVING SERVICES - BROCKHILL EXTRA CARE,FACILITIES MANAGEMENT CONTRACT,D909,FACILITIES MANAGEMENT CONTRACT,INDEPENDENT LIVING SERVICES,FACILITIES & MANAGEMENT SERVICES
http://statistics.data.gov.uk/id/local-authority/43UM,WOKING BOROUGH COUNCIL,07/04/2020,14/04/2020,0000452577/145,SKANSKA RASHLEIGH WEATHERFOIL LTD,40413600,2.21 ,INDEPENDENT LIVING SERVICES - BROCKHILL EXTRA CARE,FACILITIES MANAGEMENT CONTRACT,D909,FACILITIES MANAGEMENT CONTRACT,INDEPENDENT LIVING SERVICES,FACILITIES & MANAGEMENT SERVICES
http://statistics.data.gov.uk/id/local-authority/43UM,WOKING BOROUGH COUNCIL,07/04/2020,14/04/2020,0000452577/151,SKANSKA RASHLEIGH WEATHERFOIL LTD,40413600,30.91 ,INDEPENDENT LIVING SERVICES - BROCKHILL EXTRA CARE,FACILITIES MANAGEMENT CONTRACT,D909,FACILITIES MANAGEMENT CONTRACT,INDEPENDENT LIVING SERVICES,FACILITIES & MANAGEMENT SERVICES
http://statistics.data.gov.uk/id/local-authority/43UM,WOKING BOROUGH COUNCIL,07/04/2020,14/04/2020,0000452577/183,SKANSKA RASHLEIGH WEATHERFOIL LTD,40413600,109.54 ,INDEPENDENT LIVING SERVICES - BROCKHILL EXTRA CARE,FACILITIES MANAGEMENT CONTRACT,D909,FACILITIES MANAGEMENT CONTRACT,INDEPENDENT LIVING SERVICES,FACILITIES & MANAGEMENT SERVICES
http://statistics.data.gov.uk/id/local-authority/43UM,WOKING BOROUGH COUNCIL,07/04/2020,14/04/2020,0000452577/199,SKANSKA RASHLEIGH WEATHERFOIL LTD,40413600,102.25 ,INDEPENDENT LIVING SERVICES - BROCKHILL EXTRA CARE,FACILITIES MANAGEMENT CONTRACT,D909,FACILITIES MANAGEMENT CONTRACT,INDEPENDENT LIVING SERVICES,FACILITIES & MANAGEMENT SERVICES
http://statistics.data.gov.uk/id/local-authority/43UM,WOKING BOROUGH COUNCIL,07/04/2020,14/04/2020,0000452577/204,SKANSKA RASHLEIGH WEATHERFOIL LTD,40413600,2.46 ,INDEPENDENT LIVING SERVICES - BROCKHILL EXTRA CARE,FACILITIES MANAGEMENT CONTRACT,D909,FACILITIES MANAGEMENT CONTRACT,INDEPENDENT LIVING SERVICES,FACILITIES & MANAGEMENT SERVICES
http://statistics.data.gov.uk/id/local-authority/43UM,WOKING BOROUGH COUNCIL,07/04/2020,14/04/2020,0000452577/210,SKANSKA RASHLEIGH WEATHERFOIL LTD,40413600,37.83 ,INDEPENDENT LIVING SERVICES - BROCKHILL EXTRA CARE,FACILITIES MANAGEMENT CONTRACT,D909,FACILITIES MANAGEMENT CONTRACT,INDEPENDENT LIVING SERVICES,FACILITIES & MANAGEMENT SERVICES
http://statistics.data.gov.uk/id/local-authority/43UM,WOKING BOROUGH COUNCIL,07/04/2020,14/04/2020,0000452577/224,SKANSKA RASHLEIGH WEATHERFOIL LTD,40413600,-145.76 ,INDEPENDENT LIVING SERVICES - BROCKHILL EXTRA CARE,FACILITIES MANAGEMENT CONTRACT,D909,FACILITIES MANAGEMENT CONTRACT,INDEPENDENT LIVING SERVICES,FACILITIES & MANAGEMENT SERVICES
http://statistics.data.gov.uk/id/local-authority/43UM,WOKING BOROUGH COUNCIL,07/04/2020,14/04/2020,0000452577/225,SKANSKA RASHLEIGH WEATHERFOIL LTD,40413600,-25.41 ,INDEPENDENT LIVING SERVICES - BROCKHILL EXTRA CARE,FACILITIES MANAGEMENT CONTRACT,D909,FACILITIES MANAGEMENT CONTRACT,INDEPENDENT LIVING SERVICES,FACILITIES & MANAGEMENT SERVICES
http://statistics.data.gov.uk/id/local-authority/43UM,WOKING BOROUGH COUNCIL,07/04/2020,14/04/2020,0000452577/226,SKANSKA RASHLEIGH WEATHERFOIL LTD,40413600,-17.04 ,INDEPENDENT LIVING SERVICES - BROCKHILL EXTRA CARE,FACILITIES MANAGEMENT CONTRACT,D909,FACILITIES MANAGEMENT CONTRACT,INDEPENDENT LIVING SERVICES,FACILITIES & MANAGEMENT SERVICES
